Body Name,Portfolio,Organisation Code,Org Code Description,Object Code,Object Code Description,GL Date,Invoice No,Value,Supplier,Category,Category Description,Supplier No
Sheffield City Council,PEOPLE,13001138078,NURSERY ED FUND,8180000,GRANTS,18/04/2018,FORECAST_SUMMER_18,"100,991.89",1ST SAFARI DAY NURSERIES LTD,CT090453088,Nurseries & Creches,43449400
Sheffield City Council,PLACE,12046125027,FA PROJECT,8440000,FEE EXPENSES,12/04/2018,INV-2377,"4,688.00",4 GLOBAL CONSULTING,CT080112100,Business & Management Consultants,70202800
Sheffield City Council,PEOPLE,14008600000,DAY SERVICES,6280000,HIRE OF PREMISES,30/04/2018,HLT-SI101316,604.00,7 HILLS LEISURE TRUST,CT209972900,Sports Ground & Stadium Contractors,56650000
Sheffield City Council,PEOPLE,13004132048,SCHOOL SPORTS,6280000,HIRE OF PREMISES,11/04/2018,HLT-SI106180,"1,801.44",7 HILLS LEISURE TRUST,CT209972900,Sports Ground & Stadium Contractors,56650000
Sheffield City Council,PEOPLE,13002439357,SHORT BREAKS FUNDING FOR DISAB,9120000,OTHER AGENCIES,05/04/2018,HLT-SI106443,"2,089.75",7 HILLS LEISURE TRUST,CT209972900,Sports Ground & Stadium Contractors,56650000
Sheffield City Council,PEOPLE,13008533112,LDD PLACEMENTS AUG16-JUL17,9120000,OTHER AGENCIES,26/04/2018,1668,910.00,A MIND APART THEATRE COMPANY LTD,CT090327750,Drama Schools,50818000
Sheffield City Council,PEOPLE,13008533112,LDD PLACEMENTS AUG16-JUL17,9120000,OTHER AGENCIES,11/04/2018,1662,"1,400.00",A MIND APART THEATRE COMPANY LTD,CT090327750,Drama Schools,50818000
Sheffield City Council,PEOPLE,13007133007,VSP DELIVER,9120000,OTHER AGENCIES,05/04/2018,46368,"1,720.00",A MIND APART THEATRE COMPANY LTD,CT090327750,Drama Schools,50818000
Sheffield City Council,PEOPLE,13001138078,NURSERY ED FUND,8180000,GRANTS,18/04/2018,FORECAST_SUMMER_18,666.67,A PASTORELLI FOOT T/A MYFIRSTFOOTSTEP,CT240417600,Childminders,61658800
Sheffield City Council,"POLICY, PERFORMANCE AND COMMS",11800300000,COMMUNICATIONS PPC,8550002,ADVERTISING SERVICES INVOICED,25/04/2018,INV193736,267.93,A PINDER LTD,CT025222270,Copying & Duplicating Services,20262700
Sheffield City Council,PLACE,14068600000,FUTURE OF COUNCIL HOUSING,8380000,PHOTOCOPYING,23/04/2018,INV182305,350.00,A PINDER LTD,CT025222270,Copying & Duplicating Services,20262700
Sheffield City Council,PLACE,14068600000,FUTURE OF COUNCIL HOUSING,8380000,PHOTOCOPYING,23/04/2018,INV182305,540.91,A PINDER LTD,CT025222270,Copying & Duplicating Services,20262700
Sheffield City Council,"POLICY, PERFORMANCE AND COMMS",11800300000,COMMUNICATIONS PPC,8550002,ADVERTISING SERVICES INVOICED,19/04/2018,INV193735,"1,004.90",A PINDER LTD,CT025222270,Copying & Duplicating Services,20262700
Sheffield City Council,PEOPLE,14009346039,ADULT SOCIAL CARE PURCHASING,9200001,CONTINUING RESIDENTIAL CARE,24/04/2018,J2232665220418,"-3,371.14",AARON HOUSE,CT230164710,Residential Care Homes,36175200
Sheffield City Council,PEOPLE,14009346039,ADULT SOCIAL CARE PURCHASING,9200001,CONTINUING RESIDENTIAL CARE,25/04/2018,J2248785200518,"-1,371.43",AARON HOUSE,CT230164710,Residential Care Homes,36175200
Sheffield City Council,PEOPLE,14009346039,ADULT SOCIAL CARE PURCHASING,4260018,RESIDENTIAL COSTS RECOVERED,25/04/2018,J2248785200518,"-1,086.00",AARON HOUSE,CT230164710,Residential Care Homes,36175200
Sheffield City Council,PEOPLE,14009346039,ADULT SOCIAL CARE PURCHASING,4260018,RESIDENTIAL COSTS RECOVERED,24/04/2018,J2232665220418,-814.00,AARON HOUSE,CT230164710,Residential Care Homes,36175200
Sheffield City Council,PEOPLE,14009346039,ADULT SOCIAL CARE PURCHASING,4260018,RESIDENTIAL COSTS RECOVERED,25/04/2018,J2248785200518,-744.80,AARON HOUSE,CT230164710,Residential Care Homes,36175200
Sheffield City Council,PEOPLE,14009346039,ADULT SOCIAL CARE PURCHASING,4260018,RESIDENTIAL COSTS RECOVERED,25/04/2018,J2248785200518,-637.88,AARON HOUSE,CT230164710,Residential Care Homes,36175200
Sheffield City Council,PEOPLE,14009346039,ADULT SOCIAL CARE PURCHASING,4260018,RESIDENTIAL COSTS RECOVERED,25/04/2018,J2248785200518,-584.44,AARON HOUSE,CT230164710,Residential Care Homes,36175200
Sheffield City Council,PEOPLE,14009346039,ADULT SOCIAL CARE PURCHASING,4260018,RESIDENTIAL COSTS RECOVERED,25/04/2018,J2248785200518,-576.44,AARON HOUSE,CT230164710,Residential Care Homes,36175200
Sheffield City Council,PEOPLE,14009346039,ADULT SOCIAL CARE PURCHASING,4260018,RESIDENTIAL COSTS RECOVERED,25/04/2018,J2248785200518,-572.28,AARON HOUSE,CT230164710,Residential Care Homes,36175200
Sheffield City Council,PEOPLE,14009346039,ADULT SOCIAL CARE PURCHASING,4260018,RESIDENTIAL COSTS RECOVERED,25/04/2018,J2248785200518,-563.20,AARON HOUSE,CT230164710,Residential Care Homes,36175200
Sheffield City Council,PEOPLE,14009346039,ADULT SOCIAL CARE PURCHASING,4260018,RESIDENTIAL COSTS RECOVERED,25/04/2018,J2248785200518,-552.40,AARON HOUSE,CT230164710,Residential Care Homes,36175200
Sheffield City Council,PEOPLE,14009346039,ADULT SOCIAL CARE PURCHASING,4260018,RESIDENTIAL COSTS RECOVERED,25/04/2018,J2248785200518,-552.40,AARON HOUSE,CT230164710,Residential Care Homes,36175200
Sheffield City Council,PEOPLE,14009346039,ADULT SOCIAL CARE PURCHASING,4260018,RESIDENTIAL COSTS RECOVERED,25/04/2018,J2248785200518,-552.40,AARON HOUSE,CT230164710,Residential Care Homes,36175200
Sheffield City Council,PEOPLE,14009346039,ADULT SOCIAL CARE PURCHASING,4260018,RESIDENTIAL COSTS RECOVERED,25/04/2018,J2248785200518,-552.40,AARON HOUSE,CT230164710,Residential Care Homes,36175200
Sheffield City Council,PEOPLE,14009346039,ADULT SOCIAL CARE PURCHASING,4260018,RESIDENTIAL COSTS RECOVERED,25/04/2018,J2248785200518,-408.80,AARON HOUSE,CT230164710,Residential Care Homes,36175200
Sheffield City Council,PEOPLE,14009346039,ADULT SOCIAL CARE PURCHASING,4260018,RESIDENTIAL COSTS RECOVERED,24/04/2018,J2248576220418,-275.63,AARON HOUSE,CT230164710,Residential Care Homes,36175200
Sheffield City Council,PEOPLE,14009346039,ADULT SOCIAL CARE PURCHASING,4260018,RESIDENTIAL COSTS RECOVERED,24/04/2018,J2248576220418,-225.51,AARON HOUSE,CT230164710,Residential Care Homes,36175200
Sheffield City Council,PEOPLE,14009346039,ADULT SOCIAL CARE PURCHASING,4260018,RESIDENTIAL COSTS RECOVERED,24/04/2018,J2232665220418,-6.12,AARON HOUSE,CT230164710,Residential Care Homes,36175200
Sheffield City Council,PEOPLE,14009346039,ADULT SOCIAL CARE PURCHASING,4260018,RESIDENTIAL COSTS RECOVERED,24/04/2018,J2232665220418,-3.10,AARON HOUSE,CT230164710,Residential Care Homes,36175200
Sheffield City Council,PEOPLE,14009346039,ADULT SOCIAL CARE PURCHASING,9200002,SHORT TERM RESIDENTIAL CARE,24/04/2018,J2248576220418,310.00,AARON HOUSE,CT230164710,Residential Care Homes,36175200
Sheffield City Council,PEOPLE,14009346039,ADULT SOCIAL CARE PURCHASING,9200002,SHORT TERM RESIDENTIAL CARE,24/04/2018,J2248576220418,595.29,AARON HOUSE,CT230164710,Residential Care Homes,36175200
Sheffield City Council,PEOPLE,14009346039,ADULT SOCIAL CARE PURCHASING,9200002,SHORT TERM RESIDENTIAL CARE,24/04/2018,J2248576220418,727.57,AARON HOUSE,CT230164710,Residential Care Homes,36175200
Sheffield City Council,PEOPLE,14009346039,ADULT SOCIAL CARE PURCHASING,4260018,RESIDENTIAL COSTS RECOVERED,25/04/2018,J2248785200518,"1,115.20",AARON HOUSE,CT230164710,Residential Care Homes,36175200
Sheffield City Council,PEOPLE,14009346039,ADULT SOCIAL CARE PURCHASING,4260018,RESIDENTIAL COSTS RECOVERED,24/04/2018,J2232665220418,"1,473.31",AARON HOUSE,CT230164710,Residential Care Homes,36175200
Sheffield City Council,PEOPLE,14009346039,ADULT SOCIAL CARE PURCHASING,9200001,CONTINUING RESIDENTIAL CARE,25/04/2018,J2248785200518,"1,556.00",AARON HOUSE,CT230164710,Residential Care Homes,36175200
Sheffield City Council,PEOPLE,14009346039,ADULT SOCIAL CARE PURCHASING,9200001,CONTINUING RESIDENTIAL CARE,25/04/2018,J2248785200518,"1,596.00",AARON HOUSE,CT230164710,Residential Care Homes,36175200
Sheffield City Council,PEOPLE,14009346039,ADULT SOCIAL CARE PURCHASING,9200001,CONTINUING RESIDENTIAL CARE,25/04/2018,J2248785200518,"1,704.00",AARON HOUSE,CT230164710,Residential Care Homes,36175200
Sheffield City Council,PEOPLE,14009346039,ADULT SOCIAL CARE PURCHASING,9200001,CONTINUING RESIDENTIAL CARE,25/04/2018,J2248785200518,"1,736.00",AARON HOUSE,CT230164710,Residential Care Homes,36175200
Sheffield City Council,PEOPLE,14009346039,ADULT SOCIAL CARE PURCHASING,9200001,CONTINUING RESIDENTIAL CARE,25/04/2018,J2248785200518,"1,736.00",AARON HOUSE,CT230164710,Residential Care Homes,36175200
Sheffield City Council,PEOPLE,14009346039,ADULT SOCIAL CARE PURCHASING,9200001,CONTINUING RESIDENTIAL CARE,25/04/2018,J2248785200518,"1,736.00",AARON HOUSE,CT230164710,Residential Care Homes,36175200
Sheffield City Council,PEOPLE,14009346039,ADULT SOCIAL CARE PURCHASING,9200001,CONTINUING RESIDENTIAL CARE,25/04/2018,J2248785200518,"1,736.00",AARON HOUSE,CT230164710,Residential Care Homes,36175200
Sheffield City Council,PEOPLE,14009346039,ADULT SOCIAL CARE PURCHASING,9200001,CONTINUING RESIDENTIAL CARE,25/04/2018,J2248785200518,"1,736.00",AARON HOUSE,CT230164710,Residential Care Homes,36175200
Sheffield City Council,PEOPLE,14009346039,ADULT SOCIAL CARE PURCHASING,9200001,CONTINUING RESIDENTIAL CARE,25/04/2018,J2248785200518,"1,736.00",AARON HOUSE,CT230164710,Residential Care Homes,36175200
Sheffield City Council,PEOPLE,14009346039,ADULT SOCIAL CARE PURCHASING,9200001,CONTINUING RESIDENTIAL CARE,25/04/2018,J2248785200518,"1,736.00",AARON HOUSE,CT230164710,Residential Care Homes,36175200
Sheffield City Council,PEOPLE,14009346039,ADULT SOCIAL CARE PURCHASING,9200001,CONTINUING RESIDENTIAL CARE,25/04/2018,J2248785200518,"1,736.00",AARON HOUSE,CT230164710,Residential Care Homes,36175200
Sheffield City Council,PEOPLE,14009346039,ADULT SOCIAL CARE PURCHASING,9200001,CONTINUING RESIDENTIAL CARE,25/04/2018,J2248785200518,"1,736.00",AARON HOUSE,CT230164710,Residential Care Homes,36175200
Sheffield City Council,PEOPLE,14009346039,ADULT SOCIAL CARE PURCHASING,9200001,CONTINUING RESIDENTIAL CARE,24/04/2018,J2232665220418,"2,604.00",AARON HOUSE,CT230164710,Residential Care Homes,36175200
Sheffield City Council,PEOPLE,13002339238,WEST SA - CIN S17,9270004,CARELEAVERS INDEPENDENT LIVING,06/04/2018,241431,421.00,AB CASTLE LTD,CT025064620,Removals & Storage - Household,20256300
Sheffield City Council,PEOPLE,13005638219,ENHANCED SERVICE - IUCDS,9030000,HEALTH,20/04/2018,C88046_0002/04/04/18,600.00,ABBEY LANE SURGERY,CT140826710,Doctors,58075200
Sheffield City Council,PEOPLE,14009242034,PURCHASING LEARNING DISABILITI,9240000,SUPPORTED LIVING CARE,04/04/2018,P122017563,309.80,ABBEYCARE & NURSING,CT230243419,Home Care Services,51841100
Sheffield City Council,PEOPLE,14009242034,PURCHASING LEARNING DISABILITI,9240000,SUPPORTED LIVING CARE,26/04/2018,P13/2017-591,371.76,ABBEYCARE & NURSING,CT230243419,Home Care Services,51841100
Sheffield City Council,PEOPLE,14009242034,PURCHASING LEARNING DISABILITI,9240000,SUPPORTED LIVING CARE,04/04/2018,P122017563,600.80,ABBEYCARE & NURSING,CT230243419,Home Care Services,51841100
Sheffield City Council,PEOPLE,14009242034,PURCHASING LEARNING DISABILITI,9240000,SUPPORTED LIVING CARE,26/04/2018,P13/2017-591,600.80,ABBEYCARE & NURSING,CT230243419,Home Care Services,51841100
Sheffield City Council,PEOPLE,14009242034,PURCHASING LEARNING DISABILITI,9240000,SUPPORTED LIVING CARE,26/04/2018,P13/2017-591,726.72,ABBEYCARE & NURSING,CT230243419,Home Care Services,51841100
Sheffield City Council,PEOPLE,14009242034,PURCHASING LEARNING DISABILITI,9240000,SUPPORTED LIVING CARE,04/04/2018,P122017563,738.08,ABBEYCARE & NURSING,CT230243419,Home Care Services,51841100
Sheffield City Council,PEOPLE,14009346039,ADULT SOCIAL CARE PURCHASING,9190003,CITYWIDE SPOT,26/04/2018,ACN2017-0582,744.35,ABBEYCARE & NURSING,CT230243419,Home Care Services,51841100
Sheffield City Council,PEOPLE,14009242034,PURCHASING LEARNING DISABILITI,9240000,SUPPORTED LIVING CARE,04/04/2018,P122017563,744.68,ABBEYCARE & NURSING,CT230243419,Home Care Services,51841100
Sheffield City Council,PEOPLE,14009242034,PURCHASING LEARNING DISABILITI,9240000,SUPPORTED LIVING CARE,04/04/2018,P122017563,744.68,ABBEYCARE & NURSING,CT230243419,Home Care Services,51841100
Sheffield City Council,PEOPLE,14009242034,PURCHASING LEARNING DISABILITI,9240000,SUPPORTED LIVING CARE,26/04/2018,P13/2017-591,744.68,ABBEYCARE & NURSING,CT230243419,Home Care Services,51841100
Sheffield City Council,PEOPLE,14009242034,PURCHASING LEARNING DISABILITI,9240000,SUPPORTED LIVING CARE,26/04/2018,P13/2017-591,744.68,ABBEYCARE & NURSING,CT230243419,Home Care Services,51841100
Sheffield City Council,PEOPLE,14009242034,PURCHASING LEARNING DISABILITI,9240000,SUPPORTED LIVING CARE,04/04/2018,P122017563,867.16,ABBEYCARE & NURSING,CT230243419,Home Care Services,51841100
Sheffield City Council,PEOPLE,14009242034,PURCHASING LEARNING DISABILITI,9240000,SUPPORTED LIVING CARE,26/04/2018,P13/2017-591,867.16,ABBEYCARE & NURSING,CT230243419,Home Care Services,51841100
Sheffield City Council,PEOPLE,14009242034,PURCHASING LEARNING DISABILITI,9240000,SUPPORTED LIVING CARE,04/04/2018,P122017563,"1,033.60",ABBEYCARE & NURSING,CT230243419,Home Care Services,51841100
Sheffield City Council,PEOPLE,14009242034,PURCHASING LEARNING DISABILITI,9240000,SUPPORTED LIVING CARE,26/04/2018,P13/2017-591,"1,033.60",ABBEYCARE & NURSING,CT230243419,Home Care Services,51841100
Sheffield City Council,PEOPLE,14009242034,PURCHASING LEARNING DISABILITI,9240001,FUNDED NURSING CARE (IN,04/04/2018,P122017563,"1,482.16",ABBEYCARE & NURSING,CT230243419,Home Care Services,51841100
Sheffield City Council,PEOPLE,14009242034,PURCHASING LEARNING DISABILITI,9240001,FUNDED NURSING CARE (IN,26/04/2018,P13/2017-591,"1,482.16",ABBEYCARE & NURSING,CT230243419,Home Care Services,51841100
Sheffield City Council,PEOPLE,14009242034,PURCHASING LEARNING DISABILITI,9240001,FUNDED NURSING CARE (IN,04/04/2018,P122017563,"1,682.87",ABBEYCARE & NURSING,CT230243419,Home Care Services,51841100
Sheffield City Council,PEOPLE,14009242034,PURCHASING LEARNING DISABILITI,9240001,FUNDED NURSING CARE (IN,26/04/2018,P13/2017-591,"1,684.92",ABBEYCARE & NURSING,CT230243419,Home Care Services,51841100
Sheffield City Council,PEOPLE,14009242034,PURCHASING LEARNING DISABILITI,9240001,FUNDED NURSING CARE (IN,04/04/2018,P122017563,"1,877.16",ABBEYCARE & NURSING,CT230243419,Home Care Services,51841100
Sheffield City Council,PEOPLE,14009242034,PURCHASING LEARNING DISABILITI,9240001,FUNDED NURSING CARE (IN,26/04/2018,P13/2017-591,"1,877.16",ABBEYCARE & NURSING,CT230243419,Home Care Services,51841100
Sheffield City Council,PEOPLE,14009346039,ADULT SOCIAL CARE PURCHASING,9240001,FUNDED NURSING CARE (IN,04/04/2018,P122017563,"2,088.00",ABBEYCARE & NURSING,CT230243419,Home Care Services,51841100
Sheffield City Council,PEOPLE,14009346039,ADULT SOCIAL CARE PURCHASING,9240001,FUNDED NURSING CARE (IN,26/04/2018,P13/2017-591,"2,088.00",ABBEYCARE & NURSING,CT230243419,Home Care Services,51841100
Sheffield City Council,PEOPLE,14009242034,PURCHASING LEARNING DISABILITI,9240001,FUNDED NURSING CARE (IN,04/04/2018,P122017563,"2,674.92",ABBEYCARE & NURSING,CT230243419,Home Care Services,51841100
Sheffield City Council,PEOPLE,14009242034,PURCHASING LEARNING DISABILITI,9240001,FUNDED NURSING CARE (IN,26/04/2018,P13/2017-591,"2,674.92",ABBEYCARE & NURSING,CT230243419,Home Care Services,51841100
Sheffield City Council,PEOPLE,14009242034,PURCHASING LEARNING DISABILITI,9240000,SUPPORTED LIVING CARE,04/04/2018,P122017563,"3,033.12",ABBEYCARE & NURSING,CT230243419,Home Care Services,51841100
Sheffield City Council,PEOPLE,14009242034,PURCHASING LEARNING DISABILITI,9240000,SUPPORTED LIVING CARE,26/04/2018,P13/2017-591,"3,033.12",ABBEYCARE & NURSING,CT230243419,Home Care Services,51841100
Sheffield City Council,PEOPLE,14009346039,ADULT SOCIAL CARE PURCHASING,9240000,SUPPORTED LIVING CARE,04/04/2018,P122017563,"3,905.52",ABBEYCARE & NURSING,CT230243419,Home Care Services,51841100
Sheffield City Council,PEOPLE,14009346039,ADULT SOCIAL CARE PURCHASING,9240000,SUPPORTED LIVING CARE,04/04/2018,P122017563,"3,905.56",ABBEYCARE & NURSING,CT230243419,Home Care Services,51841100
Sheffield City Council,PEOPLE,14009346039,ADULT SOCIAL CARE PURCHASING,9240000,SUPPORTED LIVING CARE,26/04/2018,P13/2017-591,"3,905.72",ABBEYCARE & NURSING,CT230243419,Home Care Services,51841100
Sheffield City Council,PEOPLE,14009346039,ADULT SOCIAL CARE PURCHASING,9240000,SUPPORTED LIVING CARE,26/04/2018,P13/2017-591,"3,905.72",ABBEYCARE & NURSING,CT230243419,Home Care Services,51841100
Sheffield City Council,PEOPLE,14009242034,PURCHASING LEARNING DISABILITI,9240000,SUPPORTED LIVING CARE,26/04/2018,P13/2017-591,"3,905.72",ABBEYCARE & NURSING,CT230243419,Home Care Services,51841100
Sheffield City Council,PEOPLE,14009242034,PURCHASING LEARNING DISABILITI,9240000,SUPPORTED LIVING CARE,04/04/2018,P122017563,"4,166.52",ABBEYCARE & NURSING,CT230243419,Home Care Services,51841100
Sheffield City Council,PEOPLE,14009242034,PURCHASING LEARNING DISABILITI,9240000,SUPPORTED LIVING CARE,04/04/2018,P122017563,"4,283.88",ABBEYCARE & NURSING,CT230243419,Home Care Services,51841100
Sheffield City Council,PEOPLE,14009242034,PURCHASING LEARNING DISABILITI,9240000,SUPPORTED LIVING CARE,26/04/2018,P13/2017-591,"4,289.08",ABBEYCARE & NURSING,CT230243419,Home Care Services,51841100
Sheffield City Council,PEOPLE,14009242034,PURCHASING LEARNING DISABILITI,9240000,SUPPORTED LIVING CARE,04/04/2018,P122017563,"4,778.08",ABBEYCARE & NURSING,CT230243419,Home Care Services,51841100
Sheffield City Council,PEOPLE,14009242034,PURCHASING LEARNING DISABILITI,9240000,SUPPORTED LIVING CARE,26/04/2018,P13/2017-591,"4,778.08",ABBEYCARE & NURSING,CT230243419,Home Care Services,51841100
Sheffield City Council,PEOPLE,14009242034,PURCHASING LEARNING DISABILITI,9240000,SUPPORTED LIVING CARE,26/04/2018,P13/2017-591,"4,785.00",ABBEYCARE & NURSING,CT230243419,Home Care Services,51841100
Sheffield City Council,PEOPLE,14009242034,PURCHASING LEARNING DISABILITI,9240000,SUPPORTED LIVING CARE,04/04/2018,P122017563,"4,821.22",ABBEYCARE & NURSING,CT230243419,Home Care Services,51841100
Sheffield City Council,PEOPLE,14009242034,PURCHASING LEARNING DISABILITI,9240000,SUPPORTED LIVING CARE,04/04/2018,P122017563,"6,009.12",ABBEYCARE & NURSING,CT230243419,Home Care Services,51841100
Sheffield City Council,PEOPLE,14009242034,PURCHASING LEARNING DISABILITI,9240000,SUPPORTED LIVING CARE,26/04/2018,P13/2017-591,"6,009.12",ABBEYCARE & NURSING,CT230243419,Home Care Services,51841100
Sheffield City Council,PEOPLE,14009346039,ADULT SOCIAL CARE PURCHASING,9240000,SUPPORTED LIVING CARE,04/04/2018,P122017563,"7,656.00",ABBEYCARE & NURSING,CT230243419,Home Care Services,51841100
Sheffield City Council,PEOPLE,14009346039,ADULT SOCIAL CARE PURCHASING,9240000,SUPPORTED LIVING CARE,26/04/2018,P13/2017-591,"7,656.00",ABBEYCARE & NURSING,CT230243419,Home Care Services,51841100
Sheffield City Council,PEOPLE,13005739532,EARLY YEARS SEN TEAM,8440000,FEE EXPENSES,23/04/2018,48893,520.00,ABBEYDALE COTTAGE NURSERY,CT090353120,Nursery Schools,62222300
Sheffield City Council,PEOPLE,13001138078,NURSERY ED FUND,8180000,GRANTS,18/04/2018,FORECAST_SUMMER_18,"40,135.40",ABBEYDALE COTTAGE NURSERY,CT090353120,Nursery Schools,62222300
Sheffield City Council,PEOPLE,14007597334,DISABLED GRANTS,1165000,NC&A OTHER,10/04/2018,47299,"3,784.50",ABBEYDALE SHOWERS,CT079930580,Electricians & Electrical Contractors,30225600
Sheffield City Council,PEOPLE,14009346039,ADULT SOCIAL CARE PURCHASING,9200001,CONTINUING RESIDENTIAL CARE,24/04/2018,J2232666220418,"-1,736.00",ABBEYFIELD GRANGE RES HOME LTD,CT230164710,Residential Care Homes,33644400
Sheffield City Council,PEOPLE,14009346039,ADULT SOCIAL CARE PURCHASING,4260018,RESIDENTIAL COSTS RECOVERED,24/04/2018,J2248790200518,"-1,104.80",ABBEYFIELD GRANGE RES HOME LTD,CT230164710,Residential Care Homes,33644400
Sheffield City Council,PEOPLE,14009346039,ADULT SOCIAL CARE PURCHASING,4260018,RESIDENTIAL COSTS RECOVERED,24/04/2018,J2248790200518,-557.00,ABBEYFIELD GRANGE RES HOME LTD,CT230164710,Residential Care Homes,33644400
Sheffield City Council,PEOPLE,14009346039,ADULT SOCIAL CARE PURCHASING,4260018,RESIDENTIAL COSTS RECOVERED,24/04/2018,J2248790200518,-552.40,ABBEYFIELD GRANGE RES HOME LTD,CT230164710,Residential Care Homes,33644400
Sheffield City Council,PEOPLE,14009346039,ADULT SOCIAL CARE PURCHASING,4260018,RESIDENTIAL COSTS RECOVERED,24/04/2018,J2248790200518,-534.72,ABBEYFIELD GRANGE RES HOME LTD,CT230164710,Residential Care Homes,33644400
Sheffield City Council,PEOPLE,14009346039,ADULT SOCIAL CARE PURCHASING,4260018,RESIDENTIAL COSTS RECOVERED,24/04/2018,J2232666220418,-429.86,ABBEYFIELD GRANGE RES HOME LTD,CT230164710,Residential Care Homes,33644400
Sheffield City Council,PEOPLE,14031444001,PURCHASING,4260018,RESIDENTIAL COSTS RECOVERED,24/04/2018,J2248790200518,-416.76,ABBEYFIELD GRANGE RES HOME LTD,CT230164710,Residential Care Homes,33644400
Sheffield City Council,PEOPLE,14031444001,PURCHASING,4260018,RESIDENTIAL COSTS RECOVERED,24/04/2018,J2248790200518,-388.12,ABBEYFIELD GRANGE RES HOME LTD,CT230164710,Residential Care Homes,33644400
Sheffield City Council,PEOPLE,14009346039,ADULT SOCIAL CARE PURCHASING,4260018,RESIDENTIAL COSTS RECOVERED,24/04/2018,J2232666220418,545.10,ABBEYFIELD GRANGE RES HOME LTD,CT230164710,Residential Care Homes,33644400
Sheffield City Council,PEOPLE,14031444001,PURCHASING,9200001,CONTINUING RESIDENTIAL CARE,24/04/2018,J2248790200518,"1,021.32",ABBEYFIELD GRANGE RES HOME LTD,CT230164710,Residential Care Homes,33644400
Sheffield City Council,PEOPLE,14031444001,PURCHASING,9200001,CONTINUING RESIDENTIAL CARE,24/04/2018,J2248790200518,"1,021.32",ABBEYFIELD GRANGE RES HOME LTD,CT230164710,Residential Care Homes,33644400
Sheffield City Council,PEOPLE,14031444001,PURCHASING,9200001,CONTINUING RESIDENTIAL CARE,24/04/2018,J2248790200518,"1,021.32",ABBEYFIELD GRANGE RES HOME LTD,CT230164710,Residential Care Homes,33644400
Sheffield City Council,PEOPLE,14031444001,PURCHASING,9200001,CONTINUING RESIDENTIAL CARE,24/04/2018,J2248790200518,"1,021.32",ABBEYFIELD GRANGE RES HOME LTD,CT230164710,Residential Care Homes,33644400
Sheffield City Council,PEOPLE,14031444001,PURCHASING,9200001,CONTINUING RESIDENTIAL CARE,24/04/2018,J2248790200518,"1,021.32",ABBEYFIELD GRANGE RES HOME LTD,CT230164710,Residential Care Homes,33644400
Sheffield City Council,PEOPLE,14031444001,PURCHASING,9200001,CONTINUING RESIDENTIAL CARE,24/04/2018,J2248790200518,"1,021.32",ABBEYFIELD GRANGE RES HOME LTD,CT230164710,Residential Care Homes,33644400
Sheffield City Council,PEOPLE,14031444001,PURCHASING,9200001,CONTINUING RESIDENTIAL CARE,24/04/2018,J2248790200518,"1,021.32",ABBEYFIELD GRANGE RES HOME LTD,CT230164710,Residential Care Homes,33644400
Sheffield City Council,PEOPLE,14031444001,PURCHASING,9200001,CONTINUING RESIDENTIAL CARE,24/04/2018,J2248790200518,"1,021.32",ABBEYFIELD GRANGE RES HOME LTD,CT230164710,Residential Care Homes,33644400
Sheffield City Council,PEOPLE,14031444001,PURCHASING,9200001,CONTINUING RESIDENTIAL CARE,24/04/2018,J2248790200518,"1,021.32",ABBEYFIELD GRANGE RES HOME LTD,CT230164710,Residential Care Homes,33644400
Sheffield City Council,PEOPLE,14009346039,ADULT SOCIAL CARE PURCHASING,9200001,CONTINUING RESIDENTIAL CARE,24/04/2018,J2232666220418,"1,364.00",ABBEYFIELD GRANGE RES HOME LTD,CT230164710,Residential Care Homes,33644400
Sheffield City Council,PEOPLE,14009346039,ADULT SOCIAL CARE PURCHASING,9200001,CONTINUING RESIDENTIAL CARE,24/04/2018,J2248790200518,"1,556.00",ABBEYFIELD GRANGE RES HOME LTD,CT230164710,Residential Care Homes,33644400
Sheffield City Council,PEOPLE,14009346039,ADULT SOCIAL CARE PURCHASING,9200001,CONTINUING RESIDENTIAL CARE,24/04/2018,J2248790200518,"1,556.00",ABBEYFIELD GRANGE RES HOME LTD,CT230164710,Residential Care Homes,33644400
Sheffield City Council,PEOPLE,14009346039,ADULT SOCIAL CARE PURCHASING,9200001,CONTINUING RESIDENTIAL CARE,24/04/2018,J2248790200518,"1,556.00",ABBEYFIELD GRANGE RES HOME LTD,CT230164710,Residential Care Homes,33644400
Sheffield City Council,PEOPLE,14009346039,ADULT SOCIAL CARE PURCHASING,9200001,CONTINUING RESIDENTIAL CARE,24/04/2018,J2248790200518,"1,556.00",ABBEYFIELD GRANGE RES HOME LTD,CT230164710,Residential Care Homes,33644400
Sheffield City Council,PEOPLE,14009346039,ADULT SOCIAL CARE PURCHASING,9200001,CONTINUING RESIDENTIAL CARE,24/04/2018,J2248790200518,"1,704.00",ABBEYFIELD GRANGE RES HOME LTD,CT230164710,Residential Care Homes,33644400
Sheffield City Council,PEOPLE,14009346039,ADULT SOCIAL CARE PURCHASING,9200001,CONTINUING RESIDENTIAL CARE,24/04/2018,J2248790200518,"1,740.00",ABBEYFIELD GRANGE RES HOME LTD,CT230164710,Residential Care Homes,33644400
Sheffield City Council,PEOPLE,14031444001,PURCHASING,9200001,CONTINUING RESIDENTIAL CARE,24/04/2018,J2248790200518,"2,042.60",ABBEYFIELD GRANGE RES HOME LTD,CT230164710,Residential Care Homes,33644400
Sheffield City Council,PEOPLE,14031444001,PURCHASING,9200001,CONTINUING RESIDENTIAL CARE,24/04/2018,J2248790200518,"2,042.60",ABBEYFIELD GRANGE RES HOME LTD,CT230164710,Residential Care Homes,33644400
Sheffield City Council,PEOPLE,14031444001,PURCHASING,9200001,CONTINUING RESIDENTIAL CARE,24/04/2018,J2248790200518,"2,042.60",ABBEYFIELD GRANGE RES HOME LTD,CT230164710,Residential Care Homes,33644400
Sheffield City Council,PEOPLE,14031444001,PURCHASING,9200001,CONTINUING RESIDENTIAL CARE,24/04/2018,J2248790200518,"2,042.60",ABBEYFIELD GRANGE RES HOME LTD,CT230164710,Residential Care Homes,33644400
Sheffield City Council,PEOPLE,14031444001,PURCHASING,9200001,CONTINUING RESIDENTIAL CARE,24/04/2018,J2248790200518,"2,042.60",ABBEYFIELD GRANGE RES HOME LTD,CT230164710,Residential Care Homes,33644400
Sheffield City Council,PEOPLE,14031444001,PURCHASING,9200001,CONTINUING RESIDENTIAL CARE,24/04/2018,J2248790200518,"2,042.60",ABBEYFIELD GRANGE RES HOME LTD,CT230164710,Residential Care Homes,33644400
Sheffield City Council,PEOPLE,14031444001,PURCHASING,9200001,CONTINUING RESIDENTIAL CARE,24/04/2018,J2248790200518,"2,042.60",ABBEYFIELD GRANGE RES HOME LTD,CT230164710,Residential Care Homes,33644400
Sheffield City Council,PEOPLE,14031444001,PURCHASING,9200001,CONTINUING RESIDENTIAL CARE,24/04/2018,J2248790200518,"2,042.60",ABBEYFIELD GRANGE RES HOME LTD,CT230164710,Residential Care Homes,33644400
Sheffield City Council,PEOPLE,14031444001,PURCHASING,9200001,CONTINUING RESIDENTIAL CARE,24/04/2018,J2248790200518,"2,042.60",ABBEYFIELD GRANGE RES HOME LTD,CT230164710,Residential Care Homes,33644400
Sheffield City Council,PEOPLE,14009346039,ADULT SOCIAL CARE PURCHASING,9200001,CONTINUING RESIDENTIAL CARE,24/04/2018,J2248790200518,"3,157.56",ABBEYFIELD GRANGE RES HOME LTD,CT230164710,Residential Care Homes,33644400
Sheffield City Council,PEOPLE,13005739532,EARLY YEARS SEN TEAM,8440000,FEE EXPENSES,24/04/2018,50055,"1,293.00",ABBEYFIELD PRIMARY ACADEMY,CT090167346,Schools & Colleges - Grant Maintained &,64098400
Sheffield City Council,PLACE,12000500000,SHEFF TRADING STDS,5750000,TRAINING EXPENDITURE,16/04/2018,INV-1300,250.00,ABC FOOD LAW LIMITED,CT080979960,Training Consultants,63635500
Sheffield City Council,PLACE,11850400084,GENERAL OVERHEADS,5750000,TRAINING EXPENDITURE,30/04/2018,100026740,-400.00,ABILITY SMART LIMITED,CT090829158,Dyslexia Information & Support,70144900
Sheffield City Council,PLACE,11850400084,GENERAL OVERHEADS,5750000,TRAINING EXPENDITURE,30/04/2018,100026740,400.00,ABILITY SMART LIMITED,CT090829158,Dyslexia Information & Support,70144900
Sheffield City Council,PLACE,11520915206,PFI 3,6030000,REPAIRS AND MTCE - RESPONSIVE,24/04/2018,ASSL/18/05,"3,039.95",ACADEMY SERVICES SHEFFIELD LTD,CT130747650,Leasing Services,43888300
Sheffield City Council,PLACE,11520915206,PFI 3,6030000,REPAIRS AND MTCE - RESPONSIVE,24/04/2018,ASSL/18/05,"11,128.42",ACADEMY SERVICES SHEFFIELD LTD,CT130747650,Leasing Services,43888300
Sheffield City Council,PLACE,11520915206,PFI 3,6270000,SERVICE / PFI UNITARY CHARGE,24/04/2018,ASSL/18/05,"648,942.15",ACADEMY SERVICES SHEFFIELD LTD,CT130747650,Leasing Services,43888300
Sheffield City Council,PLACE,11518915190,HARD FM,6020000,REPAIRS AND MTCE - PROGRAMMED,04/04/2018,2300,"1,050.00",ACCESS ECOLOGY LTD,CT080332415,Environmental Consultants,53479400
Sheffield City Council,CORPORATE,11993019347,CLAIMS,8740007,PUBLIC LIABILITY,26/04/2018,50916,"18,403.97",ACCIDENT SOLICITORS DIRECT OFFICE ACC,CT190372460,Solicitors,29948000
Sheffield City Council,PEOPLE,14009242034,PURCHASING LEARNING DISABILITI,9230006,CCSP TRANSPORT,26/04/2018,75,532.00,ACE MINIBUS TRAVEL,CT261676350,Taxis & Private Hire,59894600
Sheffield City Council,PEOPLE,14009242034,PURCHASING LEARNING DISABILITI,9230006,CCSP TRANSPORT,26/04/2018,75,"1,700.00",ACE MINIBUS TRAVEL,CT261676350,Taxis & Private Hire,59894600
Sheffield City Council,PEOPLE,14009346039,ADULT SOCIAL CARE PURCHASING,4260018,RESIDENTIAL COSTS RECOVERED,24/04/2018,J2248773200518,-601.24,ACKROYD CLINIC CARE HOME,CT230164710,Residential Care Homes,36191800
Sheffield City Council,PEOPLE,14009346039,ADULT SOCIAL CARE PURCHASING,4260018,RESIDENTIAL COSTS RECOVERED,24/04/2018,J2248773200518,-552.40,ACKROYD CLINIC CARE HOME,CT230164710,Residential Care Homes,36191800
Sheffield City Council,PEOPLE,14009346039,ADULT SOCIAL CARE PURCHASING,9200001,CONTINUING RESIDENTIAL CARE,24/04/2018,J2248773200518,"1,556.00",ACKROYD CLINIC CARE HOME,CT230164710,Residential Care Homes,36191800
Sheffield City Council,PEOPLE,14009346039,ADULT SOCIAL CARE PURCHASING,9200001,CONTINUING RESIDENTIAL CARE,24/04/2018,J2248773200518,"1,704.00",ACKROYD CLINIC CARE HOME,CT230164710,Residential Care Homes,36191800
Sheffield City Council,LOCAL ENTERPRISE PARTNERSHIP,33074830127,ESIF ENHANCEMENT PROJECT,8440000,FEE EXPENSES,10/04/2018,1569,"1,050.00",ACM LIMITED,CT121216729,Certification Bodies,70028600
Sheffield City Council,LOCAL ENTERPRISE PARTNERSHIP,33074830127,ESIF ENHANCEMENT PROJECT,8440000,FEE EXPENSES,20/04/2018,1587,"1,050.00",ACM LIMITED,CT121216729,Certification Bodies,70028600
Sheffield City Council,LOCAL ENTERPRISE PARTNERSHIP,33074830127,ESIF ENHANCEMENT PROJECT,8440000,FEE EXPENSES,20/04/2018,1588,"1,050.00",ACM LIMITED,CT121216729,Certification Bodies,70028600
Sheffield City Council,PLACE,12045925076,SHEFFIELD HOMES TREES,6370000,GROUNDS MTCE AND ARBORICULTURE,26/04/2018,13198,458.00,ACME ARB LTD,CT102180228,Tree Work & Forestry Services,63547600
Sheffield City Council,PEOPLE,14031944028,DRUG & ALCOHOL MH -PURCHASING,4260018,RESIDENTIAL COSTS RECOVERED,26/04/2018,J2248585220418,-409.00,ACORN RECOVERY PROJECTS,CT140228460,Drug Abuse - Advice & Counselling,64213100
Sheffield City Council,PEOPLE,14031944028,DRUG & ALCOHOL MH -PURCHASING,4260018,RESIDENTIAL COSTS RECOVERED,17/04/2018,J2232570250318,-102.25,ACORN RECOVERY PROJECTS,CT140228460,Drug Abuse - Advice & Counselling,64213100
Sheffield City Council,PEOPLE,14031944028,DRUG & ALCOHOL MH -PURCHASING,9200002,SHORT TERM RESIDENTIAL CARE,17/04/2018,J2232570250318,550.00,ACORN RECOVERY PROJECTS,CT140228460,Drug Abuse - Advice & Counselling,64213100
Sheffield City Council,PEOPLE,14031944028,DRUG & ALCOHOL MH -PURCHASING,9200002,SHORT TERM RESIDENTIAL CARE,26/04/2018,J2248585220418,"2,200.00",ACORN RECOVERY PROJECTS,CT140228460,Drug Abuse - Advice & Counselling,64213100
Sheffield City Council,PEOPLE,14001200000,DOLS & MENTAL CAPACITY ACT,8550000,OTHER SERVICES,05/04/2018,45813,700.00,ACTION FIRST RECRUITMENT LTD,CT020205170,Assessors,63915700
Sheffield City Council,PEOPLE,14001200000,DOLS & MENTAL CAPACITY ACT,8440000,FEE EXPENSES,06/04/2018,42188,700.00,ACTION FIRST RECRUITMENT LTD,CT020205170,Assessors,63915700
Sheffield City Council,PEOPLE,13003739490,SAFEGUARDING CHILDREN SERVICE,8440000,FEE EXPENSES,06/04/2018,R81IN2/00007779,600.00,ACTION FOR CHILDREN,CT230417020,Charities & Voluntary Organisations,50368201
Sheffield City Council,PEOPLE,13003739490,SAFEGUARDING CHILDREN SERVICE,8440000,FEE EXPENSES,06/04/2018,R81IN2/00007778,600.00,ACTION FOR CHILDREN,CT230417020,Charities & Voluntary Organisations,50368201
Sheffield City Council,PEOPLE,13003739490,SAFEGUARDING CHILDREN SERVICE,8440000,FEE EXPENSES,06/04/2018,R81IN2/00007776,600.00,ACTION FOR CHILDREN,CT230417020,Charities & Voluntary Organisations,50368201
Sheffield City Council,PEOPLE,13003739490,SAFEGUARDING CHILDREN SERVICE,8440000,FEE EXPENSES,06/04/2018,R81IN2/00007777,600.00,ACTION FOR CHILDREN,CT230417020,Charities & Voluntary Organisations,50368201
Sheffield City Council,PEOPLE,13003739490,SAFEGUARDING CHILDREN SERVICE,8440000,FEE EXPENSES,06/04/2018,R81IN2/00007775,600.00,ACTION FOR CHILDREN,CT230417020,Charities & Voluntary Organisations,50368201
Sheffield City Council,PEOPLE,13003739490,SAFEGUARDING CHILDREN SERVICE,8440000,FEE EXPENSES,06/04/2018,R81IN2/00007774,600.00,ACTION FOR CHILDREN,CT230417020,Charities & Voluntary Organisations,50368201
Sheffield City Council,PEOPLE,13003739490,SAFEGUARDING CHILDREN SERVICE,8440000,FEE EXPENSES,06/04/2018,R81IN2/00007773,600.00,ACTION FOR CHILDREN,CT230417020,Charities & Voluntary Organisations,50368201
Sheffield City Council,PEOPLE,13002639284,IFA's UNDER 16,9270009,INDEPENDENT FOSTERING,23/04/2018,R31IN2/0467,"3,975.75",ACTION FOR CHILDREN SERVICES,CT230417020,Charities & Voluntary Organisations,37614000
Sheffield City Council,PEOPLE,13001138078,NURSERY ED FUND,8180000,GRANTS,18/04/2018,FORECAST_SUMMER_18,"73,179.02",ACTIVE COMMUNITY TRUST T/A,CT090453088,Nurseries & Creches,30496800
Sheffield City Council,PLACE,11513400000,EDUCATION SPECIAL NEEDS,7040000,OTHER VEHICLE RUNNING COSTS,18/04/2018,23,"4,198.50",ACTIVE RESPONSE TRANSPORT LTD,CT261676350,Taxis & Private Hire,57570200
Sheffield City Council,PEOPLE,13000336033,SOCIAL CARE TAXIS,7060000,EXTERNAL VEHICLE HIRE,18/04/2018,21,"6,906.28",ACTIVE RESPONSE TRANSPORT LTD,CT261676350,Taxis & Private Hire,57570200
Sheffield City Council,PEOPLE,13000336039,SEN TAXIS,7060000,EXTERNAL VEHICLE HIRE,20/04/2018,22,"15,845.25",ACTIVE RESPONSE TRANSPORT LTD,CT261676350,Taxis & Private Hire,57570200
Sheffield City Council,"POLICY, PERFORMANCE AND COMMS",11705200000,LOCAL ELECTIONS,8370000,PRINTING,12/04/2018,PSI0049207,"10,166.63",ADARE LIMITED,CT060461540,Printers,49261700
Sheffield City Council,"POLICY, PERFORMANCE AND COMMS",11705200000,LOCAL ELECTIONS,8570000,POSTAGE & DELIVERY,25/04/2018,PSI0049442,"100,321.06",ADARE LIMITED,CT060461540,Printers,49261700
Sheffield City Council,PEOPLE,13002838156,GROWING FUTURES,9120000,OTHER AGENCIES,05/04/2018,SIN007304,"13,945.32",ADDACTION,CT230417020,Charities & Voluntary Organisations,58070600
Sheffield City Council,PLACE,12018528103,RISE,8440000,FEE EXPENSES,27/04/2018,INV-0019,"1,000.00",ADDITIVE MANUFACTURING TECHNOLOGIES LTD,CT180561400,Print Finishers,70199100
Sheffield City Council,PEOPLE,14046949661,LUNCH CLUB GRANT,8180000,GRANTS,04/04/2018,MPA20180404296-0012,550.75,ADLINGTON LUNCHEON CLUB,CT230417020,Charities & Voluntary Organisations,29520100
Sheffield City Council,"POLICY, PERFORMANCE AND COMMS",11300100000,PUBLIC HEALTH - DPH,8240000,CONFERENCE EXPENSES,23/04/2018,627,550.00,ADRIAN DAVIS ASSOCIATES,CT209961855,Professional Speakers,70215000
Sheffield City Council,PLACE,12047124410,THE MOOR INDOOR MARKET,8020000,EQUIPMENT LEASE/ RENTAL/ HIRE,04/04/2018,37760556-41,"-1,180.24",ADT FIRE & SECURITY PLC,CT220469175,Security Equipment,29564902
Sheffield City Council,PLACE,12047124410,THE MOOR INDOOR MARKET,8020000,EQUIPMENT LEASE/ RENTAL/ HIRE,04/04/2018,36866739-41,"1,994.38",ADT FIRE & SECURITY PLC,CT220469175,Security Equipment,29564902
Sheffield City Council,PEOPLE,13008933040,RED TAPE CENTRAL,6030000,REPAIRS AND MTCE - RESPONSIVE,12/04/2018,38237643-41,"1,300.92",ADT FIRE & SECURITY PLC,CT9999XXXXX,OUT OF SCOPE FOR SIC MONITORING,61953800
Sheffield City Council,PEOPLE,13003439047,ALDINE HOUSE,6030000,REPAIRS AND MTCE - RESPONSIVE,23/04/2018,38019409-41,311.00,ADT FIRE AND SECURITY PLC,CT220469175,Security Equipment,29564900
Sheffield City Council,PEOPLE,13008933040,RED TAPE CENTRAL,6030000,REPAIRS AND MTCE - RESPONSIVE,27/04/2018,38015090-41,346.10,ADT FIRE AND SECURITY PLC,CT220469175,Security Equipment,29564900
Sheffield City Council,PEOPLE,14031249088,HOUSING RELATED SUPPORT,9060000,SUPPORTING PEOPLE PAYMENTS,23/04/2018,J2243009290418,"25,383.00",ADULLAM HOMES HOUSING ASSOCIATION LTD,CT230417020,Charities & Voluntary Organisations,63400700
Sheffield City Council,LOCAL ENTERPRISE PARTNERSHIP,33075095106,BUSINESS INVESTMENT FUND,1103001,DCLG,13/04/2018,47943,"37,141.49",ADVANCED ENGINEERING TECHNIQUES LTD,CT026560940,Precision Engineers,70209400
Sheffield City Council,PLACE,12075422257,THREE BROOKS ENV SCH - MANOR,8440000,FEE EXPENSES,09/04/2018,28342669,"10,227.69",AECOM LTD,CT079911400,Building Services,58025600
Sheffield City Council,PEOPLE,13002639405,SEMI INDEPENDENT LIVING,9270008,INDEPENDENT RESIDENTIAL PMENT,05/04/2018,1552,721.25,AFFINITY SUTTON HOMES,CT050144166,"Housing Associations, Societies, Trusts",70151000
Sheffield City Council,PEOPLE,14009346039,ADULT SOCIAL CARE PURCHASING,9240000,SUPPORTED LIVING CARE,13/04/2018,P1267433,273.60,AFFINITY TRUST,CT230417020,Charities & Voluntary Organisations,56590900
Sheffield City Council,PEOPLE,14009242034,PURCHASING LEARNING DISABILITI,9240001,FUNDED NURSING CARE (IN,13/04/2018,P1267436.,348.00,AFFINITY TRUST,CT230417020,Charities & Voluntary Organisations,56590900
Sheffield City Council,PEOPLE,14009346039,ADULT SOCIAL CARE PURCHASING,9240001,FUNDED NURSING CARE (IN,13/04/2018,P1267436.,449.48,AFFINITY TRUST,CT230417020,Charities & Voluntary Organisations,56590900
Sheffield City Council,PEOPLE,14009242034,PURCHASING LEARNING DISABILITI,9240000,SUPPORTED LIVING CARE,13/04/2018,P1267433,456.00,AFFINITY TRUST,CT230417020,Charities & Voluntary Organisations,56590900
Sheffield City Council,PEOPLE,14009242034,PURCHASING LEARNING DISABILITI,9240000,SUPPORTED LIVING CARE,13/04/2018,P1267436.,464.00,AFFINITY TRUST,CT230417020,Charities & Voluntary Organisations,56590900
Sheffield City Council,PEOPLE,14009242034,PURCHASING LEARNING DISABILITI,9240001,FUNDED NURSING CARE (IN,13/04/2018,P1267433,478.28,AFFINITY TRUST,CT230417020,Charities & Voluntary Organisations,56590900
Sheffield City Council,PEOPLE,14009242034,PURCHASING LEARNING DISABILITI,9240000,SUPPORTED LIVING CARE,13/04/2018,P1267436.,580.00,AFFINITY TRUST,CT230417020,Charities & Voluntary Organisations,56590900
Sheffield City Council,PEOPLE,14009346039,ADULT SOCIAL CARE PURCHASING,9240000,SUPPORTED LIVING CARE,13/04/2018,P1267436.,696.00,AFFINITY TRUST,CT230417020,Charities & Voluntary Organisations,56590900
Sheffield City Council,PEOPLE,14009242034,PURCHASING LEARNING DISABILITI,9240001,FUNDED NURSING CARE (IN,13/04/2018,P1267436.,815.04,AFFINITY TRUST,CT230417020,Charities & Voluntary Organisations,56590900
Sheffield City Council,PEOPLE,14009242034,PURCHASING LEARNING DISABILITI,9240000,SUPPORTED LIVING CARE,13/04/2018,P1267436.,986.00,AFFINITY TRUST,CT230417020,Charities & Voluntary Organisations,56590900
Sheffield City Council,PEOPLE,14009242034,PURCHASING LEARNING DISABILITI,9240000,SUPPORTED LIVING CARE,13/04/2018,P1267436.,"1,044.00",AFFINITY TRUST,CT230417020,Charities & Voluntary Organisations,56590900
Sheffield City Council,PEOPLE,14009242034,PURCHASING LEARNING DISABILITI,9240000,SUPPORTED LIVING CARE,13/04/2018,P1267433,"1,102.00",AFFINITY TRUST,CT230417020,Charities & Voluntary Organisations,56590900
Sheffield City Council,PEOPLE,14009346039,ADULT SOCIAL CARE PURCHASING,9240000,SUPPORTED LIVING CARE,13/04/2018,P1267433,"1,185.60",AFFINITY TRUST,CT230417020,Charities & Voluntary Organisations,56590900
Sheffield City Council,PEOPLE,14009242034,PURCHASING LEARNING DISABILITI,9240000,SUPPORTED LIVING CARE,13/04/2018,P1267436.,"1,276.00",AFFINITY TRUST,CT230417020,Charities & Voluntary Organisations,56590900
Sheffield City Council,PEOPLE,14009346039,ADULT SOCIAL CARE PURCHASING,9240000,SUPPORTED LIVING CARE,13/04/2018,P1267436.,"1,305.00",AFFINITY TRUST,CT230417020,Charities & Voluntary Organisations,56590900
Sheffield City Council,PEOPLE,14009242034,PURCHASING LEARNING DISABILITI,9240001,FUNDED NURSING CARE (IN,13/04/2018,P1267433,"1,355.11",AFFINITY TRUST,CT230417020,Charities & Voluntary Organisations,56590900
Sheffield City Council,PEOPLE,14009242034,PURCHASING LEARNING DISABILITI,9240001,FUNDED NURSING CARE (IN,13/04/2018,P1267436.,"1,380.64",AFFINITY TRUST,CT230417020,Charities & Voluntary Organisations,56590900
Sheffield City Council,PEOPLE,14009242034,PURCHASING LEARNING DISABILITI,9240000,SUPPORTED LIVING CARE,13/04/2018,P1267433,"1,618.80",AFFINITY TRUST,CT230417020,Charities & Voluntary Organisations,56590900
Sheffield City Council,PEOPLE,14009346039,ADULT SOCIAL CARE PURCHASING,9240000,SUPPORTED LIVING CARE,13/04/2018,P1267436.,"1,856.00",AFFINITY TRUST,CT230417020,Charities & Voluntary Organisations,56590900
Sheffield City Council,PEOPLE,14009242034,PURCHASING LEARNING DISABILITI,9240000,SUPPORTED LIVING CARE,13/04/2018,P1267436.,"1,943.00",AFFINITY TRUST,CT230417020,Charities & Voluntary Organisations,56590900
Sheffield City Council,PEOPLE,14009242075,VOIDS VACANCY COSTS,9190005,EX POOL CLIENTS,06/04/2018,67434,"2,029.44",AFFINITY TRUST,CT230417020,Charities & Voluntary Organisations,56590900
Sheffield City Council,PEOPLE,14009242034,PURCHASING LEARNING DISABILITI,9240000,SUPPORTED LIVING CARE,13/04/2018,P1267433,"2,068.32",AFFINITY TRUST,CT230417020,Charities & Voluntary Organisations,56590900
Sheffield City Council,PEOPLE,14009242034,PURCHASING LEARNING DISABILITI,9240000,SUPPORTED LIVING CARE,13/04/2018,P1267433,"2,184.32",AFFINITY TRUST,CT230417020,Charities & Voluntary Organisations,56590900
Sheffield City Council,PEOPLE,14009346039,ADULT SOCIAL CARE PURCHASING,9240000,SUPPORTED LIVING CARE,13/04/2018,P1267436.,"2,189.52",AFFINITY TRUST,CT230417020,Charities & Voluntary Organisations,56590900
Sheffield City Council,PEOPLE,14009242034,PURCHASING LEARNING DISABILITI,9240000,SUPPORTED LIVING CARE,13/04/2018,P1267433,"2,358.32",AFFINITY TRUST,CT230417020,Charities & Voluntary Organisations,56590900
Sheffield City Council,PEOPLE,14009242034,PURCHASING LEARNING DISABILITI,9240000,SUPPORTED LIVING CARE,13/04/2018,P1267433,"2,778.50",AFFINITY TRUST,CT230417020,Charities & Voluntary Organisations,56590900
Sheffield City Council,PEOPLE,14009242034,PURCHASING LEARNING DISABILITI,9240000,SUPPORTED LIVING CARE,13/04/2018,P1267436.,"3,036.27",AFFINITY TRUST,CT230417020,Charities & Voluntary Organisations,56590900
Sheffield City Council,PEOPLE,14009242034,PURCHASING LEARNING DISABILITI,9240000,SUPPORTED LIVING CARE,13/04/2018,P1267433,"3,315.59",AFFINITY TRUST,CT230417020,Charities & Voluntary Organisations,56590900
Sheffield City Council,PEOPLE,14009242034,PURCHASING LEARNING DISABILITI,9240000,SUPPORTED LIVING CARE,13/04/2018,P1267433,"3,973.00",AFFINITY TRUST,CT230417020,Charities & Voluntary Organisations,56590900
Sheffield City Council,PEOPLE,14009242034,PURCHASING LEARNING DISABILITI,9240000,SUPPORTED LIVING CARE,13/04/2018,P1267436.,"4,184.94",AFFINITY TRUST,CT230417020,Charities & Voluntary Organisations,56590900
Sheffield City Council,PEOPLE,14009242034,PURCHASING LEARNING DISABILITI,9240000,SUPPORTED LIVING CARE,13/04/2018,P1267436.,"5,158.96",AFFINITY TRUST,CT230417020,Charities & Voluntary Organisations,56590900
Sheffield City Council,PEOPLE,14009242034,PURCHASING LEARNING DISABILITI,9240000,SUPPORTED LIVING CARE,13/04/2018,P1267436.,"5,923.24",AFFINITY TRUST,CT230417020,Charities & Voluntary Organisations,56590900
Sheffield City Council,PEOPLE,14009242034,PURCHASING LEARNING DISABILITI,9240000,SUPPORTED LIVING CARE,13/04/2018,P1267433,"6,639.32",AFFINITY TRUST,CT230417020,Charities & Voluntary Organisations,56590900
Sheffield City Council,PEOPLE,14009242034,PURCHASING LEARNING DISABILITI,9240000,SUPPORTED LIVING CARE,13/04/2018,P1267433,"7,641.16",AFFINITY TRUST,CT230417020,Charities & Voluntary Organisations,56590900
Sheffield City Council,PEOPLE,14009242034,PURCHASING LEARNING DISABILITI,9240001,FUNDED NURSING CARE (IN,13/04/2018,P1267433,"8,119.44",AFFINITY TRUST,CT230417020,Charities & Voluntary Organisations,56590900
Sheffield City Council,PEOPLE,14009242076,TUPE COSTS,9190005,EX POOL CLIENTS,18/04/2018,67448,"9,321.96",AFFINITY TRUST,CT230417020,Charities & Voluntary Organisations,56590900
Sheffield City Council,PEOPLE,14009242034,PURCHASING LEARNING DISABILITI,9240001,FUNDED NURSING CARE (IN,13/04/2018,P1267433,"9,671.21",AFFINITY TRUST,CT230417020,Charities & Voluntary Organisations,56590900
Sheffield City Council,PEOPLE,14009242034,PURCHASING LEARNING DISABILITI,9240000,SUPPORTED LIVING CARE,19/04/2018,65799/67449,"13,952.04",AFFINITY TRUST,CT230417020,Charities & Voluntary Organisations,56590900
Sheffield City Council,PEOPLE,14009242034,PURCHASING LEARNING DISABILITI,9240000,SUPPORTED LIVING CARE,19/04/2018,65799/67449,"13,952.04",AFFINITY TRUST,CT230417020,Charities & Voluntary Organisations,56590900
Sheffield City Council,PEOPLE,14009242034,PURCHASING LEARNING DISABILITI,9240000,SUPPORTED LIVING CARE,19/04/2018,65799/67449,"16,820.00",AFFINITY TRUST,CT230417020,Charities & Voluntary Organisations,56590900
Sheffield City Council,PEOPLE,14009242076,TUPE COSTS,9190005,EX POOL CLIENTS,06/04/2018,67437,"18,916.90",AFFINITY TRUST,CT230417020,Charities & Voluntary Organisations,56590900
Sheffield City Council,PEOPLE,14009242034,PURCHASING LEARNING DISABILITI,9240000,SUPPORTED LIVING CARE,19/04/2018,65799/67449,"23,780.00",AFFINITY TRUST,CT230417020,Charities & Voluntary Organisations,56590900
Sheffield City Council,"POLICY, PERFORMANCE AND COMMS",11702700000,EQUALITIES & INVOLVEMENT,9120000,OTHER AGENCIES,25/04/2018,50473,"5,625.00",AGE UK SHEFFIELD,CT230417020,Charities & Voluntary Organisations,58071000
Sheffield City Council,PLACE,12076993113,BB2 CITY CENTRE PACKAGE,1194000,OTHER FEES,16/04/2018,20180016-LTD,"7,038.00",AIMSUN LIMITED,CT170220703,Computer Systems & Software (development,70127100
Sheffield City Council,PLACE,12076993113,BB2 CITY CENTRE PACKAGE,1194000,OTHER FEES,16/04/2018,20180016-LTD,"11,602.50",AIMSUN LIMITED,CT170220703,Computer Systems & Software (development,70127100
Sheffield City Council,PEOPLE,13007933018,100 APPRENTICES,9120000,OTHER AGENCIES,11/04/2018,AAI30902,292.40,AIR ACCESSORIES SHEFFIELD LTD,CT079931589,Engineering Services,62906000
Sheffield City Council,PLACE,11853000000,CSSR CORE CONTRACT,8440000,FEE EXPENSES,09/04/2018,11084,"2,915.00",AIR ENVIRONMENTAL LTD,CT072502880,Air Conditioning Equipment & Systems,50580200
Sheffield City Council,PEOPLE,13000236021,CATERING PREMISES & EQUIPMENT,8010000,EQUIPMENT PURCHASE AND REPAIR,18/04/2018,29262,"2,510.71",AIRMASTER AIR CONDITIONING LTD,CT079902950,Air Conditioning & Refrigeration Contrac,63564100
Sheffield City Council,PEOPLE,13000236021,CATERING PREMISES & EQUIPMENT,8010000,EQUIPMENT PURCHASE AND REPAIR,18/04/2018,29261,"3,148.20",AIRMASTER AIR CONDITIONING LTD,CT079902950,Air Conditioning & Refrigeration Contrac,63564100
Sheffield City Council,PLACE,11850100026,GAS SERVICING & REPAIRS,8530001,SUBCONTRACTOR GENERAL,23/04/2018,116937,381.92,AJH PUMP SUPPLY AND REPAIR LTD,CT073862590,"Pumps - Sales, Servicing & Repairs",64494400
Sheffield City Council,PLACE,11850100026,GAS SERVICING & REPAIRS,8530001,SUBCONTRACTOR GENERAL,23/04/2018,116838,450.00,AJH PUMP SUPPLY AND REPAIR LTD,CT073862590,"Pumps - Sales, Servicing & Repairs",64494400
Sheffield City Council,PLACE,11850100021,DISTRICT & COMMERCIAL HEATING,8530001,SUBCONTRACTOR GENERAL,06/04/2018,116597,"1,585.60",AJH PUMP SUPPLY AND REPAIR LTD,CT073862590,"Pumps - Sales, Servicing & Repairs",64494400
Sheffield City Council,PLACE,11850100021,DISTRICT & COMMERCIAL HEATING,8530001,SUBCONTRACTOR GENERAL,06/04/2018,116598,"1,779.75",AJH PUMP SUPPLY AND REPAIR LTD,CT073862590,"Pumps - Sales, Servicing & Repairs",64494400
Sheffield City Council,PLACE,11850100026,GAS SERVICING & REPAIRS,8530001,SUBCONTRACTOR GENERAL,23/04/2018,116839,"1,806.90",AJH PUMP SUPPLY AND REPAIR LTD,CT073862590,"Pumps - Sales, Servicing & Repairs",64494400
Sheffield City Council,PLACE,11850100026,GAS SERVICING & REPAIRS,8530001,SUBCONTRACTOR GENERAL,06/04/2018,116627,"3,930.00",AJH PUMP SUPPLY AND REPAIR LTD,CT073862590,"Pumps - Sales, Servicing & Repairs",64494400
Sheffield City Council,PEOPLE,14009346039,ADULT SOCIAL CARE PURCHASING,9200001,CONTINUING RESIDENTIAL CARE,04/04/2018,J2219705220418,"-4,092.00",AKARI CARE LTD (SILVER LODGE),CT230164710,Residential Care Homes,36176300
Sheffield City Council,PEOPLE,14009346039,ADULT SOCIAL CARE PURCHASING,9200001,CONTINUING RESIDENTIAL CARE,04/04/2018,J2219705220418,"-1,612.00",AKARI CARE LTD (SILVER LODGE),CT230164710,Residential Care Homes,36176300
Sheffield City Council,PEOPLE,14009346039,ADULT SOCIAL CARE PURCHASING,4260018,RESIDENTIAL COSTS RECOVERED,24/04/2018,J2227866220418,"-1,198.14",AKARI CARE LTD (SILVER LODGE),CT230164710,Residential Care Homes,36176300
Sheffield City Council,PEOPLE,14009346039,ADULT SOCIAL CARE PURCHASING,4260018,RESIDENTIAL COSTS RECOVERED,24/04/2018,J2248800200518,"-1,039.88",AKARI CARE LTD (SILVER LODGE),CT230164710,Residential Care Homes,36176300
Sheffield City Council,PEOPLE,14009346039,ADULT SOCIAL CARE PURCHASING,4260018,RESIDENTIAL COSTS RECOVERED,24/04/2018,J2248800200518,-840.52,AKARI CARE LTD (SILVER LODGE),CT230164710,Residential Care Homes,36176300
Sheffield City Council,PEOPLE,14009346039,ADULT SOCIAL CARE PURCHASING,4260018,RESIDENTIAL COSTS RECOVERED,04/04/2018,J2219705220418,-831.08,AKARI CARE LTD (SILVER LODGE),CT230164710,Residential Care Homes,36176300
Sheffield City Council,PEOPLE,14009346039,ADULT SOCIAL CARE PURCHASING,4260018,RESIDENTIAL COSTS RECOVERED,24/04/2018,J2248800200518,-784.48,AKARI CARE LTD (SILVER LODGE),CT230164710,Residential Care Homes,36176300
Sheffield City Council,PEOPLE,14009346039,ADULT SOCIAL CARE PURCHASING,4260018,RESIDENTIAL COSTS RECOVERED,04/04/2018,J2219705220418,-775.66,AKARI CARE LTD (SILVER LODGE),CT230164710,Residential Care Homes,36176300
Sheffield City Council,PEOPLE,14009346039,ADULT SOCIAL CARE PURCHASING,4260018,RESIDENTIAL COSTS RECOVERED,24/04/2018,J2248800200518,-767.32,AKARI CARE LTD (SILVER LODGE),CT230164710,Residential Care Homes,36176300
Sheffield City Council,PEOPLE,14009346039,ADULT SOCIAL CARE PURCHASING,4260018,RESIDENTIAL COSTS RECOVERED,04/04/2018,J2219705220418,-758.70,AKARI CARE LTD (SILVER LODGE),CT230164710,Residential Care Homes,36176300
Sheffield City Council,PEOPLE,14009346039,ADULT SOCIAL CARE PURCHASING,4260018,RESIDENTIAL COSTS RECOVERED,24/04/2018,J2248800200518,-692.88,AKARI CARE LTD (SILVER LODGE),CT230164710,Residential Care Homes,36176300
Sheffield City Council,PEOPLE,14009346039,ADULT SOCIAL CARE PURCHASING,4260018,RESIDENTIAL COSTS RECOVERED,24/04/2018,J2248800200518,-664.92,AKARI CARE LTD (SILVER LODGE),CT230164710,Residential Care Homes,36176300
Sheffield City Council,PEOPLE,14009346039,ADULT SOCIAL CARE PURCHASING,4260018,RESIDENTIAL COSTS RECOVERED,04/04/2018,J2219705220418,-657.44,AKARI CARE LTD (SILVER LODGE),CT230164710,Residential Care Homes,36176300
Sheffield City Council,PEOPLE,14009346039,ADULT SOCIAL CARE PURCHASING,4260018,RESIDENTIAL COSTS RECOVERED,24/04/2018,J2248800200518,-611.08,AKARI CARE LTD (SILVER LODGE),CT230164710,Residential Care Homes,36176300
Sheffield City Council,PEOPLE,14009346039,ADULT SOCIAL CARE PURCHASING,4260018,RESIDENTIAL COSTS RECOVERED,04/04/2018,J2219705220418,-604.22,AKARI CARE LTD (SILVER LODGE),CT230164710,Residential Care Homes,36176300
Sheffield City Council,PEOPLE,14009346039,ADULT SOCIAL CARE PURCHASING,4260018,RESIDENTIAL COSTS RECOVERED,24/04/2018,J2248800200518,-572.80,AKARI CARE LTD (SILVER LODGE),CT230164710,Residential Care Homes,36176300
Sheffield City Council,PEOPLE,14009346039,ADULT SOCIAL CARE PURCHASING,4260018,RESIDENTIAL COSTS RECOVERED,04/04/2018,J2219705220418,-566.36,AKARI CARE LTD (SILVER LODGE),CT230164710,Residential Care Homes,36176300
Sheffield City Council,PEOPLE,14009346039,ADULT SOCIAL CARE PURCHASING,4260018,RESIDENTIAL COSTS RECOVERED,24/04/2018,J2248800200518,-564.12,AKARI CARE LTD (SILVER LODGE),CT230164710,Residential Care Homes,36176300
Sheffield City Council,PEOPLE,14009346039,ADULT SOCIAL CARE PURCHASING,4260018,RESIDENTIAL COSTS RECOVERED,04/04/2018,J2219705220418,-557.78,AKARI CARE LTD (SILVER LODGE),CT230164710,Residential Care Homes,36176300
Sheffield City Council,PEOPLE,14009346039,ADULT SOCIAL CARE PURCHASING,4260018,RESIDENTIAL COSTS RECOVERED,24/04/2018,J2248800200518,-552.40,AKARI CARE LTD (SILVER LODGE),CT230164710,Residential Care Homes,36176300
Sheffield City Council,PEOPLE,14009346039,ADULT SOCIAL CARE PURCHASING,4260018,RESIDENTIAL COSTS RECOVERED,24/04/2018,J2248800200518,-550.76,AKARI CARE LTD (SILVER LODGE),CT230164710,Residential Care Homes,36176300
Sheffield City Council,PEOPLE,14009346039,ADULT SOCIAL CARE PURCHASING,4260018,RESIDENTIAL COSTS RECOVERED,24/04/2018,J2248800200518,-550.44,AKARI CARE LTD (SILVER LODGE),CT230164710,Residential Care Homes,36176300
Sheffield City Council,PEOPLE,14009346039,ADULT SOCIAL CARE PURCHASING,4260018,RESIDENTIAL COSTS RECOVERED,04/04/2018,J2219705220418,-545.10,AKARI CARE LTD (SILVER LODGE),CT230164710,Residential Care Homes,36176300
Sheffield City Council,PEOPLE,14009346039,ADULT SOCIAL CARE PURCHASING,4260018,RESIDENTIAL COSTS RECOVERED,04/04/2018,J2219705220418,-544.56,AKARI CARE LTD (SILVER LODGE),CT230164710,Residential Care Homes,36176300
Sheffield City Council,PEOPLE,14009346039,ADULT SOCIAL CARE PURCHASING,4260018,RESIDENTIAL COSTS RECOVERED,04/04/2018,J2219705220418,-544.26,AKARI CARE LTD (SILVER LODGE),CT230164710,Residential Care Homes,36176300
Sheffield City Council,PEOPLE,14009346039,ADULT SOCIAL CARE PURCHASING,4260018,RESIDENTIAL COSTS RECOVERED,04/04/2018,J2219705220418,-532.68,AKARI CARE LTD (SILVER LODGE),CT230164710,Residential Care Homes,36176300
Sheffield City Council,PEOPLE,14009346039,ADULT SOCIAL CARE PURCHASING,4260018,RESIDENTIAL COSTS RECOVERED,24/04/2018,J2248800200518,-532.68,AKARI CARE LTD (SILVER LODGE),CT230164710,Residential Care Homes,36176300
Sheffield City Council,PEOPLE,14009346039,ADULT SOCIAL CARE PURCHASING,4260018,RESIDENTIAL COSTS RECOVERED,04/04/2018,J2219705220418,-444.16,AKARI CARE LTD (SILVER LODGE),CT230164710,Residential Care Homes,36176300
Sheffield City Council,PEOPLE,14009346039,ADULT SOCIAL CARE PURCHASING,4260018,RESIDENTIAL COSTS RECOVERED,24/04/2018,J2248800200518,-444.16,AKARI CARE LTD (SILVER LODGE),CT230164710,Residential Care Homes,36176300
Sheffield City Council,PEOPLE,14009346039,ADULT SOCIAL CARE PURCHASING,4260018,RESIDENTIAL COSTS RECOVERED,24/04/2018,J2227866220418,-267.22,AKARI CARE LTD (SILVER LODGE),CT230164710,Residential Care Homes,36176300
Sheffield City Council,PEOPLE,14009346039,ADULT SOCIAL CARE PURCHASING,4260018,RESIDENTIAL COSTS RECOVERED,04/04/2018,J2219540250318,-145.80,AKARI CARE LTD (SILVER LODGE),CT230164710,Residential Care Homes,36176300
Sheffield City Council,PEOPLE,14009346039,ADULT SOCIAL CARE PURCHASING,4260018,RESIDENTIAL COSTS RECOVERED,04/04/2018,J2196126250218,-134.45,AKARI CARE LTD (SILVER LODGE),CT230164710,Residential Care Homes,36176300
Sheffield City Council,PEOPLE,14009346039,ADULT SOCIAL CARE PURCHASING,9200002,SHORT TERM RESIDENTIAL CARE,04/04/2018,J2219540250318,333.43,AKARI CARE LTD (SILVER LODGE),CT230164710,Residential Care Homes,36176300
Sheffield City Council,PEOPLE,14009346039,ADULT SOCIAL CARE PURCHASING,9200002,SHORT TERM RESIDENTIAL CARE,04/04/2018,J2196126250218,434.00,AKARI CARE LTD (SILVER LODGE),CT230164710,Residential Care Homes,36176300
Sheffield City Council,PEOPLE,14009346039,ADULT SOCIAL CARE PURCHASING,4260018,RESIDENTIAL COSTS RECOVERED,04/04/2018,J2219705220418,552.28,AKARI CARE LTD (SILVER LODGE),CT230164710,Residential Care Homes,36176300
Sheffield City Council,PEOPLE,14009346039,ADULT SOCIAL CARE PURCHASING,9200001,CONTINUING RESIDENTIAL CARE,04/04/2018,J2219705220418,868.00,AKARI CARE LTD (SILVER LODGE),CT230164710,Residential Care Homes,36176300
Sheffield City Council,PEOPLE,14009346039,ADULT SOCIAL CARE PURCHASING,9200001,CONTINUING RESIDENTIAL CARE,24/04/2018,J2248800200518,868.00,AKARI CARE LTD (SILVER LODGE),CT230164710,Residential Care Homes,36176300
Sheffield City Council,PEOPLE,14009346039,ADULT SOCIAL CARE PURCHASING,9200001,CONTINUING RESIDENTIAL CARE,04/04/2018,J2219705220418,"1,736.00",AKARI CARE LTD (SILVER LODGE),CT230164710,Residential Care Homes,36176300
Sheffield City Council,PEOPLE,14009346039,ADULT SOCIAL CARE PURCHASING,9200001,CONTINUING RESIDENTIAL CARE,04/04/2018,J2219705220418,"1,736.00",AKARI CARE LTD (SILVER LODGE),CT230164710,Residential Care Homes,36176300
Sheffield City Council,PEOPLE,14009346039,ADULT SOCIAL CARE PURCHASING,9200001,CONTINUING RESIDENTIAL CARE,04/04/2018,J2219705220418,"1,736.00",AKARI CARE LTD (SILVER LODGE),CT230164710,Residential Care Homes,36176300
Sheffield City Council,PEOPLE,14009346039,ADULT SOCIAL CARE PURCHASING,9200001,CONTINUING RESIDENTIAL CARE,04/04/2018,J2219705220418,"1,736.00",AKARI CARE LTD (SILVER LODGE),CT230164710,Residential Care Homes,36176300
Sheffield City Council,PEOPLE,14009346039,ADULT SOCIAL CARE PURCHASING,9200001,CONTINUING RESIDENTIAL CARE,04/04/2018,J2219705220418,"1,736.00",AKARI CARE LTD (SILVER LODGE),CT230164710,Residential Care Homes,36176300
Sheffield City Council,PEOPLE,14009346039,ADULT SOCIAL CARE PURCHASING,9200001,CONTINUING RESIDENTIAL CARE,04/04/2018,J2219705220418,"1,736.00",AKARI CARE LTD (SILVER LODGE),CT230164710,Residential Care Homes,36176300
Sheffield City Council,PEOPLE,14009346039,ADULT SOCIAL CARE PURCHASING,9200001,CONTINUING RESIDENTIAL CARE,04/04/2018,J2219705220418,"1,736.00",AKARI CARE LTD (SILVER LODGE),CT230164710,Residential Care Homes,36176300
Sheffield City Council,PEOPLE,14009346039,ADULT SOCIAL CARE PURCHASING,9200001,CONTINUING RESIDENTIAL CARE,04/04/2018,J2219705220418,"1,736.00",AKARI CARE LTD (SILVER LODGE),CT230164710,Residential Care Homes,36176300
Sheffield City Council,PEOPLE,14009346039,ADULT SOCIAL CARE PURCHASING,9200001,CONTINUING RESIDENTIAL CARE,04/04/2018,J2219705220418,"1,736.00",AKARI CARE LTD (SILVER LODGE),CT230164710,Residential Care Homes,36176300
Sheffield City Council,PEOPLE,14009346039,ADULT SOCIAL CARE PURCHASING,9200001,CONTINUING RESIDENTIAL CARE,04/04/2018,J2219705220418,"1,736.00",AKARI CARE LTD (SILVER LODGE),CT230164710,Residential Care Homes,36176300
Sheffield City Council,PEOPLE,14009346039,ADULT SOCIAL CARE PURCHASING,9200001,CONTINUING RESIDENTIAL CARE,04/04/2018,J2219705220418,"1,736.00",AKARI CARE LTD (SILVER LODGE),CT230164710,Residential Care Homes,36176300
Sheffield City Council,PEOPLE,14009346039,ADULT SOCIAL CARE PURCHASING,9200001,CONTINUING RESIDENTIAL CARE,04/04/2018,J2219705220418,"1,736.00",AKARI CARE LTD (SILVER LODGE),CT230164710,Residential Care Homes,36176300
Sheffield City Council,PEOPLE,14009346039,ADULT SOCIAL CARE PURCHASING,9200001,CONTINUING RESIDENTIAL CARE,24/04/2018,J2248800200518,"1,736.00",AKARI CARE LTD (SILVER LODGE),CT230164710,Residential Care Homes,36176300
Sheffield City Council,PEOPLE,14009346039,ADULT SOCIAL CARE PURCHASING,9200001,CONTINUING RESIDENTIAL CARE,24/04/2018,J2248800200518,"1,736.00",AKARI CARE LTD (SILVER LODGE),CT230164710,Residential Care Homes,36176300
Sheffield City Council,PEOPLE,14009346039,ADULT SOCIAL CARE PURCHASING,9200001,CONTINUING RESIDENTIAL CARE,24/04/2018,J2248800200518,"1,736.00",AKARI CARE LTD (SILVER LODGE),CT230164710,Residential Care Homes,36176300
Sheffield City Council,PEOPLE,14009346039,ADULT SOCIAL CARE PURCHASING,9200001,CONTINUING RESIDENTIAL CARE,24/04/2018,J2248800200518,"1,736.00",AKARI CARE LTD (SILVER LODGE),CT230164710,Residential Care Homes,36176300
Sheffield City Council,PEOPLE,14009346039,ADULT SOCIAL CARE PURCHASING,9200001,CONTINUING RESIDENTIAL CARE,24/04/2018,J2248800200518,"1,736.00",AKARI CARE LTD (SILVER LODGE),CT230164710,Residential Care Homes,36176300
Sheffield City Council,PEOPLE,14009346039,ADULT SOCIAL CARE PURCHASING,9200001,CONTINUING RESIDENTIAL CARE,24/04/2018,J2248800200518,"1,736.00",AKARI CARE LTD (SILVER LODGE),CT230164710,Residential Care Homes,36176300
Sheffield City Council,PEOPLE,14009346039,ADULT SOCIAL CARE PURCHASING,9200001,CONTINUING RESIDENTIAL CARE,24/04/2018,J2248800200518,"1,736.00",AKARI CARE LTD (SILVER LODGE),CT230164710,Residential Care Homes,36176300
Sheffield City Council,PEOPLE,14009346039,ADULT SOCIAL CARE PURCHASING,9200001,CONTINUING RESIDENTIAL CARE,24/04/2018,J2248800200518,"1,736.00",AKARI CARE LTD (SILVER LODGE),CT230164710,Residential Care Homes,36176300
Sheffield City Council,PEOPLE,14009346039,ADULT SOCIAL CARE PURCHASING,9200001,CONTINUING RESIDENTIAL CARE,24/04/2018,J2248800200518,"1,736.00",AKARI CARE LTD (SILVER LODGE),CT230164710,Residential Care Homes,36176300
Sheffield City Council,PEOPLE,14009346039,ADULT SOCIAL CARE PURCHASING,9200001,CONTINUING RESIDENTIAL CARE,24/04/2018,J2248800200518,"1,736.00",AKARI CARE LTD (SILVER LODGE),CT230164710,Residential Care Homes,36176300
Sheffield City Council,PEOPLE,14009346039,ADULT SOCIAL CARE PURCHASING,9200001,CONTINUING RESIDENTIAL CARE,24/04/2018,J2248800200518,"1,736.00",AKARI CARE LTD (SILVER LODGE),CT230164710,Residential Care Homes,36176300
Sheffield City Council,PEOPLE,14009346039,ADULT SOCIAL CARE PURCHASING,9200001,CONTINUING RESIDENTIAL CARE,24/04/2018,J2248800200518,"1,736.00",AKARI CARE LTD (SILVER LODGE),CT230164710,Residential Care Homes,36176300
Sheffield City Council,PLACE,11513300000,WORKSHOPS,8020000,EQUIPMENT LEASE/ RENTAL/ HIRE,06/04/2018,5334,"5,080.00",ALFRED BEKKER API LTD,CT261982140,Vehicle Conversions,70154600
Sheffield City Council,PEOPLE,14009346039,ADULT SOCIAL CARE PURCHASING,4260018,RESIDENTIAL COSTS RECOVERED,04/04/2018,J2219705220418,"1,763.61",AKARI CARE LTD (SILVER LODGE),CT230164710,Residential Care Homes,36176300
Sheffield City Council,PEOPLE,14009346039,ADULT SOCIAL CARE PURCHASING,9200001,CONTINUING RESIDENTIAL CARE,24/04/2018,J2248800200518,"1,852.00",AKARI CARE LTD (SILVER LODGE),CT230164710,Residential Care Homes,36176300
Sheffield City Council,PEOPLE,14009346039,ADULT SOCIAL CARE PURCHASING,9200001,CONTINUING RESIDENTIAL CARE,24/04/2018,J2248800200518,"3,460.00",AKARI CARE LTD (SILVER LODGE),CT230164710,Residential Care Homes,36176300
Sheffield City Council,PEOPLE,14009346039,ADULT SOCIAL CARE PURCHASING,9200001,CONTINUING RESIDENTIAL CARE,24/04/2018,J2227866220418,"3,902.00",AKARI CARE LTD (SILVER LODGE),CT230164710,Residential Care Homes,36176300
Sheffield City Council,PLACE,12018628159,CASTLEGATE,8440000,FEE EXPENSES,17/04/2018,9645,"6,725.00",ALAN WOOD AND PARTNERS,CT070731590,Engineers - Consulting,70209500
Sheffield City Council,PEOPLE,14009346039,ADULT SOCIAL CARE PURCHASING,4260011,NURSING COSTS RECOVERED,25/04/2018,J2217708250318,-518.59,ALBEMARLE HALL LIMITED,CT230753350,Nursing Homes,70200500
Sheffield City Council,PEOPLE,14009346039,ADULT SOCIAL CARE PURCHASING,9210001,CONTINUING NURSING CARE,25/04/2018,J2217708250318,"2,352.86",ALBEMARLE HALL LIMITED,CT230753350,Nursing Homes,70200500
Sheffield City Council,PLACE,12018728100,BUSINESS GROWTH TEAM,8270000,SUBSCRIPTIONS,24/04/2018,INV-18056,"5,851.00",ALCIUM SOFTWARE LTD,CT170220703,Computer Systems & Software (development,38551300
Sheffield City Council,PLACE,11518915190,HARD FM,6020000,REPAIRS AND MTCE - PROGRAMMED,12/04/2018,SIN40115,"1,914.00",ALERTER GROUP PLC,CT130835290,Fire Alarm Systems,31740200
Sheffield City Council,PEOPLE,14009346039,ADULT SOCIAL CARE PURCHASING,4260011,NURSING COSTS RECOVERED,25/04/2018,J2248801200518,"-1,363.92",ALEXANDER COURT CARE HOME,CT230164710,Residential Care Homes,36188900
Sheffield City Council,PEOPLE,14009346039,ADULT SOCIAL CARE PURCHASING,4260018,RESIDENTIAL COSTS RECOVERED,25/04/2018,J2248801200518,"-1,191.92",ALEXANDER COURT CARE HOME,CT230164710,Residential Care Homes,36188900
Sheffield City Council,PEOPLE,14009346039,ADULT SOCIAL CARE PURCHASING,4260018,RESIDENTIAL COSTS RECOVERED,25/04/2018,J2248801200518,-967.24,ALEXANDER COURT CARE HOME,CT230164710,Residential Care Homes,36188900
Sheffield City Council,PEOPLE,14009346039,ADULT SOCIAL CARE PURCHASING,4260018,RESIDENTIAL COSTS RECOVERED,25/04/2018,J2248801200518,-855.12,ALEXANDER COURT CARE HOME,CT230164710,Residential Care Homes,36188900
Sheffield City Council,PEOPLE,14009346039,ADULT SOCIAL CARE PURCHASING,4260011,NURSING COSTS RECOVERED,25/04/2018,J2248801200518,-826.04,ALEXANDER COURT CARE HOME,CT230164710,Residential Care Homes,36188900
Sheffield City Council,PEOPLE,14009346039,ADULT SOCIAL CARE PURCHASING,4260018,RESIDENTIAL COSTS RECOVERED,25/04/2018,J2248801200518,-792.40,ALEXANDER COURT CARE HOME,CT230164710,Residential Care Homes,36188900
Sheffield City Council,PEOPLE,14009346039,ADULT SOCIAL CARE PURCHASING,4260011,NURSING COSTS RECOVERED,25/04/2018,J2248801200518,-792.40,ALEXANDER COURT CARE HOME,CT230164710,Residential Care Homes,36188900
Sheffield City Council,PEOPLE,14009346039,ADULT SOCIAL CARE PURCHASING,4260011,NURSING COSTS RECOVERED,25/04/2018,J2248801200518,-692.72,ALEXANDER COURT CARE HOME,CT230164710,Residential Care Homes,36188900
Sheffield City Council,PEOPLE,14009346039,ADULT SOCIAL CARE PURCHASING,4260011,NURSING COSTS RECOVERED,25/04/2018,J2248801200518,-634.88,ALEXANDER COURT CARE HOME,CT230164710,Residential Care Homes,36188900
Sheffield City Council,PEOPLE,14009346039,ADULT SOCIAL CARE PURCHASING,4260011,NURSING COSTS RECOVERED,25/04/2018,J2248801200518,-631.44,ALEXANDER COURT CARE HOME,CT230164710,Residential Care Homes,36188900
Sheffield City Council,PEOPLE,14009346039,ADULT SOCIAL CARE PURCHASING,4260011,NURSING COSTS RECOVERED,25/04/2018,J2248801200518,-618.36,ALEXANDER COURT CARE HOME,CT230164710,Residential Care Homes,36188900
Sheffield City Council,PEOPLE,14009346039,ADULT SOCIAL CARE PURCHASING,4260011,NURSING COSTS RECOVERED,25/04/2018,J2248801200518,-616.96,ALEXANDER COURT CARE HOME,CT230164710,Residential Care Homes,36188900
Sheffield City Council,PEOPLE,14009346039,ADULT SOCIAL CARE PURCHASING,4260018,RESIDENTIAL COSTS RECOVERED,25/04/2018,J2248801200518,-615.00,ALEXANDER COURT CARE HOME,CT230164710,Residential Care Homes,36188900
Sheffield City Council,PEOPLE,14009346039,ADULT SOCIAL CARE PURCHASING,4260018,RESIDENTIAL COSTS RECOVERED,25/04/2018,J2248801200518,-605.28,ALEXANDER COURT CARE HOME,CT230164710,Residential Care Homes,36188900
Sheffield City Council,PEOPLE,14009346039,ADULT SOCIAL CARE PURCHASING,4260018,RESIDENTIAL COSTS RECOVERED,25/04/2018,J2248801200518,-581.36,ALEXANDER COURT CARE HOME,CT230164710,Residential Care Homes,36188900
Sheffield City Council,PEOPLE,14009346039,ADULT SOCIAL CARE PURCHASING,4260011,NURSING COSTS RECOVERED,25/04/2018,J2248801200518,-552.40,ALEXANDER COURT CARE HOME,CT230164710,Residential Care Homes,36188900
Sheffield City Council,PEOPLE,14009346039,ADULT SOCIAL CARE PURCHASING,4260011,NURSING COSTS RECOVERED,25/04/2018,J2248801200518,-552.40,ALEXANDER COURT CARE HOME,CT230164710,Residential Care Homes,36188900
Sheffield City Council,PEOPLE,14009346039,ADULT SOCIAL CARE PURCHASING,4260018,RESIDENTIAL COSTS RECOVERED,25/04/2018,J2248801200518,-552.40,ALEXANDER COURT CARE HOME,CT230164710,Residential Care Homes,36188900
Sheffield City Council,PEOPLE,14009346039,ADULT SOCIAL CARE PURCHASING,4260011,NURSING COSTS RECOVERED,25/04/2018,J2248801200518,-532.96,ALEXANDER COURT CARE HOME,CT230164710,Residential Care Homes,36188900
Sheffield City Council,PEOPLE,14009346039,ADULT SOCIAL CARE PURCHASING,4260018,RESIDENTIAL COSTS RECOVERED,25/04/2018,J2248801200518,-529.80,ALEXANDER COURT CARE HOME,CT230164710,Residential Care Homes,36188900
Sheffield City Council,PEOPLE,14009346039,ADULT SOCIAL CARE PURCHASING,4260018,RESIDENTIAL COSTS RECOVERED,25/04/2018,J2248801200518,-479.04,ALEXANDER COURT CARE HOME,CT230164710,Residential Care Homes,36188900
Sheffield City Council,PEOPLE,14009346039,ADULT SOCIAL CARE PURCHASING,4260018,RESIDENTIAL COSTS RECOVERED,25/04/2018,J2248801200518,-439.34,ALEXANDER COURT CARE HOME,CT230164710,Residential Care Homes,36188900
Sheffield City Council,PEOPLE,14009346039,ADULT SOCIAL CARE PURCHASING,4260018,RESIDENTIAL COSTS RECOVERED,25/04/2018,J2248801200518,-299.20,ALEXANDER COURT CARE HOME,CT230164710,Residential Care Homes,36188900
Sheffield City Council,PEOPLE,14009346039,ADULT SOCIAL CARE PURCHASING,4260011,NURSING COSTS RECOVERED,25/04/2018,J2240057220418,-12.64,ALEXANDER COURT CARE HOME,CT230164710,Residential Care Homes,36188900
Sheffield City Council,PEOPLE,14009346039,ADULT SOCIAL CARE PURCHASING,4260018,RESIDENTIAL COSTS RECOVERED,25/04/2018,J2240057220418,-10.70,ALEXANDER COURT CARE HOME,CT230164710,Residential Care Homes,36188900
Sheffield City Council,PEOPLE,14009346039,ADULT SOCIAL CARE PURCHASING,4260018,RESIDENTIAL COSTS RECOVERED,25/04/2018,J2240057220418,-8.18,ALEXANDER COURT CARE HOME,CT230164710,Residential Care Homes,36188900
Sheffield City Council,PEOPLE,14009346039,ADULT SOCIAL CARE PURCHASING,4260011,NURSING COSTS RECOVERED,25/04/2018,J2240057220418,-7.78,ALEXANDER COURT CARE HOME,CT230164710,Residential Care Homes,36188900
Sheffield City Council,PEOPLE,14009346039,ADULT SOCIAL CARE PURCHASING,4260011,NURSING COSTS RECOVERED,25/04/2018,J2240057220418,-7.30,ALEXANDER COURT CARE HOME,CT230164710,Residential Care Homes,36188900
Sheffield City Council,PEOPLE,14009346039,ADULT SOCIAL CARE PURCHASING,4260011,NURSING COSTS RECOVERED,25/04/2018,J2240057220418,-7.30,ALEXANDER COURT CARE HOME,CT230164710,Residential Care Homes,36188900
Sheffield City Council,PEOPLE,14009346039,ADULT SOCIAL CARE PURCHASING,4260011,NURSING COSTS RECOVERED,25/04/2018,J2240057220418,-7.30,ALEXANDER COURT CARE HOME,CT230164710,Residential Care Homes,36188900
Sheffield City Council,PEOPLE,14009346039,ADULT SOCIAL CARE PURCHASING,4260011,NURSING COSTS RECOVERED,25/04/2018,J2240057220418,-7.14,ALEXANDER COURT CARE HOME,CT230164710,Residential Care Homes,36188900
Sheffield City Council,PEOPLE,14009346039,ADULT SOCIAL CARE PURCHASING,4260011,NURSING COSTS RECOVERED,25/04/2018,J2240057220418,-7.10,ALEXANDER COURT CARE HOME,CT230164710,Residential Care Homes,36188900
Sheffield City Council,PEOPLE,14009346039,ADULT SOCIAL CARE PURCHASING,4260011,NURSING COSTS RECOVERED,25/04/2018,J2240057220418,-6.96,ALEXANDER COURT CARE HOME,CT230164710,Residential Care Homes,36188900
Sheffield City Council,PEOPLE,14009346039,ADULT SOCIAL CARE PURCHASING,4260011,NURSING COSTS RECOVERED,25/04/2018,J2240057220418,-6.94,ALEXANDER COURT CARE HOME,CT230164710,Residential Care Homes,36188900
Sheffield City Council,PEOPLE,14009346039,ADULT SOCIAL CARE PURCHASING,4260011,NURSING COSTS RECOVERED,25/04/2018,J2240057220418,-6.58,ALEXANDER COURT CARE HOME,CT230164710,Residential Care Homes,36188900
Sheffield City Council,PEOPLE,14009346039,ADULT SOCIAL CARE PURCHASING,4260011,NURSING COSTS RECOVERED,25/04/2018,J2240057220418,-6.00,ALEXANDER COURT CARE HOME,CT230164710,Residential Care Homes,36188900
Sheffield City Council,PEOPLE,13001138078,NURSERY ED FUND,8180000,GRANTS,18/04/2018,FORECAST_SUMMER_18,"3,480.75",AVICENNA ACADEMY,CT091168200,Schools - Special,62968400
Sheffield City Council,PEOPLE,14009346039,ADULT SOCIAL CARE PURCHASING,9200001,CONTINUING RESIDENTIAL CARE,25/04/2018,J2248801200518,"1,564.00",ALEXANDER COURT CARE HOME,CT230164710,Residential Care Homes,36188900
Sheffield City Council,PEOPLE,14009346039,ADULT SOCIAL CARE PURCHASING,9200001,CONTINUING RESIDENTIAL CARE,25/04/2018,J2248801200518,"1,564.00",ALEXANDER COURT CARE HOME,CT230164710,Residential Care Homes,36188900
Sheffield City Council,PEOPLE,14009346039,ADULT SOCIAL CARE PURCHASING,9200001,CONTINUING RESIDENTIAL CARE,25/04/2018,J2248801200518,"1,564.00",ALEXANDER COURT CARE HOME,CT230164710,Residential Care Homes,36188900
Sheffield City Council,PEOPLE,14009346039,ADULT SOCIAL CARE PURCHASING,9200001,CONTINUING RESIDENTIAL CARE,25/04/2018,J2248801200518,"1,564.00",ALEXANDER COURT CARE HOME,CT230164710,Residential Care Homes,36188900
Sheffield City Council,PEOPLE,14009346039,ADULT SOCIAL CARE PURCHASING,9200001,CONTINUING RESIDENTIAL CARE,25/04/2018,J2248801200518,"1,564.00",ALEXANDER COURT CARE HOME,CT230164710,Residential Care Homes,36188900
Sheffield City Council,PEOPLE,14009346039,ADULT SOCIAL CARE PURCHASING,9200001,CONTINUING RESIDENTIAL CARE,25/04/2018,J2248801200518,"1,720.00",ALEXANDER COURT CARE HOME,CT230164710,Residential Care Homes,36188900
Sheffield City Council,PEOPLE,14009346039,ADULT SOCIAL CARE PURCHASING,9200001,CONTINUING RESIDENTIAL CARE,25/04/2018,J2248801200518,"1,720.00",ALEXANDER COURT CARE HOME,CT230164710,Residential Care Homes,36188900
Sheffield City Council,PEOPLE,14009346039,ADULT SOCIAL CARE PURCHASING,9200001,CONTINUING RESIDENTIAL CARE,25/04/2018,J2248801200518,"1,720.00",ALEXANDER COURT CARE HOME,CT230164710,Residential Care Homes,36188900
Sheffield City Council,PEOPLE,14009346039,ADULT SOCIAL CARE PURCHASING,9200001,CONTINUING RESIDENTIAL CARE,25/04/2018,J2248801200518,"1,720.00",ALEXANDER COURT CARE HOME,CT230164710,Residential Care Homes,36188900
Sheffield City Council,PEOPLE,14009346039,ADULT SOCIAL CARE PURCHASING,9210001,CONTINUING NURSING CARE,25/04/2018,J2248801200518,"1,756.00",ALEXANDER COURT CARE HOME,CT230164710,Residential Care Homes,36188900
Sheffield City Council,PEOPLE,14009346039,ADULT SOCIAL CARE PURCHASING,9210001,CONTINUING NURSING CARE,25/04/2018,J2248801200518,"1,760.00",ALEXANDER COURT CARE HOME,CT230164710,Residential Care Homes,36188900
Sheffield City Council,PEOPLE,14009346039,ADULT SOCIAL CARE PURCHASING,9210001,CONTINUING NURSING CARE,25/04/2018,J2248801200518,"1,760.00",ALEXANDER COURT CARE HOME,CT230164710,Residential Care Homes,36188900
Sheffield City Council,PEOPLE,14009346039,ADULT SOCIAL CARE PURCHASING,9210001,CONTINUING NURSING CARE,25/04/2018,J2248801200518,"1,760.00",ALEXANDER COURT CARE HOME,CT230164710,Residential Care Homes,36188900
Sheffield City Council,PEOPLE,14009346039,ADULT SOCIAL CARE PURCHASING,9210001,CONTINUING NURSING CARE,25/04/2018,J2248801200518,"1,760.00",ALEXANDER COURT CARE HOME,CT230164710,Residential Care Homes,36188900
Sheffield City Council,PEOPLE,14009346039,ADULT SOCIAL CARE PURCHASING,9210001,CONTINUING NURSING CARE,25/04/2018,J2248801200518,"1,760.00",ALEXANDER COURT CARE HOME,CT230164710,Residential Care Homes,36188900
Sheffield City Council,PEOPLE,14009346039,ADULT SOCIAL CARE PURCHASING,9210001,CONTINUING NURSING CARE,25/04/2018,J2248801200518,"1,760.00",ALEXANDER COURT CARE HOME,CT230164710,Residential Care Homes,36188900
Sheffield City Council,PEOPLE,14009346039,ADULT SOCIAL CARE PURCHASING,9210001,CONTINUING NURSING CARE,25/04/2018,J2248801200518,"1,760.00",ALEXANDER COURT CARE HOME,CT230164710,Residential Care Homes,36188900
Sheffield City Council,PEOPLE,14009346039,ADULT SOCIAL CARE PURCHASING,9200001,CONTINUING RESIDENTIAL CARE,25/04/2018,J2248801200518,"1,804.00",ALEXANDER COURT CARE HOME,CT230164710,Residential Care Homes,36188900
Sheffield City Council,PEOPLE,14009346039,ADULT SOCIAL CARE PURCHASING,9200001,CONTINUING RESIDENTIAL CARE,25/04/2018,J2248801200518,"1,804.00",ALEXANDER COURT CARE HOME,CT230164710,Residential Care Homes,36188900
Sheffield City Council,PEOPLE,14009346039,ADULT SOCIAL CARE PURCHASING,9200001,CONTINUING RESIDENTIAL CARE,25/04/2018,J2248801200518,"1,960.00",ALEXANDER COURT CARE HOME,CT230164710,Residential Care Homes,36188900
Sheffield City Council,PEOPLE,14009346039,ADULT SOCIAL CARE PURCHASING,9210001,CONTINUING NURSING CARE,25/04/2018,J2248801200518,"2,000.00",ALEXANDER COURT CARE HOME,CT230164710,Residential Care Homes,36188900
Sheffield City Council,PEOPLE,14009346039,ADULT SOCIAL CARE PURCHASING,9210001,CONTINUING NURSING CARE,25/04/2018,J2248801200518,"2,000.00",ALEXANDER COURT CARE HOME,CT230164710,Residential Care Homes,36188900
Sheffield City Council,PEOPLE,14009346039,ADULT SOCIAL CARE PURCHASING,9210001,CONTINUING NURSING CARE,25/04/2018,J2248801200518,"2,000.00",ALEXANDER COURT CARE HOME,CT230164710,Residential Care Homes,36188900
Sheffield City Council,PEOPLE,13005838006,LAC PUPIL PREMIUM,8440000,FEE EXPENSES,24/04/2018,49675,795.00,ALL SAINTS RC HIGH SCHOOL VOLUN. ACADEMY,CT091167860,Schools - Independent & Preparatory,6540100
Sheffield City Council,PEOPLE,14032149672,CONTRACT PAYMENTS - DRUGS,9030000,HEALTH,18/04/2018,DXQJ/00000084,256.80,ALLEN AND BARNFIELD CHEMISTS,CT140317440,Chemists - Dispensing,58460100
Sheffield City Council,PLACE,14064749224,FURNISHED ACCOMMODATION,8050000,FURNITURE PURCHASES,26/04/2018,317,446.00,ALLEN UPHOLSTERY LTD,CT022438650,Furniture - Repair & Restoration,29576300
Sheffield City Council,PLACE,14064749224,FURNISHED ACCOMMODATION,8050000,FURNITURE PURCHASES,26/04/2018,316,494.00,ALLEN UPHOLSTERY LTD,CT022438650,Furniture - Repair & Restoration,29576300
Sheffield City Council,PLACE,14064749224,FURNISHED ACCOMMODATION,8050000,FURNITURE PURCHASES,11/04/2018,314,"2,470.00",ALLEN UPHOLSTERY LTD,CT022438650,Furniture - Repair & Restoration,29576300
Sheffield City Council,PLACE,14064749224,FURNISHED ACCOMMODATION,8050000,FURNITURE PURCHASES,11/04/2018,313,"2,771.00",ALLEN UPHOLSTERY LTD,CT022438650,Furniture - Repair & Restoration,29576300
Sheffield City Council,PLACE,14064749224,FURNISHED ACCOMMODATION,8050000,FURNITURE PURCHASES,09/04/2018,308,"4,940.00",ALLEN UPHOLSTERY LTD,CT022438650,Furniture - Repair & Restoration,29576300
Sheffield City Council,PLACE,14064749224,FURNISHED ACCOMMODATION,8050000,FURNITURE PURCHASES,05/04/2018,299,"8,645.00",ALLEN UPHOLSTERY LTD,CT022438650,Furniture - Repair & Restoration,29576300
Sheffield City Council,PLACE,12018528251,ESIF LAUNCHPAD,8440000,FEE EXPENSES,17/04/2018,15343,"6,293.75",ALLEN WEST AND FOSTER LIMITED,CT120201340,Accountants,70179200
Sheffield City Council,PEOPLE,14009346039,ADULT SOCIAL CARE PURCHASING,4260018,RESIDENTIAL COSTS RECOVERED,13/04/2018,J2227863220418,"-8,050.84",ALPINE HEALTHCARE LTD,CT230753350,Nursing Homes,36212500
Sheffield City Council,PEOPLE,14009346039,ADULT SOCIAL CARE PURCHASING,4260011,NURSING COSTS RECOVERED,13/04/2018,J2227863220418,"-2,500.07",ALPINE HEALTHCARE LTD,CT230753350,Nursing Homes,36212500
Sheffield City Council,PEOPLE,14009346039,ADULT SOCIAL CARE PURCHASING,4260011,NURSING COSTS RECOVERED,24/04/2018,J2248779200518,"-1,002.16",ALPINE HEALTHCARE LTD,CT230753350,Nursing Homes,36212500
Sheffield City Council,PEOPLE,14009346039,ADULT SOCIAL CARE PURCHASING,4260011,NURSING COSTS RECOVERED,24/04/2018,J2248779200518,-954.72,ALPINE HEALTHCARE LTD,CT230753350,Nursing Homes,36212500
Sheffield City Council,PEOPLE,14009346039,ADULT SOCIAL CARE PURCHASING,4260011,NURSING COSTS RECOVERED,24/04/2018,J2248779200518,-867.88,ALPINE HEALTHCARE LTD,CT230753350,Nursing Homes,36212500
Sheffield City Council,PEOPLE,14009346039,ADULT SOCIAL CARE PURCHASING,4260011,NURSING COSTS RECOVERED,24/04/2018,J2248779200518,-800.64,ALPINE HEALTHCARE LTD,CT230753350,Nursing Homes,36212500
Sheffield City Council,PEOPLE,14009346039,ADULT SOCIAL CARE PURCHASING,4260011,NURSING COSTS RECOVERED,24/04/2018,J2248779200518,-774.92,ALPINE HEALTHCARE LTD,CT230753350,Nursing Homes,36212500
Sheffield City Council,PEOPLE,14009346039,ADULT SOCIAL CARE PURCHASING,4260011,NURSING COSTS RECOVERED,24/04/2018,J2248779200518,-769.32,ALPINE HEALTHCARE LTD,CT230753350,Nursing Homes,36212500
Sheffield City Council,PEOPLE,14009346039,ADULT SOCIAL CARE PURCHASING,4260011,NURSING COSTS RECOVERED,24/04/2018,J2248779200518,-696.40,ALPINE HEALTHCARE LTD,CT230753350,Nursing Homes,36212500
Sheffield City Council,PEOPLE,14009346039,ADULT SOCIAL CARE PURCHASING,4260011,NURSING COSTS RECOVERED,24/04/2018,J2248779200518,-662.32,ALPINE HEALTHCARE LTD,CT230753350,Nursing Homes,36212500
Sheffield City Council,PEOPLE,14009346039,ADULT SOCIAL CARE PURCHASING,4260011,NURSING COSTS RECOVERED,24/04/2018,J2248779200518,-655.16,ALPINE HEALTHCARE LTD,CT230753350,Nursing Homes,36212500
Sheffield City Council,PEOPLE,14009346039,ADULT SOCIAL CARE PURCHASING,4260011,NURSING COSTS RECOVERED,24/04/2018,J2248779200518,-622.64,ALPINE HEALTHCARE LTD,CT230753350,Nursing Homes,36212500
Sheffield City Council,PEOPLE,14009346039,ADULT SOCIAL CARE PURCHASING,4260018,RESIDENTIAL COSTS RECOVERED,24/04/2018,J2248779200518,-621.48,ALPINE HEALTHCARE LTD,CT230753350,Nursing Homes,36212500
Sheffield City Council,PEOPLE,14009346039,ADULT SOCIAL CARE PURCHASING,4260011,NURSING COSTS RECOVERED,24/04/2018,J2248779200518,-578.00,ALPINE HEALTHCARE LTD,CT230753350,Nursing Homes,36212500
Sheffield City Council,PEOPLE,14009346039,ADULT SOCIAL CARE PURCHASING,4260011,NURSING COSTS RECOVERED,24/04/2018,J2248779200518,-560.40,ALPINE HEALTHCARE LTD,CT230753350,Nursing Homes,36212500
Sheffield City Council,PEOPLE,14009346039,ADULT SOCIAL CARE PURCHASING,4260011,NURSING COSTS RECOVERED,24/04/2018,J2248779200518,-552.40,ALPINE HEALTHCARE LTD,CT230753350,Nursing Homes,36212500
Sheffield City Council,PEOPLE,14009346039,ADULT SOCIAL CARE PURCHASING,4260011,NURSING COSTS RECOVERED,24/04/2018,J2248779200518,-547.08,ALPINE HEALTHCARE LTD,CT230753350,Nursing Homes,36212500
Sheffield City Council,PEOPLE,14009346039,ADULT SOCIAL CARE PURCHASING,4260011,NURSING COSTS RECOVERED,24/04/2018,J2248779200518,-537.24,ALPINE HEALTHCARE LTD,CT230753350,Nursing Homes,36212500
Sheffield City Council,PEOPLE,14009346039,ADULT SOCIAL CARE PURCHASING,4260011,NURSING COSTS RECOVERED,24/04/2018,J2248779200518,-526.64,ALPINE HEALTHCARE LTD,CT230753350,Nursing Homes,36212500
Sheffield City Council,PEOPLE,14009346039,ADULT SOCIAL CARE PURCHASING,4260011,NURSING COSTS RECOVERED,24/04/2018,J2248779200518,-526.52,ALPINE HEALTHCARE LTD,CT230753350,Nursing Homes,36212500
Sheffield City Council,PEOPLE,14009346039,ADULT SOCIAL CARE PURCHASING,4260011,NURSING COSTS RECOVERED,24/04/2018,J2248779200518,-459.12,ALPINE HEALTHCARE LTD,CT230753350,Nursing Homes,36212500
Sheffield City Council,PEOPLE,14009346039,ADULT SOCIAL CARE PURCHASING,4260011,NURSING COSTS RECOVERED,24/04/2018,J2248779200518,-402.00,ALPINE HEALTHCARE LTD,CT230753350,Nursing Homes,36212500
Sheffield City Council,PEOPLE,14009346039,ADULT SOCIAL CARE PURCHASING,4260011,NURSING COSTS RECOVERED,24/04/2018,J2248574220418,-218.70,ALPINE HEALTHCARE LTD,CT230753350,Nursing Homes,36212500
Sheffield City Council,PEOPLE,14009346039,ADULT SOCIAL CARE PURCHASING,4260011,NURSING COSTS RECOVERED,24/04/2018,J2240054220418,-11.26,ALPINE HEALTHCARE LTD,CT230753350,Nursing Homes,36212500
Sheffield City Council,PEOPLE,14009346039,ADULT SOCIAL CARE PURCHASING,4260011,NURSING COSTS RECOVERED,24/04/2018,J2240054220418,-10.74,ALPINE HEALTHCARE LTD,CT230753350,Nursing Homes,36212500
Sheffield City Council,PEOPLE,14009346039,ADULT SOCIAL CARE PURCHASING,4260011,NURSING COSTS RECOVERED,24/04/2018,J2240054220418,-9.76,ALPINE HEALTHCARE LTD,CT230753350,Nursing Homes,36212500
Sheffield City Council,PEOPLE,14009346039,ADULT SOCIAL CARE PURCHASING,4260011,NURSING COSTS RECOVERED,24/04/2018,J2240054220418,-9.00,ALPINE HEALTHCARE LTD,CT230753350,Nursing Homes,36212500
Sheffield City Council,PEOPLE,14009346039,ADULT SOCIAL CARE PURCHASING,4260011,NURSING COSTS RECOVERED,24/04/2018,J2240054220418,-8.72,ALPINE HEALTHCARE LTD,CT230753350,Nursing Homes,36212500
Sheffield City Council,PEOPLE,14009346039,ADULT SOCIAL CARE PURCHASING,4260011,NURSING COSTS RECOVERED,24/04/2018,J2240054220418,-8.64,ALPINE HEALTHCARE LTD,CT230753350,Nursing Homes,36212500
Sheffield City Council,PEOPLE,14009346039,ADULT SOCIAL CARE PURCHASING,4260011,NURSING COSTS RECOVERED,24/04/2018,J2240054220418,-7.44,ALPINE HEALTHCARE LTD,CT230753350,Nursing Homes,36212500
Sheffield City Council,PEOPLE,14009346039,ADULT SOCIAL CARE PURCHASING,4260011,NURSING COSTS RECOVERED,24/04/2018,J2240054220418,-7.36,ALPINE HEALTHCARE LTD,CT230753350,Nursing Homes,36212500
Sheffield City Council,PEOPLE,14009346039,ADULT SOCIAL CARE PURCHASING,4260011,NURSING COSTS RECOVERED,24/04/2018,J2240054220418,-7.30,ALPINE HEALTHCARE LTD,CT230753350,Nursing Homes,36212500
Sheffield City Council,PEOPLE,14009346039,ADULT SOCIAL CARE PURCHASING,4260011,NURSING COSTS RECOVERED,24/04/2018,J2240054220418,-7.30,ALPINE HEALTHCARE LTD,CT230753350,Nursing Homes,36212500
Sheffield City Council,PEOPLE,14009346039,ADULT SOCIAL CARE PURCHASING,4260011,NURSING COSTS RECOVERED,24/04/2018,J2240054220418,-7.00,ALPINE HEALTHCARE LTD,CT230753350,Nursing Homes,36212500
Sheffield City Council,PEOPLE,14009346039,ADULT SOCIAL CARE PURCHASING,4260011,NURSING COSTS RECOVERED,24/04/2018,J2240054220418,-6.50,ALPINE HEALTHCARE LTD,CT230753350,Nursing Homes,36212500
Sheffield City Council,PEOPLE,14009346039,ADULT SOCIAL CARE PURCHASING,4260011,NURSING COSTS RECOVERED,24/04/2018,J2240054220418,-6.14,ALPINE HEALTHCARE LTD,CT230753350,Nursing Homes,36212500
Sheffield City Council,PEOPLE,14009346039,ADULT SOCIAL CARE PURCHASING,4260011,NURSING COSTS RECOVERED,24/04/2018,J2240054220418,-6.02,ALPINE HEALTHCARE LTD,CT230753350,Nursing Homes,36212500
Sheffield City Council,PEOPLE,14009346039,ADULT SOCIAL CARE PURCHASING,4260011,NURSING COSTS RECOVERED,24/04/2018,J2240054220418,-5.92,ALPINE HEALTHCARE LTD,CT230753350,Nursing Homes,36212500
Sheffield City Council,PEOPLE,14009346039,ADULT SOCIAL CARE PURCHASING,4260011,NURSING COSTS RECOVERED,24/04/2018,J2240054220418,-5.90,ALPINE HEALTHCARE LTD,CT230753350,Nursing Homes,36212500
Sheffield City Council,PEOPLE,14009346039,ADULT SOCIAL CARE PURCHASING,4260018,RESIDENTIAL COSTS RECOVERED,24/04/2018,J2240054220418,-5.86,ALPINE HEALTHCARE LTD,CT230753350,Nursing Homes,36212500
Sheffield City Council,PEOPLE,14009346039,ADULT SOCIAL CARE PURCHASING,4260011,NURSING COSTS RECOVERED,24/04/2018,J2240054220418,-5.72,ALPINE HEALTHCARE LTD,CT230753350,Nursing Homes,36212500
Sheffield City Council,PEOPLE,14009346039,ADULT SOCIAL CARE PURCHASING,4260011,NURSING COSTS RECOVERED,24/04/2018,J2240054220418,-5.16,ALPINE HEALTHCARE LTD,CT230753350,Nursing Homes,36212500
Sheffield City Council,PEOPLE,14009346039,ADULT SOCIAL CARE PURCHASING,9210003,SHORT TERM NURSING CARE,24/04/2018,J2248574220418,556.72,ALPINE HEALTHCARE LTD,CT230753350,Nursing Homes,36212500
Sheffield City Council,PEOPLE,14009346039,ADULT SOCIAL CARE PURCHASING,9210001,CONTINUING NURSING CARE,24/04/2018,J2248779200518,"1,216.12",ALPINE HEALTHCARE LTD,CT230753350,Nursing Homes,36212500
Sheffield City Council,PEOPLE,14009346039,ADULT SOCIAL CARE PURCHASING,9200001,CONTINUING RESIDENTIAL CARE,24/04/2018,J2248779200518,"1,664.00",ALPINE HEALTHCARE LTD,CT230753350,Nursing Homes,36212500
Sheffield City Council,PEOPLE,14009346039,ADULT SOCIAL CARE PURCHASING,9210001,CONTINUING NURSING CARE,24/04/2018,J2248779200518,"1,760.00",ALPINE HEALTHCARE LTD,CT230753350,Nursing Homes,36212500
Sheffield City Council,PEOPLE,14009346039,ADULT SOCIAL CARE PURCHASING,9210001,CONTINUING NURSING CARE,24/04/2018,J2248779200518,"1,760.00",ALPINE HEALTHCARE LTD,CT230753350,Nursing Homes,36212500
Sheffield City Council,PEOPLE,14009346039,ADULT SOCIAL CARE PURCHASING,9210001,CONTINUING NURSING CARE,24/04/2018,J2248779200518,"1,760.00",ALPINE HEALTHCARE LTD,CT230753350,Nursing Homes,36212500
Sheffield City Council,PEOPLE,14009346039,ADULT SOCIAL CARE PURCHASING,9210001,CONTINUING NURSING CARE,24/04/2018,J2248779200518,"1,760.00",ALPINE HEALTHCARE LTD,CT230753350,Nursing Homes,36212500
Sheffield City Council,PEOPLE,14009346039,ADULT SOCIAL CARE PURCHASING,9210001,CONTINUING NURSING CARE,24/04/2018,J2248779200518,"1,760.00",ALPINE HEALTHCARE LTD,CT230753350,Nursing Homes,36212500
Sheffield City Council,PEOPLE,14009346039,ADULT SOCIAL CARE PURCHASING,9210001,CONTINUING NURSING CARE,24/04/2018,J2248779200518,"1,760.00",ALPINE HEALTHCARE LTD,CT230753350,Nursing Homes,36212500
Sheffield City Council,PEOPLE,14009346039,ADULT SOCIAL CARE PURCHASING,9210001,CONTINUING NURSING CARE,24/04/2018,J2248779200518,"1,760.00",ALPINE HEALTHCARE LTD,CT230753350,Nursing Homes,36212500
Sheffield City Council,PEOPLE,14009346039,ADULT SOCIAL CARE PURCHASING,9210001,CONTINUING NURSING CARE,24/04/2018,J2248779200518,"1,760.00",ALPINE HEALTHCARE LTD,CT230753350,Nursing Homes,36212500
Sheffield City Council,PEOPLE,14009346039,ADULT SOCIAL CARE PURCHASING,9210001,CONTINUING NURSING CARE,24/04/2018,J2248779200518,"1,760.00",ALPINE HEALTHCARE LTD,CT230753350,Nursing Homes,36212500
Sheffield City Council,PEOPLE,14009346039,ADULT SOCIAL CARE PURCHASING,9210001,CONTINUING NURSING CARE,24/04/2018,J2248779200518,"1,760.00",ALPINE HEALTHCARE LTD,CT230753350,Nursing Homes,36212500
Sheffield City Council,PEOPLE,14009346039,ADULT SOCIAL CARE PURCHASING,9210001,CONTINUING NURSING CARE,24/04/2018,J2248779200518,"1,760.00",ALPINE HEALTHCARE LTD,CT230753350,Nursing Homes,36212500
Sheffield City Council,PEOPLE,14009346039,ADULT SOCIAL CARE PURCHASING,9210001,CONTINUING NURSING CARE,24/04/2018,J2248779200518,"1,760.00",ALPINE HEALTHCARE LTD,CT230753350,Nursing Homes,36212500
Sheffield City Council,PEOPLE,14009346039,ADULT SOCIAL CARE PURCHASING,9210001,CONTINUING NURSING CARE,24/04/2018,J2248779200518,"1,812.00",ALPINE HEALTHCARE LTD,CT230753350,Nursing Homes,36212500
Sheffield City Council,PEOPLE,14009346039,ADULT SOCIAL CARE PURCHASING,9210001,CONTINUING NURSING CARE,24/04/2018,J2248779200518,"1,812.00",ALPINE HEALTHCARE LTD,CT230753350,Nursing Homes,36212500
Sheffield City Council,PEOPLE,14009346039,ADULT SOCIAL CARE PURCHASING,9210001,CONTINUING NURSING CARE,24/04/2018,J2248779200518,"1,812.00",ALPINE HEALTHCARE LTD,CT230753350,Nursing Homes,36212500
Sheffield City Council,PEOPLE,14009346039,ADULT SOCIAL CARE PURCHASING,9210001,CONTINUING NURSING CARE,24/04/2018,J2248779200518,"1,812.00",ALPINE HEALTHCARE LTD,CT230753350,Nursing Homes,36212500
Sheffield City Council,PEOPLE,14009346039,ADULT SOCIAL CARE PURCHASING,9210001,CONTINUING NURSING CARE,24/04/2018,J2248779200518,"1,812.00",ALPINE HEALTHCARE LTD,CT230753350,Nursing Homes,36212500
Sheffield City Council,PEOPLE,14009346039,ADULT SOCIAL CARE PURCHASING,9210001,CONTINUING NURSING CARE,24/04/2018,J2248779200518,"1,838.40",ALPINE HEALTHCARE LTD,CT230753350,Nursing Homes,36212500
Sheffield City Council,PEOPLE,14009346039,ADULT SOCIAL CARE PURCHASING,9210001,CONTINUING NURSING CARE,24/04/2018,J2248779200518,"1,852.00",ALPINE HEALTHCARE LTD,CT230753350,Nursing Homes,36212500
Sheffield City Council,PEOPLE,14009346039,ADULT SOCIAL CARE PURCHASING,9210001,CONTINUING NURSING CARE,24/04/2018,J2248779200518,"1,956.00",ALPINE HEALTHCARE LTD,CT230753350,Nursing Homes,36212500
Sheffield City Council,PEOPLE,14009346039,ADULT SOCIAL CARE PURCHASING,9210001,CONTINUING NURSING CARE,24/04/2018,J2248779200518,"2,083.00",ALPINE HEALTHCARE LTD,CT230753350,Nursing Homes,36212500
Sheffield City Council,PEOPLE,14009346039,ADULT SOCIAL CARE PURCHASING,9210001,CONTINUING NURSING CARE,13/04/2018,J2227863220418,"8,821.14",ALPINE HEALTHCARE LTD,CT230753350,Nursing Homes,36212500
Sheffield City Council,PEOPLE,14009346039,ADULT SOCIAL CARE PURCHASING,9200001,CONTINUING RESIDENTIAL CARE,13/04/2018,J2227863220418,"12,535.00",ALPINE HEALTHCARE LTD,CT230753350,Nursing Homes,36212500
Sheffield City Council,PLACE,11513300000,WORKSHOPS,7040000,OTHER VEHICLE RUNNING COSTS,04/04/2018,24040,254.38,AMBASSADOR REPAIR CENTRE LTD,CT261913330,Car Body Repairs,31597600
Sheffield City Council,PLACE,11513300000,WORKSHOPS,7040000,OTHER VEHICLE RUNNING COSTS,30/04/2018,24098,344.30,AMBASSADOR REPAIR CENTRE LTD,CT261913330,Car Body Repairs,31597600
Sheffield City Council,PLACE,11513300000,WORKSHOPS,7040000,OTHER VEHICLE RUNNING COSTS,30/04/2018,1021119,347.25,AMBASSADOR REPAIR CENTRE LTD,CT261913330,Car Body Repairs,31597600
Sheffield City Council,PLACE,11513300000,WORKSHOPS,7040000,OTHER VEHICLE RUNNING COSTS,20/04/2018,24091,361.80,AMBASSADOR REPAIR CENTRE LTD,CT261913330,Car Body Repairs,31597600
Sheffield City Council,PLACE,11513300000,WORKSHOPS,7040000,OTHER VEHICLE RUNNING COSTS,24/04/2018,124094,608.75,AMBASSADOR REPAIR CENTRE LTD,CT261913330,Car Body Repairs,31597600
Sheffield City Council,PLACE,14066400000,R & M CUSTOMER CARE TEAM,4080000,FEES & CHARGES,24/04/2018,16426,350.00,AMBER VALLEY WATER SERVICES,CT102884085,Water Treatment,38664700
Sheffield City Council,PLACE,14066400000,R & M CUSTOMER CARE TEAM,4080000,FEES & CHARGES,24/04/2018,16425,650.00,AMBER VALLEY WATER SERVICES,CT102884085,Water Treatment,38664700
Sheffield City Council,PLACE,12075122239,CONTRACTOR PAYMENTS - AMEY,9120000,OTHER AGENCIES,13/04/2018,90672142,"5,668,695.20",AMEY HALLAM HIGHWAYS LIMITED,CT074365200,Road Construction Contractors,57128900
Sheffield City Council,PEOPLE,13001639007,UASC/ASYLUM - LEAVING CARE,6210000,RENTS,25/04/2018,SCC040,"2,399.88",AMJ SUPPORT SERVICES LTD,CT240671855,Social Services,64483800
Sheffield City Council,PEOPLE,13001639007,UASC/ASYLUM - LEAVING CARE,6210000,RENTS,25/04/2018,SCC042,"2,399.88",AMJ SUPPORT SERVICES LTD,CT240671855,Social Services,64483800
Sheffield City Council,PEOPLE,13002639405,SEMI INDEPENDENT LIVING,9270008,INDEPENDENT RESIDENTIAL PMENT,25/04/2018,SCC044,"10,567.76",AMJ SUPPORT SERVICES LTD,CT240671855,Social Services,64483800
Sheffield City Council,PEOPLE,13002639405,SEMI INDEPENDENT LIVING,9270008,INDEPENDENT RESIDENTIAL PMENT,25/04/2018,SCC046,"10,567.76",AMJ SUPPORT SERVICES LTD,CT240671855,Social Services,64483800
Sheffield City Council,PLACE,14065397441,COMMUNAL AREAS-LOW RISE FLATS,1157000,DWELLINGS MAIN CONTRACT,19/04/2018,10751,"1,120.00",AMK FENCE-IN LTD,CT073334660,Fencing Contractors,20293400
Sheffield City Council,PLACE,14065397441,COMMUNAL AREAS-LOW RISE FLATS,1157000,DWELLINGS MAIN CONTRACT,05/04/2018,10746,"1,165.00",AMK FENCE-IN LTD,CT073334660,Fencing Contractors,20293400
Sheffield City Council,PLACE,14065397441,COMMUNAL AREAS-LOW RISE FLATS,1157000,DWELLINGS MAIN CONTRACT,17/04/2018,10726,"1,395.00",AMK FENCE-IN LTD,CT073334660,Fencing Contractors,20293400
Sheffield City Council,PLACE,14065397441,COMMUNAL AREAS-LOW RISE FLATS,1157000,DWELLINGS MAIN CONTRACT,19/04/2018,10751,"3,128.26",AMK FENCE-IN LTD,CT073334660,Fencing Contractors,20293400
Sheffield City Council,PLACE,14065397441,COMMUNAL AREAS-LOW RISE FLATS,1157000,DWELLINGS MAIN CONTRACT,05/04/2018,10745,"3,131.00",AMK FENCE-IN LTD,CT073334660,Fencing Contractors,20293400
Sheffield City Council,PEOPLE,13002439357,SHORT BREAKS FUNDING FOR DISAB,4080000,FEES & CHARGES,25/04/2018,SI-17102,"5,447.00",AMY'S HOUSE LTD,CT230417020,Charities & Voluntary Organisations,51325800
Sheffield City Council,PLACE,11850500000,STOCK CONTROL,8070000,STOCKS AND STORES,16/04/2018,138670,260.00,ANALAN SUPPLIES LTD,CT021019000,Cleaning Materials & Equipment,20294700
Sheffield City Council,PEOPLE,13008433137,BUSINESS DEVELOPMENT UNIT,9120000,OTHER AGENCIES,26/04/2018,50796,500.00,ANANDA FOODS,CT030616250,Catering Food & Drink Suppliers,62065500
Sheffield City Council,PEOPLE,13007933018,100 APPRENTICES,9120000,OTHER AGENCIES,06/04/2018,943,"1,292.38",ANANDA FOODS,CT030616250,Catering Food & Drink Suppliers,62065500
Sheffield City Council,PEOPLE,14009346039,ADULT SOCIAL CARE PURCHASING,9200001,CONTINUING RESIDENTIAL CARE,24/04/2018,J2219792220418,"-1,752.00",ANCHOR CAREHOMES LTD,CT230164710,Residential Care Homes,52423500
Sheffield City Council,PEOPLE,14009346039,ADULT SOCIAL CARE PURCHASING,4260018,RESIDENTIAL COSTS RECOVERED,24/04/2018,J2248888200518,-910.72,ANCHOR CAREHOMES LTD,CT230164710,Residential Care Homes,52423500
Sheffield City Council,PEOPLE,14009346039,ADULT SOCIAL CARE PURCHASING,4260018,RESIDENTIAL COSTS RECOVERED,24/04/2018,J2219792220418,-900.48,ANCHOR CAREHOMES LTD,CT230164710,Residential Care Homes,52423500
Sheffield City Council,PEOPLE,14009346039,ADULT SOCIAL CARE PURCHASING,4260018,RESIDENTIAL COSTS RECOVERED,24/04/2018,J2248888200518,-898.60,ANCHOR CAREHOMES LTD,CT230164710,Residential Care Homes,52423500
Sheffield City Council,PEOPLE,14009346039,ADULT SOCIAL CARE PURCHASING,4260018,RESIDENTIAL COSTS RECOVERED,24/04/2018,J2219792220418,-888.50,ANCHOR CAREHOMES LTD,CT230164710,Residential Care Homes,52423500
Sheffield City Council,PEOPLE,14009346039,ADULT SOCIAL CARE PURCHASING,4260018,RESIDENTIAL COSTS RECOVERED,24/04/2018,J2248888200518,-877.88,ANCHOR CAREHOMES LTD,CT230164710,Residential Care Homes,52423500
Sheffield City Council,PEOPLE,14009346039,ADULT SOCIAL CARE PURCHASING,4260018,RESIDENTIAL COSTS RECOVERED,24/04/2018,J2219792220418,-869.58,ANCHOR CAREHOMES LTD,CT230164710,Residential Care Homes,52423500
Sheffield City Council,PEOPLE,14009346039,ADULT SOCIAL CARE PURCHASING,4260018,RESIDENTIAL COSTS RECOVERED,24/04/2018,J2248888200518,-859.40,ANCHOR CAREHOMES LTD,CT230164710,Residential Care Homes,52423500
Sheffield City Council,PEOPLE,14009346039,ADULT SOCIAL CARE PURCHASING,4260018,RESIDENTIAL COSTS RECOVERED,24/04/2018,J2248888200518,-850.72,ANCHOR CAREHOMES LTD,CT230164710,Residential Care Homes,52423500
Sheffield City Council,PEOPLE,14009346039,ADULT SOCIAL CARE PURCHASING,4260018,RESIDENTIAL COSTS RECOVERED,24/04/2018,J2219792220418,-849.74,ANCHOR CAREHOMES LTD,CT230164710,Residential Care Homes,52423500
Sheffield City Council,PEOPLE,14009346039,ADULT SOCIAL CARE PURCHASING,9200001,CONTINUING RESIDENTIAL CARE,24/04/2018,J2200351250318,-842.78,ANCHOR CAREHOMES LTD,CT230164710,Residential Care Homes,52423500
Sheffield City Council,PEOPLE,14009346039,ADULT SOCIAL CARE PURCHASING,4260018,RESIDENTIAL COSTS RECOVERED,24/04/2018,J2219792220418,-841.16,ANCHOR CAREHOMES LTD,CT230164710,Residential Care Homes,52423500
Sheffield City Council,PEOPLE,14009346039,ADULT SOCIAL CARE PURCHASING,4260018,RESIDENTIAL COSTS RECOVERED,24/04/2018,J2248888200518,-835.00,ANCHOR CAREHOMES LTD,CT230164710,Residential Care Homes,52423500
Sheffield City Council,PEOPLE,14009346039,ADULT SOCIAL CARE PURCHASING,4260018,RESIDENTIAL COSTS RECOVERED,24/04/2018,J2219792220418,-827.18,ANCHOR CAREHOMES LTD,CT230164710,Residential Care Homes,52423500
Sheffield City Council,PEOPLE,14009346039,ADULT SOCIAL CARE PURCHASING,4260018,RESIDENTIAL COSTS RECOVERED,24/04/2018,J2248888200518,-798.56,ANCHOR CAREHOMES LTD,CT230164710,Residential Care Homes,52423500
Sheffield City Council,PEOPLE,14009346039,ADULT SOCIAL CARE PURCHASING,4260018,RESIDENTIAL COSTS RECOVERED,24/04/2018,J2219792220418,-791.60,ANCHOR CAREHOMES LTD,CT230164710,Residential Care Homes,52423500
Sheffield City Council,PEOPLE,14009346039,ADULT SOCIAL CARE PURCHASING,4260018,RESIDENTIAL COSTS RECOVERED,24/04/2018,J2248888200518,-787.48,ANCHOR CAREHOMES LTD,CT230164710,Residential Care Homes,52423500
Sheffield City Council,PEOPLE,14009346039,ADULT SOCIAL CARE PURCHASING,4260018,RESIDENTIAL COSTS RECOVERED,24/04/2018,J2248888200518,-782.20,ANCHOR CAREHOMES LTD,CT230164710,Residential Care Homes,52423500
Sheffield City Council,PEOPLE,14009346039,ADULT SOCIAL CARE PURCHASING,4260018,RESIDENTIAL COSTS RECOVERED,24/04/2018,J2219792220418,-780.20,ANCHOR CAREHOMES LTD,CT230164710,Residential Care Homes,52423500
Sheffield City Council,PEOPLE,14009346039,ADULT SOCIAL CARE PURCHASING,4260018,RESIDENTIAL COSTS RECOVERED,24/04/2018,J2219792220418,-774.98,ANCHOR CAREHOMES LTD,CT230164710,Residential Care Homes,52423500
Sheffield City Council,PEOPLE,14009346039,ADULT SOCIAL CARE PURCHASING,4260018,RESIDENTIAL COSTS RECOVERED,24/04/2018,J2248888200518,-768.20,ANCHOR CAREHOMES LTD,CT230164710,Residential Care Homes,52423500
Sheffield City Council,PEOPLE,14009346039,ADULT SOCIAL CARE PURCHASING,4260018,RESIDENTIAL COSTS RECOVERED,24/04/2018,J2219792220418,-759.56,ANCHOR CAREHOMES LTD,CT230164710,Residential Care Homes,52423500
Sheffield City Council,PEOPLE,14009346039,ADULT SOCIAL CARE PURCHASING,4260018,RESIDENTIAL COSTS RECOVERED,24/04/2018,J2219556250318,-759.29,ANCHOR CAREHOMES LTD,CT230164710,Residential Care Homes,52423500
Sheffield City Council,PEOPLE,14009346039,ADULT SOCIAL CARE PURCHASING,4260018,RESIDENTIAL COSTS RECOVERED,24/04/2018,J2248888200518,-752.40,ANCHOR CAREHOMES LTD,CT230164710,Residential Care Homes,52423500
Sheffield City Council,PEOPLE,14009346039,ADULT SOCIAL CARE PURCHASING,4260018,RESIDENTIAL COSTS RECOVERED,24/04/2018,J2248888200518,-732.56,ANCHOR CAREHOMES LTD,CT230164710,Residential Care Homes,52423500
Sheffield City Council,PEOPLE,14009346039,ADULT SOCIAL CARE PURCHASING,4260018,RESIDENTIAL COSTS RECOVERED,24/04/2018,J2219792220418,-725.90,ANCHOR CAREHOMES LTD,CT230164710,Residential Care Homes,52423500
Sheffield City Council,PEOPLE,14009346039,ADULT SOCIAL CARE PURCHASING,4260018,RESIDENTIAL COSTS RECOVERED,24/04/2018,J2248888200518,-723.36,ANCHOR CAREHOMES LTD,CT230164710,Residential Care Homes,52423500
Sheffield City Council,PEOPLE,14009346039,ADULT SOCIAL CARE PURCHASING,4260018,RESIDENTIAL COSTS RECOVERED,24/04/2018,J2219792220418,-710.00,ANCHOR CAREHOMES LTD,CT230164710,Residential Care Homes,52423500
Sheffield City Council,PEOPLE,14009346039,ADULT SOCIAL CARE PURCHASING,4260018,RESIDENTIAL COSTS RECOVERED,24/04/2018,J2248888200518,-692.40,ANCHOR CAREHOMES LTD,CT230164710,Residential Care Homes,52423500
Sheffield City Council,PEOPLE,14009346039,ADULT SOCIAL CARE PURCHASING,4260018,RESIDENTIAL COSTS RECOVERED,24/04/2018,J2219792220418,-685.10,ANCHOR CAREHOMES LTD,CT230164710,Residential Care Homes,52423500
Sheffield City Council,PEOPLE,14009346039,ADULT SOCIAL CARE PURCHASING,4260018,RESIDENTIAL COSTS RECOVERED,24/04/2018,J2248888200518,-680.16,ANCHOR CAREHOMES LTD,CT230164710,Residential Care Homes,52423500
Sheffield City Council,PEOPLE,14009346039,ADULT SOCIAL CARE PURCHASING,4260018,RESIDENTIAL COSTS RECOVERED,24/04/2018,J2219792220418,-673.86,ANCHOR CAREHOMES LTD,CT230164710,Residential Care Homes,52423500
Sheffield City Council,PEOPLE,14009346039,ADULT SOCIAL CARE PURCHASING,4260018,RESIDENTIAL COSTS RECOVERED,24/04/2018,J2248888200518,-672.40,ANCHOR CAREHOMES LTD,CT230164710,Residential Care Homes,52423500
Sheffield City Council,PEOPLE,14009346039,ADULT SOCIAL CARE PURCHASING,4260018,RESIDENTIAL COSTS RECOVERED,24/04/2018,J2248888200518,-672.40,ANCHOR CAREHOMES LTD,CT230164710,Residential Care Homes,52423500
Sheffield City Council,PEOPLE,14009346039,ADULT SOCIAL CARE PURCHASING,4260018,RESIDENTIAL COSTS RECOVERED,24/04/2018,J2248888200518,-667.96,ANCHOR CAREHOMES LTD,CT230164710,Residential Care Homes,52423500
Sheffield City Council,PEOPLE,14009346039,ADULT SOCIAL CARE PURCHASING,4260018,RESIDENTIAL COSTS RECOVERED,24/04/2018,J2219792220418,-666.50,ANCHOR CAREHOMES LTD,CT230164710,Residential Care Homes,52423500
Sheffield City Council,PEOPLE,14009346039,ADULT SOCIAL CARE PURCHASING,4260018,RESIDENTIAL COSTS RECOVERED,24/04/2018,J2219792220418,-665.10,ANCHOR CAREHOMES LTD,CT230164710,Residential Care Homes,52423500
Sheffield City Council,PEOPLE,14009346039,ADULT SOCIAL CARE PURCHASING,4260018,RESIDENTIAL COSTS RECOVERED,24/04/2018,J2219792220418,-665.10,ANCHOR CAREHOMES LTD,CT230164710,Residential Care Homes,52423500
Sheffield City Council,PEOPLE,14009346039,ADULT SOCIAL CARE PURCHASING,4260018,RESIDENTIAL COSTS RECOVERED,24/04/2018,J2219792220418,-660.46,ANCHOR CAREHOMES LTD,CT230164710,Residential Care Homes,52423500
Sheffield City Council,PEOPLE,14009346039,ADULT SOCIAL CARE PURCHASING,4260018,RESIDENTIAL COSTS RECOVERED,24/04/2018,J2219792220418,-626.52,ANCHOR CAREHOMES LTD,CT230164710,Residential Care Homes,52423500
Sheffield City Council,PEOPLE,14009346039,ADULT SOCIAL CARE PURCHASING,4260018,RESIDENTIAL COSTS RECOVERED,24/04/2018,J2248888200518,-626.52,ANCHOR CAREHOMES LTD,CT230164710,Residential Care Homes,52423500
Sheffield City Council,PEOPLE,14009346039,ADULT SOCIAL CARE PURCHASING,9200001,CONTINUING RESIDENTIAL CARE,24/04/2018,J2219792220418,-614.43,ANCHOR CAREHOMES LTD,CT230164710,Residential Care Homes,52423500
Sheffield City Council,PEOPLE,14009346039,ADULT SOCIAL CARE PURCHASING,4260018,RESIDENTIAL COSTS RECOVERED,24/04/2018,J2248888200518,-604.76,ANCHOR CAREHOMES LTD,CT230164710,Residential Care Homes,52423500
Sheffield City Council,PLACE,11850500000,STOCK CONTROL,8070000,STOCKS AND STORES,11/04/2018,768226,677.00,BANNER PLANT LTD,CT079959020,Plant & Machinery Hire & Leasing,20324800
Sheffield City Council,PEOPLE,14009346039,ADULT SOCIAL CARE PURCHASING,4260018,RESIDENTIAL COSTS RECOVERED,24/04/2018,J2219792220418,-597.96,ANCHOR CAREHOMES LTD,CT230164710,Residential Care Homes,52423500
Sheffield City Council,PEOPLE,14009346039,ADULT SOCIAL CARE PURCHASING,4260018,RESIDENTIAL COSTS RECOVERED,24/04/2018,J2219792220418,-581.56,ANCHOR CAREHOMES LTD,CT230164710,Residential Care Homes,52423500
Sheffield City Council,PEOPLE,14009346039,ADULT SOCIAL CARE PURCHASING,4260018,RESIDENTIAL COSTS RECOVERED,24/04/2018,J2248888200518,-581.56,ANCHOR CAREHOMES LTD,CT230164710,Residential Care Homes,52423500
Sheffield City Council,PEOPLE,14009346039,ADULT SOCIAL CARE PURCHASING,4260018,RESIDENTIAL COSTS RECOVERED,24/04/2018,J2248888200518,-580.52,ANCHOR CAREHOMES LTD,CT230164710,Residential Care Homes,52423500
Sheffield City Council,PEOPLE,14009346039,ADULT SOCIAL CARE PURCHASING,4260018,RESIDENTIAL COSTS RECOVERED,24/04/2018,J2219792220418,-574.00,ANCHOR CAREHOMES LTD,CT230164710,Residential Care Homes,52423500
Sheffield City Council,PEOPLE,14009346039,ADULT SOCIAL CARE PURCHASING,4260018,RESIDENTIAL COSTS RECOVERED,24/04/2018,J2248888200518,-556.60,ANCHOR CAREHOMES LTD,CT230164710,Residential Care Homes,52423500
Sheffield City Council,PEOPLE,14009346039,ADULT SOCIAL CARE PURCHASING,4260018,RESIDENTIAL COSTS RECOVERED,24/04/2018,J2248888200518,-552.40,ANCHOR CAREHOMES LTD,CT230164710,Residential Care Homes,52423500
Sheffield City Council,PEOPLE,14009346039,ADULT SOCIAL CARE PURCHASING,4260018,RESIDENTIAL COSTS RECOVERED,24/04/2018,J2248888200518,-550.60,ANCHOR CAREHOMES LTD,CT230164710,Residential Care Homes,52423500
Sheffield City Council,PEOPLE,14009346039,ADULT SOCIAL CARE PURCHASING,4260018,RESIDENTIAL COSTS RECOVERED,24/04/2018,J2219792220418,-550.34,ANCHOR CAREHOMES LTD,CT230164710,Residential Care Homes,52423500
Sheffield City Council,PEOPLE,14009346039,ADULT SOCIAL CARE PURCHASING,4260018,RESIDENTIAL COSTS RECOVERED,24/04/2018,J2219792220418,-545.10,ANCHOR CAREHOMES LTD,CT230164710,Residential Care Homes,52423500
Sheffield City Council,PEOPLE,14009346039,ADULT SOCIAL CARE PURCHASING,4260018,RESIDENTIAL COSTS RECOVERED,24/04/2018,J2219792220418,-544.42,ANCHOR CAREHOMES LTD,CT230164710,Residential Care Homes,52423500
Sheffield City Council,PEOPLE,14009346039,ADULT SOCIAL CARE PURCHASING,4260018,RESIDENTIAL COSTS RECOVERED,24/04/2018,J2219792220418,-532.96,ANCHOR CAREHOMES LTD,CT230164710,Residential Care Homes,52423500
Sheffield City Council,PEOPLE,14009346039,ADULT SOCIAL CARE PURCHASING,4260018,RESIDENTIAL COSTS RECOVERED,24/04/2018,J2248888200518,-532.96,ANCHOR CAREHOMES LTD,CT230164710,Residential Care Homes,52423500
Sheffield City Council,PEOPLE,14009346039,ADULT SOCIAL CARE PURCHASING,4260018,RESIDENTIAL COSTS RECOVERED,24/04/2018,J2248591220418,-387.31,ANCHOR CAREHOMES LTD,CT230164710,Residential Care Homes,52423500
Sheffield City Council,PEOPLE,14009346039,ADULT SOCIAL CARE PURCHASING,4260018,RESIDENTIAL COSTS RECOVERED,24/04/2018,J2219792220418,-378.45,ANCHOR CAREHOMES LTD,CT230164710,Residential Care Homes,52423500
Sheffield City Council,PEOPLE,14009346039,ADULT SOCIAL CARE PURCHASING,4260018,RESIDENTIAL COSTS RECOVERED,24/04/2018,J2219556250318,-330.97,ANCHOR CAREHOMES LTD,CT230164710,Residential Care Homes,52423500
Sheffield City Council,PEOPLE,14009346039,ADULT SOCIAL CARE PURCHASING,4260018,RESIDENTIAL COSTS RECOVERED,24/04/2018,J2216744250218,-175.80,ANCHOR CAREHOMES LTD,CT230164710,Residential Care Homes,52423500
Sheffield City Council,PEOPLE,14009346039,ADULT SOCIAL CARE PURCHASING,4260018,RESIDENTIAL COSTS RECOVERED,24/04/2018,J2219556250318,-146.50,ANCHOR CAREHOMES LTD,CT230164710,Residential Care Homes,52423500
Sheffield City Council,PEOPLE,14009346039,ADULT SOCIAL CARE PURCHASING,4260018,RESIDENTIAL COSTS RECOVERED,24/04/2018,J2219792220418,-140.00,ANCHOR CAREHOMES LTD,CT230164710,Residential Care Homes,52423500
Sheffield City Council,PEOPLE,14009346039,ADULT SOCIAL CARE PURCHASING,4260018,RESIDENTIAL COSTS RECOVERED,24/04/2018,J2248888200518,-140.00,ANCHOR CAREHOMES LTD,CT230164710,Residential Care Homes,52423500
Sheffield City Council,PEOPLE,14009346039,ADULT SOCIAL CARE PURCHASING,4260018,RESIDENTIAL COSTS RECOVERED,24/04/2018,J2219556250318,-29.30,ANCHOR CAREHOMES LTD,CT230164710,Residential Care Homes,52423500
Sheffield City Council,PEOPLE,14009346039,ADULT SOCIAL CARE PURCHASING,4260018,RESIDENTIAL COSTS RECOVERED,24/04/2018,J2219792220418,268.90,ANCHOR CAREHOMES LTD,CT230164710,Residential Care Homes,52423500
Sheffield City Council,PEOPLE,14009346039,ADULT SOCIAL CARE PURCHASING,9200002,SHORT TERM RESIDENTIAL CARE,24/04/2018,J2219556250318,304.29,ANCHOR CAREHOMES LTD,CT230164710,Residential Care Homes,52423500
Sheffield City Council,PEOPLE,14009346039,ADULT SOCIAL CARE PURCHASING,9200002,SHORT TERM RESIDENTIAL CARE,24/04/2018,J2216744250218,365.14,ANCHOR CAREHOMES LTD,CT230164710,Residential Care Homes,52423500
Sheffield City Council,PEOPLE,14009346039,ADULT SOCIAL CARE PURCHASING,4260018,RESIDENTIAL COSTS RECOVERED,24/04/2018,J2219792220418,555.20,ANCHOR CAREHOMES LTD,CT230164710,Residential Care Homes,52423500
Sheffield City Council,PEOPLE,14009346039,ADULT SOCIAL CARE PURCHASING,9200001,CONTINUING RESIDENTIAL CARE,24/04/2018,J2219792220418,850.57,ANCHOR CAREHOMES LTD,CT230164710,Residential Care Homes,52423500
Sheffield City Council,PEOPLE,14009346039,ADULT SOCIAL CARE PURCHASING,9200002,SHORT TERM RESIDENTIAL CARE,24/04/2018,J2219556250318,981.43,ANCHOR CAREHOMES LTD,CT230164710,Residential Care Homes,52423500
Sheffield City Council,PEOPLE,14009346039,ADULT SOCIAL CARE PURCHASING,9200001,CONTINUING RESIDENTIAL CARE,24/04/2018,J2219792220418,"1,016.00",ANCHOR CAREHOMES LTD,CT230164710,Residential Care Homes,52423500
Sheffield City Council,PEOPLE,14009346039,ADULT SOCIAL CARE PURCHASING,9200001,CONTINUING RESIDENTIAL CARE,24/04/2018,J2248888200518,"1,016.00",ANCHOR CAREHOMES LTD,CT230164710,Residential Care Homes,52423500
Sheffield City Council,PEOPLE,14009346039,ADULT SOCIAL CARE PURCHASING,9200002,SHORT TERM RESIDENTIAL CARE,24/04/2018,J2248591220418,"1,081.14",ANCHOR CAREHOMES LTD,CT230164710,Residential Care Homes,52423500
Sheffield City Council,PEOPLE,14009346039,ADULT SOCIAL CARE PURCHASING,9200001,CONTINUING RESIDENTIAL CARE,24/04/2018,J2219792220418,"1,720.00",ANCHOR CAREHOMES LTD,CT230164710,Residential Care Homes,52423500
Sheffield City Council,PEOPLE,14009346039,ADULT SOCIAL CARE PURCHASING,9200001,CONTINUING RESIDENTIAL CARE,24/04/2018,J2219792220418,"1,720.00",ANCHOR CAREHOMES LTD,CT230164710,Residential Care Homes,52423500
Sheffield City Council,PEOPLE,14009346039,ADULT SOCIAL CARE PURCHASING,9200001,CONTINUING RESIDENTIAL CARE,24/04/2018,J2248888200518,"1,720.00",ANCHOR CAREHOMES LTD,CT230164710,Residential Care Homes,52423500
Sheffield City Council,PEOPLE,14009346039,ADULT SOCIAL CARE PURCHASING,9200001,CONTINUING RESIDENTIAL CARE,24/04/2018,J2248888200518,"1,720.00",ANCHOR CAREHOMES LTD,CT230164710,Residential Care Homes,52423500
Sheffield City Council,PEOPLE,14009346039,ADULT SOCIAL CARE PURCHASING,9200001,CONTINUING RESIDENTIAL CARE,24/04/2018,J2219792220418,"1,744.00",ANCHOR CAREHOMES LTD,CT230164710,Residential Care Homes,52423500
Sheffield City Council,PEOPLE,14009346039,ADULT SOCIAL CARE PURCHASING,9200001,CONTINUING RESIDENTIAL CARE,24/04/2018,J2248888200518,"1,744.00",ANCHOR CAREHOMES LTD,CT230164710,Residential Care Homes,52423500
Sheffield City Council,PEOPLE,14009346039,ADULT SOCIAL CARE PURCHASING,9200001,CONTINUING RESIDENTIAL CARE,24/04/2018,J2219792220418,"1,752.00",ANCHOR CAREHOMES LTD,CT230164710,Residential Care Homes,52423500
Sheffield City Council,PEOPLE,14009346039,ADULT SOCIAL CARE PURCHASING,9200001,CONTINUING RESIDENTIAL CARE,24/04/2018,J2219792220418,"1,752.00",ANCHOR CAREHOMES LTD,CT230164710,Residential Care Homes,52423500
Sheffield City Council,PEOPLE,14009346039,ADULT SOCIAL CARE PURCHASING,9200001,CONTINUING RESIDENTIAL CARE,24/04/2018,J2219792220418,"1,752.00",ANCHOR CAREHOMES LTD,CT230164710,Residential Care Homes,52423500
Sheffield City Council,PEOPLE,14009346039,ADULT SOCIAL CARE PURCHASING,9200001,CONTINUING RESIDENTIAL CARE,24/04/2018,J2219792220418,"1,752.00",ANCHOR CAREHOMES LTD,CT230164710,Residential Care Homes,52423500
Sheffield City Council,PEOPLE,14009346039,ADULT SOCIAL CARE PURCHASING,9200001,CONTINUING RESIDENTIAL CARE,24/04/2018,J2219792220418,"1,752.00",ANCHOR CAREHOMES LTD,CT230164710,Residential Care Homes,52423500
Sheffield City Council,PEOPLE,14009346039,ADULT SOCIAL CARE PURCHASING,9200001,CONTINUING RESIDENTIAL CARE,24/04/2018,J2219792220418,"1,752.00",ANCHOR CAREHOMES LTD,CT230164710,Residential Care Homes,52423500
Sheffield City Council,PEOPLE,14009346039,ADULT SOCIAL CARE PURCHASING,9200001,CONTINUING RESIDENTIAL CARE,24/04/2018,J2219792220418,"1,752.00",ANCHOR CAREHOMES LTD,CT230164710,Residential Care Homes,52423500
Sheffield City Council,PEOPLE,14009346039,ADULT SOCIAL CARE PURCHASING,9200001,CONTINUING RESIDENTIAL CARE,24/04/2018,J2219792220418,"1,752.00",ANCHOR CAREHOMES LTD,CT230164710,Residential Care Homes,52423500
Sheffield City Council,PEOPLE,14009346039,ADULT SOCIAL CARE PURCHASING,9200001,CONTINUING RESIDENTIAL CARE,24/04/2018,J2219792220418,"1,752.00",ANCHOR CAREHOMES LTD,CT230164710,Residential Care Homes,52423500
Sheffield City Council,PEOPLE,14009346039,ADULT SOCIAL CARE PURCHASING,9200001,CONTINUING RESIDENTIAL CARE,24/04/2018,J2219792220418,"1,752.00",ANCHOR CAREHOMES LTD,CT230164710,Residential Care Homes,52423500
Sheffield City Council,PEOPLE,14009346039,ADULT SOCIAL CARE PURCHASING,9200001,CONTINUING RESIDENTIAL CARE,24/04/2018,J2248888200518,"1,752.00",ANCHOR CAREHOMES LTD,CT230164710,Residential Care Homes,52423500
Sheffield City Council,PEOPLE,14009346039,ADULT SOCIAL CARE PURCHASING,9200001,CONTINUING RESIDENTIAL CARE,24/04/2018,J2248888200518,"1,752.00",ANCHOR CAREHOMES LTD,CT230164710,Residential Care Homes,52423500
Sheffield City Council,PEOPLE,14009346039,ADULT SOCIAL CARE PURCHASING,9200001,CONTINUING RESIDENTIAL CARE,24/04/2018,J2248888200518,"1,752.00",ANCHOR CAREHOMES LTD,CT230164710,Residential Care Homes,52423500
Sheffield City Council,PEOPLE,14009346039,ADULT SOCIAL CARE PURCHASING,9200001,CONTINUING RESIDENTIAL CARE,24/04/2018,J2248888200518,"1,752.00",ANCHOR CAREHOMES LTD,CT230164710,Residential Care Homes,52423500
Sheffield City Council,PEOPLE,14009346039,ADULT SOCIAL CARE PURCHASING,9200001,CONTINUING RESIDENTIAL CARE,24/04/2018,J2248888200518,"1,752.00",ANCHOR CAREHOMES LTD,CT230164710,Residential Care Homes,52423500
Sheffield City Council,PEOPLE,14009346039,ADULT SOCIAL CARE PURCHASING,9200001,CONTINUING RESIDENTIAL CARE,24/04/2018,J2248888200518,"1,752.00",ANCHOR CAREHOMES LTD,CT230164710,Residential Care Homes,52423500
Sheffield City Council,PEOPLE,14009346039,ADULT SOCIAL CARE PURCHASING,9200001,CONTINUING RESIDENTIAL CARE,24/04/2018,J2248888200518,"1,752.00",ANCHOR CAREHOMES LTD,CT230164710,Residential Care Homes,52423500
Sheffield City Council,PEOPLE,14009346039,ADULT SOCIAL CARE PURCHASING,9200001,CONTINUING RESIDENTIAL CARE,24/04/2018,J2248888200518,"1,752.00",ANCHOR CAREHOMES LTD,CT230164710,Residential Care Homes,52423500
Sheffield City Council,PEOPLE,14009346039,ADULT SOCIAL CARE PURCHASING,9200001,CONTINUING RESIDENTIAL CARE,24/04/2018,J2248888200518,"1,752.00",ANCHOR CAREHOMES LTD,CT230164710,Residential Care Homes,52423500
Sheffield City Council,PEOPLE,14009346039,ADULT SOCIAL CARE PURCHASING,9200001,CONTINUING RESIDENTIAL CARE,24/04/2018,J2248888200518,"1,752.00",ANCHOR CAREHOMES LTD,CT230164710,Residential Care Homes,52423500
Sheffield City Council,PEOPLE,14009346039,ADULT SOCIAL CARE PURCHASING,9200001,CONTINUING RESIDENTIAL CARE,24/04/2018,J2248888200518,"1,752.00",ANCHOR CAREHOMES LTD,CT230164710,Residential Care Homes,52423500
Sheffield City Council,PEOPLE,14009346039,ADULT SOCIAL CARE PURCHASING,9200001,CONTINUING RESIDENTIAL CARE,24/04/2018,J2219792220418,"1,832.00",ANCHOR CAREHOMES LTD,CT230164710,Residential Care Homes,52423500
Sheffield City Council,PEOPLE,14009346039,ADULT SOCIAL CARE PURCHASING,9200001,CONTINUING RESIDENTIAL CARE,24/04/2018,J2219792220418,"1,832.00",ANCHOR CAREHOMES LTD,CT230164710,Residential Care Homes,52423500
Sheffield City Council,PEOPLE,14009346039,ADULT SOCIAL CARE PURCHASING,9200001,CONTINUING RESIDENTIAL CARE,24/04/2018,J2248888200518,"1,832.00",ANCHOR CAREHOMES LTD,CT230164710,Residential Care Homes,52423500
Sheffield City Council,PEOPLE,14009346039,ADULT SOCIAL CARE PURCHASING,9200001,CONTINUING RESIDENTIAL CARE,24/04/2018,J2248888200518,"1,832.00",ANCHOR CAREHOMES LTD,CT230164710,Residential Care Homes,52423500
Sheffield City Council,PEOPLE,14009346039,ADULT SOCIAL CARE PURCHASING,9200001,CONTINUING RESIDENTIAL CARE,24/04/2018,J2219792220418,"1,852.00",ANCHOR CAREHOMES LTD,CT230164710,Residential Care Homes,52423500
Sheffield City Council,PEOPLE,14009346039,ADULT SOCIAL CARE PURCHASING,9200001,CONTINUING RESIDENTIAL CARE,24/04/2018,J2248888200518,"1,852.00",ANCHOR CAREHOMES LTD,CT230164710,Residential Care Homes,52423500
Sheffield City Council,PEOPLE,14009346039,ADULT SOCIAL CARE PURCHASING,9200001,CONTINUING RESIDENTIAL CARE,24/04/2018,J2219792220418,"1,860.00",ANCHOR CAREHOMES LTD,CT230164710,Residential Care Homes,52423500
Sheffield City Council,PEOPLE,14009346039,ADULT SOCIAL CARE PURCHASING,9200001,CONTINUING RESIDENTIAL CARE,24/04/2018,J2248888200518,"1,860.00",ANCHOR CAREHOMES LTD,CT230164710,Residential Care Homes,52423500
Sheffield City Council,PEOPLE,14009346039,ADULT SOCIAL CARE PURCHASING,9200001,CONTINUING RESIDENTIAL CARE,24/04/2018,J2219792220418,"1,872.00",ANCHOR CAREHOMES LTD,CT230164710,Residential Care Homes,52423500
Sheffield City Council,PEOPLE,14009346039,ADULT SOCIAL CARE PURCHASING,9200001,CONTINUING RESIDENTIAL CARE,24/04/2018,J2219792220418,"1,872.00",ANCHOR CAREHOMES LTD,CT230164710,Residential Care Homes,52423500
Sheffield City Council,PEOPLE,14009346039,ADULT SOCIAL CARE PURCHASING,9200001,CONTINUING RESIDENTIAL CARE,24/04/2018,J2219792220418,"1,872.00",ANCHOR CAREHOMES LTD,CT230164710,Residential Care Homes,52423500
Sheffield City Council,PEOPLE,14009346039,ADULT SOCIAL CARE PURCHASING,9200001,CONTINUING RESIDENTIAL CARE,24/04/2018,J2248888200518,"1,872.00",ANCHOR CAREHOMES LTD,CT230164710,Residential Care Homes,52423500
Sheffield City Council,PEOPLE,14009346039,ADULT SOCIAL CARE PURCHASING,9200001,CONTINUING RESIDENTIAL CARE,24/04/2018,J2248888200518,"1,872.00",ANCHOR CAREHOMES LTD,CT230164710,Residential Care Homes,52423500
Sheffield City Council,PEOPLE,14009346039,ADULT SOCIAL CARE PURCHASING,9200001,CONTINUING RESIDENTIAL CARE,24/04/2018,J2248888200518,"1,872.00",ANCHOR CAREHOMES LTD,CT230164710,Residential Care Homes,52423500
Sheffield City Council,PEOPLE,14009346039,ADULT SOCIAL CARE PURCHASING,9200002,SHORT TERM RESIDENTIAL CARE,24/04/2018,J2219556250318,"1,892.00",ANCHOR CAREHOMES LTD,CT230164710,Residential Care Homes,52423500
Sheffield City Council,PEOPLE,14009346039,ADULT SOCIAL CARE PURCHASING,9200001,CONTINUING RESIDENTIAL CARE,24/04/2018,J2219792220418,"1,892.00",ANCHOR CAREHOMES LTD,CT230164710,Residential Care Homes,52423500
Sheffield City Council,PEOPLE,14009346039,ADULT SOCIAL CARE PURCHASING,9200001,CONTINUING RESIDENTIAL CARE,24/04/2018,J2219792220418,"1,892.00",ANCHOR CAREHOMES LTD,CT230164710,Residential Care Homes,52423500
Sheffield City Council,PEOPLE,14009346039,ADULT SOCIAL CARE PURCHASING,9200001,CONTINUING RESIDENTIAL CARE,24/04/2018,J2219792220418,"1,892.00",ANCHOR CAREHOMES LTD,CT230164710,Residential Care Homes,52423500
Sheffield City Council,PEOPLE,14009346039,ADULT SOCIAL CARE PURCHASING,9200001,CONTINUING RESIDENTIAL CARE,24/04/2018,J2219792220418,"1,892.00",ANCHOR CAREHOMES LTD,CT230164710,Residential Care Homes,52423500
Sheffield City Council,PEOPLE,14009346039,ADULT SOCIAL CARE PURCHASING,9200001,CONTINUING RESIDENTIAL CARE,24/04/2018,J2219792220418,"1,892.00",ANCHOR CAREHOMES LTD,CT230164710,Residential Care Homes,52423500
Sheffield City Council,PEOPLE,14009346039,ADULT SOCIAL CARE PURCHASING,9200001,CONTINUING RESIDENTIAL CARE,24/04/2018,J2248888200518,"1,892.00",ANCHOR CAREHOMES LTD,CT230164710,Residential Care Homes,52423500
Sheffield City Council,PEOPLE,14009346039,ADULT SOCIAL CARE PURCHASING,9200001,CONTINUING RESIDENTIAL CARE,24/04/2018,J2248888200518,"1,892.00",ANCHOR CAREHOMES LTD,CT230164710,Residential Care Homes,52423500
Sheffield City Council,PEOPLE,14009346039,ADULT SOCIAL CARE PURCHASING,9200001,CONTINUING RESIDENTIAL CARE,24/04/2018,J2248888200518,"1,892.00",ANCHOR CAREHOMES LTD,CT230164710,Residential Care Homes,52423500
Sheffield City Council,PEOPLE,14009346039,ADULT SOCIAL CARE PURCHASING,9200001,CONTINUING RESIDENTIAL CARE,24/04/2018,J2248888200518,"1,892.00",ANCHOR CAREHOMES LTD,CT230164710,Residential Care Homes,52423500
Sheffield City Council,PEOPLE,14009346039,ADULT SOCIAL CARE PURCHASING,9200001,CONTINUING RESIDENTIAL CARE,24/04/2018,J2248888200518,"1,892.00",ANCHOR CAREHOMES LTD,CT230164710,Residential Care Homes,52423500
Sheffield City Council,PEOPLE,14009346039,ADULT SOCIAL CARE PURCHASING,9200001,CONTINUING RESIDENTIAL CARE,24/04/2018,J2219792220418,"1,900.00",ANCHOR CAREHOMES LTD,CT230164710,Residential Care Homes,52423500
Sheffield City Council,PEOPLE,14009346039,ADULT SOCIAL CARE PURCHASING,9200001,CONTINUING RESIDENTIAL CARE,24/04/2018,J2248888200518,"1,900.00",ANCHOR CAREHOMES LTD,CT230164710,Residential Care Homes,52423500
Sheffield City Council,PEOPLE,14009346039,ADULT SOCIAL CARE PURCHASING,9200001,CONTINUING RESIDENTIAL CARE,24/04/2018,J2219792220418,"3,504.00",ANCHOR CAREHOMES LTD,CT230164710,Residential Care Homes,52423500
Sheffield City Council,PEOPLE,13001839282,CARE PROCEEDINGS (LEGAL FEES),8470000,LEGAL FEES,19/04/2018,39438,365.00,ANDERSON PARTNERSHIP,CT190372460,Solicitors,70140100
Sheffield City Council,PLACE,12077022147,PUBLIC RIGHTS OF WAY,6390021,OTHER HIGHWAY MAINTENANCE,06/04/2018,4007,660.00,ANDERSON TREE CARE LTD,CT102180228,Tree Work & Forestry Services,31608400
Sheffield City Council,PEOPLE,13008533112,LDD PLACEMENTS AUG16-JUL17,9120000,OTHER AGENCIES,10/04/2018,SHEAF2017JULY,"2,340.00",ANDREW HERBERT LTD,CT050220482,Community Projects,63095200
Sheffield City Council,PEOPLE,13008533112,LDD PLACEMENTS AUG16-JUL17,9120000,OTHER AGENCIES,05/04/2018,201709,"2,880.00",ANDREW HERBERT LTD,CT050220482,Community Projects,63095200
Sheffield City Council,PEOPLE,13008533112,LDD PLACEMENTS AUG16-JUL17,9120000,OTHER AGENCIES,05/04/2018,201710,"2,880.00",ANDREW HERBERT LTD,CT050220482,Community Projects,63095200
Sheffield City Council,PEOPLE,13008533112,LDD PLACEMENTS AUG16-JUL17,9120000,OTHER AGENCIES,05/04/2018,218,"2,880.00",ANDREW HERBERT LTD,CT050220482,Community Projects,63095200
Sheffield City Council,PEOPLE,13008533112,LDD PLACEMENTS AUG16-JUL17,9120000,OTHER AGENCIES,12/04/2018,318,"3,060.00",ANDREW HERBERT LTD,CT050220482,Community Projects,63095200
Sheffield City Council,PLACE,11513300000,WORKSHOPS,7010000,ROUTINE VEHICLE REPAIR & MTCE,24/04/2018,101213043,847.13,ANDREW PAGE 1917 LTD,CT262013240,Car Accessories & Parts,43798300
Sheffield City Council,PLACE,14068049314,SOUTH EAST SHEFFIELD,8010000,EQUIPMENT PURCHASE AND REPAIR,23/04/2018,3500765,334.80,ANGEL SPRINGS LIMITED,CT030883801,Water Coolers,42496600
Sheffield City Council,PEOPLE,13005838006,LAC PUPIL PREMIUM,9360000,FUNDS ALLOCATED TO SCHOOLS,24/04/2018,49786,733.00,ANGRAM BANK PRIMARY,CT091167981,Schools - Local Authority,7234200
Sheffield City Council,PLACE,14068588888,BALANCE SHEET,2320000,TARA CONRTOL ACCOUNT,20/04/2018,MPA20180417298-0004,561.60,ANGRAM BANK TARA,CT050220482,Community Projects,44433600
Sheffield City Council,PLACE,14064749224,FURNISHED ACCOMMODATION,8050000,FURNITURE PURCHASES,05/04/2018,SI0330801,"3,930.00",ANNAGHMORE AGENCIES,CT022438895,Furniture - Wholesale,57155600
Sheffield City Council,PLACE,14064749224,FURNISHED ACCOMMODATION,8050000,FURNITURE PURCHASES,05/04/2018,SI0332031,"4,148.85",ANNAGHMORE AGENCIES,CT022438895,Furniture - Wholesale,57155600
Sheffield City Council,PLACE,14067449336,INCOME MGT & FINANCIAL INCLUSI,4080000,FEES & CHARGES,11/04/2018,47643,"28,218.64",AON LIMITED,CT121345415,Insurance - Other,31915800
Sheffield City Council,PLACE,14058149006,SYRIAN VPR YH PARTNERS SCHEME,8010000,EQUIPMENT PURCHASE AND REPAIR,18/04/2018,ORD104162,409.16,APOLLO APPLIANCES LTD,CT025127130,"Domestic Appliances - Servicing, Repairs",20299000
Sheffield City Council,PLACE,14058149006,SYRIAN VPR YH PARTNERS SCHEME,8010000,EQUIPMENT PURCHASE AND REPAIR,18/04/2018,ORD104163,409.16,APOLLO APPLIANCES LTD,CT025127130,"Domestic Appliances - Servicing, Repairs",20299000
Sheffield City Council,PLACE,11513400000,EDUCATION SPECIAL NEEDS,7040000,OTHER VEHICLE RUNNING COSTS,20/04/2018,9AAA,764.00,APOLLO TAXIS 2017 LIMITED,CT261676350,Taxis & Private Hire,70062300
Sheffield City Council,PEOPLE,13000336033,SOCIAL CARE TAXIS,7060000,EXTERNAL VEHICLE HIRE,20/04/2018,9AA,"9,731.75",APOLLO TAXIS 2017 LIMITED,CT261676350,Taxis & Private Hire,70062300
Sheffield City Council,PEOPLE,13000336039,SEN TAXIS,7060000,EXTERNAL VEHICLE HIRE,20/04/2018,9A,"13,388.00",APOLLO TAXIS 2017 LIMITED,CT261676350,Taxis & Private Hire,70062300
Sheffield City Council,PEOPLE,13001138078,NURSERY ED FUND,8180000,GRANTS,18/04/2018,FORECAST_SUMMER_18,"40,751.80",APPLETREE CHILDCARE (SHEFFIELD) LTD,CT090453088,Nurseries & Creches,31183700
Sheffield City Council,PEOPLE,13007733142,CITY DEAL - FRAMEWORKS,9120000,OTHER AGENCIES,25/04/2018,50520,716.52,APPRENTICE TEAM LTD,CT160979980,Training Services,63131300
Sheffield City Council,PEOPLE,13007733142,CITY DEAL - FRAMEWORKS,9120000,OTHER AGENCIES,10/04/2018,47354,"3,155.37",APPRENTICE TEAM LTD,CT160979980,Training Services,63131300
Sheffield City Council,PLACE,12018528103,RISE,8440000,FEE EXPENSES,24/04/2018,AF23042018,"1,000.00",APPROVED FOOD LIMITED,CT030621820,Corner Shops,70197200
Sheffield City Council,PEOPLE,13001138078,NURSERY ED FUND,8180000,GRANTS,18/04/2018,FORECAST_SUMMER_18,"2,020.12",APRIL'S LITTLE STARS CHILDMINDING,CT090353120,Nursery Schools,59468700
Sheffield City Council,PLACE,12017722063,ENERGY,8270000,SUBSCRIPTIONS,23/04/2018,1819/360,"2,050.00",APSE,CT121212118,Business & Trade Organisations,33703600
Sheffield City Council,RESOURCES,11200112001,FCS LEADERSHIP TEAM,8440000,FEE EXPENSES,11/04/2018,1819/186,"4,189.00",APSE,CT121212118,Business & Trade Organisations,33703600
Sheffield City Council,PLACE,14059097394,HULL - HUMBER SUB REGION HAL,1194000,OTHER FEES,24/04/2018,49307,"3,924.41",AQUA-FLOW PLUMBING & HEATING SPECIALISTS,CT079959790,Plumbers,59046000
Sheffield City Council,PEOPLE,14009946091,APS - MANOR CENTRE,8010000,EQUIPMENT PURCHASE AND REPAIR,11/04/2018,228646,257.40,AQUAID (SOUTH YORKSHIRE),CT030883801,Water Coolers,20300700
Sheffield City Council,PEOPLE,14046949661,LUNCH CLUB GRANT,8180000,GRANTS,04/04/2018,MPA20180404296-0044,500.00,ARBOURTHORNE COMMUNITY CHURCH,CT219958820,Places Of Worship,61971700
Sheffield City Council,PLACE,14068588888,BALANCE SHEET,2320000,TARA CONRTOL ACCOUNT,20/04/2018,MPA20180417298-0007,"2,546.70",ARBOURTHORNE TARA,CT050220482,Community Projects,48371200
Sheffield City Council,PEOPLE,13005739532,EARLY YEARS SEN TEAM,8440000,FEE EXPENSES,25/04/2018,50515,455.00,ARBOURTHORNE TIDDLYWINKS,CT090453088,Nurseries & Creches,39606400
Sheffield City Council,PEOPLE,13005739532,EARLY YEARS SEN TEAM,8440000,FEE EXPENSES,23/04/2018,48899,585.00,ARBOURTHORNE TIDDLYWINKS,CT090453088,Nurseries & Creches,39606400
Sheffield City Council,PLACE,12018528110,SOUTH YORKSHIRE BROADBAND,8440000,FEE EXPENSES,30/04/2018,9000238958,"7,452.57",BARNSLEY MBC,CT219948583,Local Government,41483903
Sheffield City Council,PEOPLE,13001138078,NURSERY ED FUND,8180000,GRANTS,18/04/2018,FORECAST_SUMMER_18,"67,512.56",ARBOURTHORNE TIDDLYWINKS USE396064,CT090453088,Nurseries & Creches,36517600
Sheffield City Council,PLACE,11850300000,OPERATIONAL OVERHEADS,8110000,CLOTHING  UNIFORM AND LAUNDRY,13/04/2018,932451097,-349.25,ARCO LTD,CT024966190,Safety Equipment & Clothing,20302100
Sheffield City Council,PLACE,12045321351,GROUNDS MAINTENANCE,8010000,EQUIPMENT PURCHASE AND REPAIR,24/04/2018,932771084,-115.55,ARCO LTD,CT024966190,Safety Equipment & Clothing,20302100
Sheffield City Council,PLACE,11850500000,STOCK CONTROL,8070000,STOCKS AND STORES,18/04/2018,932666426,-96.48,ARCO LTD,CT024966190,Safety Equipment & Clothing,20302100
Sheffield City Council,PLACE,11850500000,STOCK CONTROL,8070000,STOCKS AND STORES,23/04/2018,932451020,-83.76,ARCO LTD,CT024966190,Safety Equipment & Clothing,20302100
Sheffield City Council,PLACE,14065949213,GARDEN MAINTENANCE SCHEME,8060000,MATERIALS AND SUPPLIES GENERAL,10/04/2018,932676751,-34.78,ARCO LTD,CT024966190,Safety Equipment & Clothing,20302100
Sheffield City Council,PLACE,11850500000,STOCK CONTROL,8070000,STOCKS AND STORES,18/04/2018,932705455,-30.32,ARCO LTD,CT024966190,Safety Equipment & Clothing,20302100
Sheffield City Council,PLACE,12045321351,GROUNDS MAINTENANCE,8010000,EQUIPMENT PURCHASE AND REPAIR,24/04/2018,932771084,-28.79,ARCO LTD,CT024966190,Safety Equipment & Clothing,20302101
Sheffield City Council,PLACE,11850500000,STOCK CONTROL,8070000,STOCKS AND STORES,18/04/2018,932280569,-19.47,ARCO LTD,CT024966190,Safety Equipment & Clothing,20302100
Sheffield City Council,PLACE,12000123004,KENNELLING,8010000,EQUIPMENT PURCHASE AND REPAIR,18/04/2018,932708509,299.04,ARCO LTD,CT024966190,Safety Equipment & Clothing,20302101
Sheffield City Council,PLACE,11850500000,STOCK CONTROL,8070000,STOCKS AND STORES,17/04/2018,932352062,365.50,ARCO LTD,CT024966190,Safety Equipment & Clothing,20302100
Sheffield City Council,PLACE,11850500000,STOCK CONTROL,8070000,STOCKS AND STORES,11/04/2018,932560868,583.00,ARCO LTD,CT024966190,Safety Equipment & Clothing,20302100
Sheffield City Council,PLACE,11850500000,STOCK CONTROL,8070000,STOCKS AND STORES,18/04/2018,932244044/932717170,839.97,ARCO LTD,CT024966190,Safety Equipment & Clothing,20302100
Sheffield City Council,PLACE,12045925054,RANGER SERVICE,8110000,CLOTHING  UNIFORM AND LAUNDRY,12/04/2018,533533,-40.95,ARDEN WINCH & CO LTD,CT024966190,Safety Equipment & Clothing,20302300
Sheffield City Council,PLACE,14068049314,SOUTH EAST SHEFFIELD,8110000,CLOTHING  UNIFORM AND LAUNDRY,27/04/2018,535394,-39.15,ARDEN WINCH & CO LTD,CT024966190,Safety Equipment & Clothing,20302300
Sheffield City Council,PLACE,14064649320,OLDER PERSON INDEPENDENT LIVIN,8110000,CLOTHING  UNIFORM AND LAUNDRY,04/04/2018,532745,-28.25,ARDEN WINCH & CO LTD,CT024966190,Safety Equipment & Clothing,20302300
Sheffield City Council,PLACE,14067549335,ASB & COMMUNITY SAFETY,8110000,CLOTHING  UNIFORM AND LAUNDRY,04/04/2018,532731,-24.95,ARDEN WINCH & CO LTD,CT024966190,Safety Equipment & Clothing,20302300
Sheffield City Council,PLACE,14064649320,OLDER PERSON INDEPENDENT LIVIN,8110000,CLOTHING  UNIFORM AND LAUNDRY,04/04/2018,532746,-13.93,ARDEN WINCH & CO LTD,CT024966190,Safety Equipment & Clothing,20302300
Sheffield City Council,PLACE,12075500000,TECHNICAL TEAM,8110000,CLOTHING  UNIFORM AND LAUNDRY,26/04/2018,534614,250.00,ARDEN WINCH & CO LTD,CT024966190,Safety Equipment & Clothing,20302300
Sheffield City Council,PLACE,12046025052,PARKS SERVICE MANAGER,8110000,CLOTHING  UNIFORM AND LAUNDRY,19/04/2018,532876,283.41,ARDEN WINCH & CO LTD,CT024966190,Safety Equipment & Clothing,20302300
Sheffield City Council,PLACE,11850500000,STOCK CONTROL,8070000,STOCKS AND STORES,26/04/2018,534185,301.00,ARDEN WINCH & CO LTD,CT024966190,Safety Equipment & Clothing,20302300
Sheffield City Council,PLACE,11850500000,STOCK CONTROL,8070000,STOCKS AND STORES,23/04/2018,533620,317.20,ARDEN WINCH & CO LTD,CT024966190,Safety Equipment & Clothing,20302300
Sheffield City Council,PLACE,11850500000,STOCK CONTROL,8070000,STOCKS AND STORES,04/04/2018,531598,369.15,ARDEN WINCH & CO LTD,CT024966190,Safety Equipment & Clothing,20302300
Sheffield City Council,PLACE,11850500000,STOCK CONTROL,8070000,STOCKS AND STORES,30/04/2018,532280,383.40,ARDEN WINCH & CO LTD,CT024966190,Safety Equipment & Clothing,20302300
Sheffield City Council,PLACE,12046025001,GRAVES PARK - ANIMAL FARM INC,8060000,MATERIALS AND SUPPLIES GENERAL,12/04/2018,493414,416.30,ARGO FEEDS LTD,CT109957220,Pet Foods & Animal Feeds,20302800
Sheffield City Council,PLACE,12046025001,GRAVES PARK - ANIMAL FARM INC,8060000,MATERIALS AND SUPPLIES GENERAL,12/04/2018,496376,492.05,ARGO FEEDS LTD,CT109957220,Pet Foods & Animal Feeds,20302800
Sheffield City Council,PLACE,12046025001,GRAVES PARK - ANIMAL FARM INC,8060000,MATERIALS AND SUPPLIES GENERAL,12/04/2018,494789,506.25,ARGO FEEDS LTD,CT109957220,Pet Foods & Animal Feeds,20302800
Sheffield City Council,PLACE,12046025001,GRAVES PARK - ANIMAL FARM INC,8060000,MATERIALS AND SUPPLIES GENERAL,12/04/2018,495378,578.64,ARGO FEEDS LTD,CT109957220,Pet Foods & Animal Feeds,20302800
Sheffield City Council,PLACE,12046025001,GRAVES PARK - ANIMAL FARM INC,8060000,MATERIALS AND SUPPLIES GENERAL,30/04/2018,498814,629.62,ARGO FEEDS LTD,CT109957220,Pet Foods & Animal Feeds,20302800
Sheffield City Council,PEOPLE,13003439189,MATHER ROAD,8010000,EQUIPMENT PURCHASE AND REPAIR,06/04/2018,7108567RI,558.33,ARGOS LTD,CT029915970,Catalogue Showrooms,20302904
Sheffield City Council,PLACE,12000323012,FOOD HYGIENE,8350000,MISCELLANEOUS EXPENSES,24/04/2018,2741,267.30,ARI ENVIRONMENTAL SERVICES LTD,CT021144320,Hygiene & Cleansing Services,62660100
Sheffield City Council,PLACE,12000323012,FOOD HYGIENE,8350000,MISCELLANEOUS EXPENSES,24/04/2018,2742,533.00,ARI ENVIRONMENTAL SERVICES LTD,CT021144320,Hygiene & Cleansing Services,62660100
Sheffield City Council,PLACE,12000323012,FOOD HYGIENE,8350000,MISCELLANEOUS EXPENSES,24/04/2018,2744,547.70,ARI ENVIRONMENTAL SERVICES LTD,CT021144320,Hygiene & Cleansing Services,62660100
Sheffield City Council,PLACE,12000323012,FOOD HYGIENE,8350000,MISCELLANEOUS EXPENSES,24/04/2018,2743,"1,317.10",ARI ENVIRONMENTAL SERVICES LTD,CT021144320,Hygiene & Cleansing Services,62660100
Sheffield City Council,PEOPLE,14009346039,ADULT SOCIAL CARE PURCHASING,9190002,BLOCK CONTRACT,25/04/2018,J2249457010418,"-4,178.88",ARK HOME HEALTHCARE LTD,CT230164710,Residential Care Homes,58875900
Sheffield City Council,PEOPLE,14009346039,ADULT SOCIAL CARE PURCHASING,9190002,BLOCK CONTRACT,25/04/2018,J2249459010418,"-2,200.31",ARK HOME HEALTHCARE LTD,CT230164710,Residential Care Homes,58875900
Sheffield City Council,PEOPLE,14009346039,ADULT SOCIAL CARE PURCHASING,9190002,BLOCK CONTRACT,25/04/2018,J2249457010418,"-1,953.92",ARK HOME HEALTHCARE LTD,CT230164710,Residential Care Homes,58875900
Sheffield City Council,PEOPLE,14009346039,ADULT SOCIAL CARE PURCHASING,9190002,BLOCK CONTRACT,25/04/2018,J2249458010418,"-1,910.27",ARK HOME HEALTHCARE LTD,CT230164710,Residential Care Homes,58875900
Sheffield City Council,PEOPLE,14009346039,ADULT SOCIAL CARE PURCHASING,9190002,BLOCK CONTRACT,25/04/2018,J2249424010418,"-1,322.40",ARK HOME HEALTHCARE LTD,CT230164710,Residential Care Homes,58875900
Sheffield City Council,PEOPLE,14009346039,ADULT SOCIAL CARE PURCHASING,9190002,BLOCK CONTRACT,25/04/2018,J2249458010418,"-1,244.74",ARK HOME HEALTHCARE LTD,CT230164710,Residential Care Homes,58875900
Sheffield City Council,PEOPLE,14009346039,ADULT SOCIAL CARE PURCHASING,9190002,BLOCK CONTRACT,25/04/2018,J2249459010418,"-1,192.80",ARK HOME HEALTHCARE LTD,CT230164710,Residential Care Homes,58875900
Sheffield City Council,PEOPLE,14009346039,ADULT SOCIAL CARE PURCHASING,9190002,BLOCK CONTRACT,25/04/2018,J2249459010418,-734.29,ARK HOME HEALTHCARE LTD,CT230164710,Residential Care Homes,58875900
Sheffield City Council,PEOPLE,14009346039,ADULT SOCIAL CARE PURCHASING,9190002,BLOCK CONTRACT,25/04/2018,J2249457010418,-610.74,ARK HOME HEALTHCARE LTD,CT230164710,Residential Care Homes,58875900
Sheffield City Council,PEOPLE,14009346039,ADULT SOCIAL CARE PURCHASING,9190002,BLOCK CONTRACT,25/04/2018,J2249457010418,-484.48,ARK HOME HEALTHCARE LTD,CT230164710,Residential Care Homes,58875900
Sheffield City Council,PEOPLE,14009346039,ADULT SOCIAL CARE PURCHASING,9190002,BLOCK CONTRACT,25/04/2018,J2249458010418,-247.89,ARK HOME HEALTHCARE LTD,CT230164710,Residential Care Homes,58875900
Sheffield City Council,PEOPLE,14009346039,ADULT SOCIAL CARE PURCHASING,9190002,BLOCK CONTRACT,25/04/2018,J2249477010418,-219.95,ARK HOME HEALTHCARE LTD,CT230164710,Residential Care Homes,58875900
Sheffield City Council,PEOPLE,14009346039,ADULT SOCIAL CARE PURCHASING,9190002,BLOCK CONTRACT,25/04/2018,J2249457010418,-191.73,ARK HOME HEALTHCARE LTD,CT230164710,Residential Care Homes,58875900
Sheffield City Council,PEOPLE,14009346039,ADULT SOCIAL CARE PURCHASING,9190002,BLOCK CONTRACT,25/04/2018,J2249459010418,257.38,ARK HOME HEALTHCARE LTD,CT230164710,Residential Care Homes,58875900
Sheffield City Council,PEOPLE,14009346039,ADULT SOCIAL CARE PURCHASING,9190002,BLOCK CONTRACT,25/04/2018,J2249459010418,262.48,ARK HOME HEALTHCARE LTD,CT230164710,Residential Care Homes,58875900
Sheffield City Council,PEOPLE,14009346039,ADULT SOCIAL CARE PURCHASING,9190002,BLOCK CONTRACT,25/04/2018,J2249458010418,263.44,ARK HOME HEALTHCARE LTD,CT230164710,Residential Care Homes,58875900
Sheffield City Council,PEOPLE,14009346039,ADULT SOCIAL CARE PURCHASING,9190002,BLOCK CONTRACT,25/04/2018,J2249477010418,264.65,ARK HOME HEALTHCARE LTD,CT230164710,Residential Care Homes,58875900
Sheffield City Council,PEOPLE,14009346039,ADULT SOCIAL CARE PURCHASING,9190002,BLOCK CONTRACT,25/04/2018,J2249457010418,267.48,ARK HOME HEALTHCARE LTD,CT230164710,Residential Care Homes,58875900
Sheffield City Council,PEOPLE,14009346039,ADULT SOCIAL CARE PURCHASING,9190002,BLOCK CONTRACT,25/04/2018,J2249457010418,272.52,ARK HOME HEALTHCARE LTD,CT230164710,Residential Care Homes,58875900
Sheffield City Council,PEOPLE,14009346039,ADULT SOCIAL CARE PURCHASING,9190002,BLOCK CONTRACT,25/04/2018,J2249457010418,272.52,ARK HOME HEALTHCARE LTD,CT230164710,Residential Care Homes,58875900
Sheffield City Council,PEOPLE,14009346039,ADULT SOCIAL CARE PURCHASING,9190002,BLOCK CONTRACT,25/04/2018,J2249459010418,272.52,ARK HOME HEALTHCARE LTD,CT230164710,Residential Care Homes,58875900
Sheffield City Council,PEOPLE,14009346039,ADULT SOCIAL CARE PURCHASING,9190002,BLOCK CONTRACT,25/04/2018,J2249459010418,277.60,ARK HOME HEALTHCARE LTD,CT230164710,Residential Care Homes,58875900
Sheffield City Council,PEOPLE,14009346039,ADULT SOCIAL CARE PURCHASING,9190002,BLOCK CONTRACT,25/04/2018,J2249457010418,282.52,ARK HOME HEALTHCARE LTD,CT230164710,Residential Care Homes,58875900
Sheffield City Council,PEOPLE,14009346039,ADULT SOCIAL CARE PURCHASING,9190002,BLOCK CONTRACT,25/04/2018,J2249457010418,282.52,ARK HOME HEALTHCARE LTD,CT230164710,Residential Care Homes,58875900
Sheffield City Council,PEOPLE,14009346039,ADULT SOCIAL CARE PURCHASING,9190002,BLOCK CONTRACT,25/04/2018,J2249457010418,282.52,ARK HOME HEALTHCARE LTD,CT230164710,Residential Care Homes,58875900
Sheffield City Council,PEOPLE,14009346039,ADULT SOCIAL CARE PURCHASING,9190002,BLOCK CONTRACT,25/04/2018,J2249457010418,282.52,ARK HOME HEALTHCARE LTD,CT230164710,Residential Care Homes,58875900
Sheffield City Council,PEOPLE,14009346039,ADULT SOCIAL CARE PURCHASING,9190002,BLOCK CONTRACT,25/04/2018,J2249457010418,282.52,ARK HOME HEALTHCARE LTD,CT230164710,Residential Care Homes,58875900
Sheffield City Council,PEOPLE,14009346039,ADULT SOCIAL CARE PURCHASING,9190002,BLOCK CONTRACT,25/04/2018,J2249459010418,282.52,ARK HOME HEALTHCARE LTD,CT230164710,Residential Care Homes,58875900
Sheffield City Council,PEOPLE,14009346039,ADULT SOCIAL CARE PURCHASING,9190002,BLOCK CONTRACT,25/04/2018,J2249457010418,282.64,ARK HOME HEALTHCARE LTD,CT230164710,Residential Care Homes,58875900
Sheffield City Council,PEOPLE,14009346039,ADULT SOCIAL CARE PURCHASING,9190002,BLOCK CONTRACT,25/04/2018,J2249477010418,283.64,ARK HOME HEALTHCARE LTD,CT230164710,Residential Care Homes,58875900
Sheffield City Council,PEOPLE,14009346039,ADULT SOCIAL CARE PURCHASING,9190002,BLOCK CONTRACT,25/04/2018,J2249459010418,287.64,ARK HOME HEALTHCARE LTD,CT230164710,Residential Care Homes,58875900
Sheffield City Council,PEOPLE,14009346039,ADULT SOCIAL CARE PURCHASING,9190007,FUNDED HOME SUPPORT,25/04/2018,J2249458010418,289.16,ARK HOME HEALTHCARE LTD,CT230164710,Residential Care Homes,58875900
Sheffield City Council,PEOPLE,14009346039,ADULT SOCIAL CARE PURCHASING,9190002,BLOCK CONTRACT,25/04/2018,J2249457010418,302.76,ARK HOME HEALTHCARE LTD,CT230164710,Residential Care Homes,58875900
Sheffield City Council,PEOPLE,14009242034,PURCHASING LEARNING DISABILITI,9190007,FUNDED HOME SUPPORT,25/04/2018,J2249459010418,302.80,ARK HOME HEALTHCARE LTD,CT230164710,Residential Care Homes,58875900
Sheffield City Council,PEOPLE,14009346039,ADULT SOCIAL CARE PURCHASING,9190002,BLOCK CONTRACT,25/04/2018,J2249459010418,302.80,ARK HOME HEALTHCARE LTD,CT230164710,Residential Care Homes,58875900
Sheffield City Council,PEOPLE,14009346039,ADULT SOCIAL CARE PURCHASING,9190002,BLOCK CONTRACT,25/04/2018,J2249459010418,302.80,ARK HOME HEALTHCARE LTD,CT230164710,Residential Care Homes,58875900
Sheffield City Council,PEOPLE,14009346039,ADULT SOCIAL CARE PURCHASING,9190002,BLOCK CONTRACT,25/04/2018,J2249457010418,307.80,ARK HOME HEALTHCARE LTD,CT230164710,Residential Care Homes,58875900
Sheffield City Council,PEOPLE,14009346039,ADULT SOCIAL CARE PURCHASING,9190002,BLOCK CONTRACT,25/04/2018,J2249457010418,307.80,ARK HOME HEALTHCARE LTD,CT230164710,Residential Care Homes,58875900
Sheffield City Council,PEOPLE,13007633017,AMBITIONS SCR,9120000,OTHER AGENCIES,10/04/2018,9000236871,"34,061.84",BARNSLEY MBC,CT219948583,Local Government,41483903
Sheffield City Council,PEOPLE,14009346039,ADULT SOCIAL CARE PURCHASING,9190002,BLOCK CONTRACT,25/04/2018,J2249459010418,307.91,ARK HOME HEALTHCARE LTD,CT230164710,Residential Care Homes,58875900
Sheffield City Council,PEOPLE,14009346039,ADULT SOCIAL CARE PURCHASING,9190002,BLOCK CONTRACT,25/04/2018,J2249458010418,309.80,ARK HOME HEALTHCARE LTD,CT230164710,Residential Care Homes,58875900
Sheffield City Council,PEOPLE,14009346039,ADULT SOCIAL CARE PURCHASING,9190002,BLOCK CONTRACT,25/04/2018,J2249459010418,312.80,ARK HOME HEALTHCARE LTD,CT230164710,Residential Care Homes,58875900
Sheffield City Council,PEOPLE,14009346039,ADULT SOCIAL CARE PURCHASING,9190002,BLOCK CONTRACT,25/04/2018,J2249457010418,318.08,ARK HOME HEALTHCARE LTD,CT230164710,Residential Care Homes,58875900
Sheffield City Council,PEOPLE,14009346039,ADULT SOCIAL CARE PURCHASING,9190002,BLOCK CONTRACT,25/04/2018,J2249457010418,318.08,ARK HOME HEALTHCARE LTD,CT230164710,Residential Care Homes,58875900
Sheffield City Council,PEOPLE,14009346039,ADULT SOCIAL CARE PURCHASING,9190002,BLOCK CONTRACT,25/04/2018,J2249457010418,318.08,ARK HOME HEALTHCARE LTD,CT230164710,Residential Care Homes,58875900
Sheffield City Council,PEOPLE,14009346039,ADULT SOCIAL CARE PURCHASING,9190002,BLOCK CONTRACT,25/04/2018,J2249457010418,318.08,ARK HOME HEALTHCARE LTD,CT230164710,Residential Care Homes,58875900
Sheffield City Council,PEOPLE,14009346039,ADULT SOCIAL CARE PURCHASING,9190002,BLOCK CONTRACT,25/04/2018,J2249457010418,322.92,ARK HOME HEALTHCARE LTD,CT230164710,Residential Care Homes,58875900
Sheffield City Council,PEOPLE,14009346039,ADULT SOCIAL CARE PURCHASING,9190002,BLOCK CONTRACT,25/04/2018,J2249458010418,325.36,ARK HOME HEALTHCARE LTD,CT230164710,Residential Care Homes,58875900
Sheffield City Council,PEOPLE,14009346039,ADULT SOCIAL CARE PURCHASING,9190002,BLOCK CONTRACT,25/04/2018,J2249458010418,325.36,ARK HOME HEALTHCARE LTD,CT230164710,Residential Care Homes,58875900
Sheffield City Council,PEOPLE,14009346039,ADULT SOCIAL CARE PURCHASING,9190002,BLOCK CONTRACT,25/04/2018,J2249458010418,330.52,ARK HOME HEALTHCARE LTD,CT230164710,Residential Care Homes,58875900
Sheffield City Council,PEOPLE,14009346039,ADULT SOCIAL CARE PURCHASING,9190002,BLOCK CONTRACT,25/04/2018,J2249457010418,352.08,ARK HOME HEALTHCARE LTD,CT230164710,Residential Care Homes,58875900
Sheffield City Council,PEOPLE,14009346039,ADULT SOCIAL CARE PURCHASING,9190002,BLOCK CONTRACT,25/04/2018,J2249457010418,353.36,ARK HOME HEALTHCARE LTD,CT230164710,Residential Care Homes,58875900
Sheffield City Council,PEOPLE,14009346039,ADULT SOCIAL CARE PURCHASING,9190002,BLOCK CONTRACT,25/04/2018,J2249457010418,353.36,ARK HOME HEALTHCARE LTD,CT230164710,Residential Care Homes,58875900
Sheffield City Council,PEOPLE,14009346039,ADULT SOCIAL CARE PURCHASING,9190002,BLOCK CONTRACT,25/04/2018,J2249457010418,353.36,ARK HOME HEALTHCARE LTD,CT230164710,Residential Care Homes,58875900
Sheffield City Council,PEOPLE,14009346039,ADULT SOCIAL CARE PURCHASING,9190002,BLOCK CONTRACT,25/04/2018,J2249457010418,353.36,ARK HOME HEALTHCARE LTD,CT230164710,Residential Care Homes,58875900
Sheffield City Council,PEOPLE,14009346039,ADULT SOCIAL CARE PURCHASING,9190002,BLOCK CONTRACT,25/04/2018,J2249459010418,353.36,ARK HOME HEALTHCARE LTD,CT230164710,Residential Care Homes,58875900
Sheffield City Council,PEOPLE,14009346039,ADULT SOCIAL CARE PURCHASING,9190002,BLOCK CONTRACT,25/04/2018,J2249424010418,354.76,ARK HOME HEALTHCARE LTD,CT230164710,Residential Care Homes,58875900
Sheffield City Council,PEOPLE,14009346039,ADULT SOCIAL CARE PURCHASING,9190002,BLOCK CONTRACT,25/04/2018,J2249457010418,358.24,ARK HOME HEALTHCARE LTD,CT230164710,Residential Care Homes,58875900
Sheffield City Council,PEOPLE,14009346039,ADULT SOCIAL CARE PURCHASING,9190002,BLOCK CONTRACT,25/04/2018,J2249457010418,358.40,ARK HOME HEALTHCARE LTD,CT230164710,Residential Care Homes,58875900
Sheffield City Council,PEOPLE,14009346039,ADULT SOCIAL CARE PURCHASING,9190002,BLOCK CONTRACT,25/04/2018,J2249458010418,361.48,ARK HOME HEALTHCARE LTD,CT230164710,Residential Care Homes,58875900
Sheffield City Council,PEOPLE,14009346039,ADULT SOCIAL CARE PURCHASING,9190002,BLOCK CONTRACT,25/04/2018,J2249458010418,361.48,ARK HOME HEALTHCARE LTD,CT230164710,Residential Care Homes,58875900
Sheffield City Council,PEOPLE,14009346039,ADULT SOCIAL CARE PURCHASING,9190002,BLOCK CONTRACT,25/04/2018,J2249458010418,361.48,ARK HOME HEALTHCARE LTD,CT230164710,Residential Care Homes,58875900
Sheffield City Council,PEOPLE,14009346039,ADULT SOCIAL CARE PURCHASING,9190002,BLOCK CONTRACT,25/04/2018,J2249477010418,364.80,ARK HOME HEALTHCARE LTD,CT230164710,Residential Care Homes,58875900
Sheffield City Council,PEOPLE,14009346039,ADULT SOCIAL CARE PURCHASING,9190002,BLOCK CONTRACT,25/04/2018,J2249458010418,371.76,ARK HOME HEALTHCARE LTD,CT230164710,Residential Care Homes,58875900
Sheffield City Council,PEOPLE,14009346039,ADULT SOCIAL CARE PURCHASING,9190002,BLOCK CONTRACT,25/04/2018,J2249459010418,393.64,ARK HOME HEALTHCARE LTD,CT230164710,Residential Care Homes,58875900
Sheffield City Council,PEOPLE,14009346039,ADULT SOCIAL CARE PURCHASING,9190002,BLOCK CONTRACT,25/04/2018,J2249424010418,399.00,ARK HOME HEALTHCARE LTD,CT230164710,Residential Care Homes,58875900
Sheffield City Council,PEOPLE,14009346039,ADULT SOCIAL CARE PURCHASING,9190002,BLOCK CONTRACT,25/04/2018,J2249458010418,402.76,ARK HOME HEALTHCARE LTD,CT230164710,Residential Care Homes,58875900
Sheffield City Council,PEOPLE,14009346039,ADULT SOCIAL CARE PURCHASING,9190002,BLOCK CONTRACT,25/04/2018,J2249457010418,403.68,ARK HOME HEALTHCARE LTD,CT230164710,Residential Care Homes,58875900
Sheffield City Council,PEOPLE,14009346039,ADULT SOCIAL CARE PURCHASING,9190002,BLOCK CONTRACT,25/04/2018,J2249457010418,412.58,ARK HOME HEALTHCARE LTD,CT230164710,Residential Care Homes,58875900
Sheffield City Council,PEOPLE,14009346039,ADULT SOCIAL CARE PURCHASING,9190002,BLOCK CONTRACT,25/04/2018,J2249459010418,418.96,ARK HOME HEALTHCARE LTD,CT230164710,Residential Care Homes,58875900
Sheffield City Council,PEOPLE,14009346039,ADULT SOCIAL CARE PURCHASING,9190002,BLOCK CONTRACT,25/04/2018,J2249457010418,423.92,ARK HOME HEALTHCARE LTD,CT230164710,Residential Care Homes,58875900
Sheffield City Council,PEOPLE,14009346039,ADULT SOCIAL CARE PURCHASING,9190002,BLOCK CONTRACT,25/04/2018,J2249457010418,423.92,ARK HOME HEALTHCARE LTD,CT230164710,Residential Care Homes,58875900
Sheffield City Council,PEOPLE,14009346039,ADULT SOCIAL CARE PURCHASING,9190002,BLOCK CONTRACT,25/04/2018,J2249457010418,423.92,ARK HOME HEALTHCARE LTD,CT230164710,Residential Care Homes,58875900
Sheffield City Council,PEOPLE,14009346039,ADULT SOCIAL CARE PURCHASING,9190002,BLOCK CONTRACT,25/04/2018,J2249457010418,423.92,ARK HOME HEALTHCARE LTD,CT230164710,Residential Care Homes,58875900
Sheffield City Council,PEOPLE,14009346039,ADULT SOCIAL CARE PURCHASING,9190002,BLOCK CONTRACT,25/04/2018,J2249457010418,423.92,ARK HOME HEALTHCARE LTD,CT230164710,Residential Care Homes,58875900
Sheffield City Council,PEOPLE,14009346039,ADULT SOCIAL CARE PURCHASING,9190002,BLOCK CONTRACT,25/04/2018,J2249457010418,423.92,ARK HOME HEALTHCARE LTD,CT230164710,Residential Care Homes,58875900
Sheffield City Council,PEOPLE,14009346039,ADULT SOCIAL CARE PURCHASING,9190002,BLOCK CONTRACT,25/04/2018,J2249457010418,423.92,ARK HOME HEALTHCARE LTD,CT230164710,Residential Care Homes,58875900
Sheffield City Council,PEOPLE,14009346039,ADULT SOCIAL CARE PURCHASING,9190002,BLOCK CONTRACT,25/04/2018,J2249457010418,423.92,ARK HOME HEALTHCARE LTD,CT230164710,Residential Care Homes,58875900
Sheffield City Council,PEOPLE,14009346039,ADULT SOCIAL CARE PURCHASING,9190002,BLOCK CONTRACT,25/04/2018,J2249459010418,423.92,ARK HOME HEALTHCARE LTD,CT230164710,Residential Care Homes,58875900
Sheffield City Council,PEOPLE,14009346039,ADULT SOCIAL CARE PURCHASING,9190002,BLOCK CONTRACT,25/04/2018,J2249477010418,425.60,ARK HOME HEALTHCARE LTD,CT230164710,Residential Care Homes,58875900
Sheffield City Council,PEOPLE,14009346039,ADULT SOCIAL CARE PURCHASING,9190002,BLOCK CONTRACT,25/04/2018,J2249477010418,425.60,ARK HOME HEALTHCARE LTD,CT230164710,Residential Care Homes,58875900
Sheffield City Council,PEOPLE,14009346039,ADULT SOCIAL CARE PURCHASING,9190002,BLOCK CONTRACT,25/04/2018,J2249457010418,429.00,ARK HOME HEALTHCARE LTD,CT230164710,Residential Care Homes,58875900
Sheffield City Council,PEOPLE,14009346039,ADULT SOCIAL CARE PURCHASING,9190002,BLOCK CONTRACT,25/04/2018,J2249458010418,433.72,ARK HOME HEALTHCARE LTD,CT230164710,Residential Care Homes,58875900
Sheffield City Council,PEOPLE,14009346039,ADULT SOCIAL CARE PURCHASING,9190002,BLOCK CONTRACT,25/04/2018,J2249457010418,454.20,ARK HOME HEALTHCARE LTD,CT230164710,Residential Care Homes,58875900
Sheffield City Council,PEOPLE,14009346039,ADULT SOCIAL CARE PURCHASING,9190002,BLOCK CONTRACT,25/04/2018,J2249457010418,454.23,ARK HOME HEALTHCARE LTD,CT230164710,Residential Care Homes,58875900
Sheffield City Council,PEOPLE,14009346039,ADULT SOCIAL CARE PURCHASING,9190002,BLOCK CONTRACT,25/04/2018,J2249457010418,459.20,ARK HOME HEALTHCARE LTD,CT230164710,Residential Care Homes,58875900
Sheffield City Council,PEOPLE,14009346039,ADULT SOCIAL CARE PURCHASING,9190002,BLOCK CONTRACT,25/04/2018,J2249457010418,464.32,ARK HOME HEALTHCARE LTD,CT230164710,Residential Care Homes,58875900
Sheffield City Council,PEOPLE,14009346039,ADULT SOCIAL CARE PURCHASING,9190002,BLOCK CONTRACT,25/04/2018,J2249458010418,469.84,ARK HOME HEALTHCARE LTD,CT230164710,Residential Care Homes,58875900
Sheffield City Council,PEOPLE,14009346039,ADULT SOCIAL CARE PURCHASING,9190002,BLOCK CONTRACT,25/04/2018,J2249458010418,469.84,ARK HOME HEALTHCARE LTD,CT230164710,Residential Care Homes,58875900
Sheffield City Council,PEOPLE,14009346039,ADULT SOCIAL CARE PURCHASING,9190002,BLOCK CONTRACT,25/04/2018,J2249459010418,476.91,ARK HOME HEALTHCARE LTD,CT230164710,Residential Care Homes,58875900
Sheffield City Council,PEOPLE,14009346039,ADULT SOCIAL CARE PURCHASING,9190002,BLOCK CONTRACT,25/04/2018,J2249457010418,484.48,ARK HOME HEALTHCARE LTD,CT230164710,Residential Care Homes,58875900
Sheffield City Council,PEOPLE,14009346039,ADULT SOCIAL CARE PURCHASING,9190002,BLOCK CONTRACT,25/04/2018,J2249457010418,484.48,ARK HOME HEALTHCARE LTD,CT230164710,Residential Care Homes,58875900
Sheffield City Council,PEOPLE,14009346039,ADULT SOCIAL CARE PURCHASING,9190002,BLOCK CONTRACT,25/04/2018,J2249459010418,484.48,ARK HOME HEALTHCARE LTD,CT230164710,Residential Care Homes,58875900
Sheffield City Council,PEOPLE,14009346039,ADULT SOCIAL CARE PURCHASING,9190002,BLOCK CONTRACT,25/04/2018,J2249457010418,494.48,ARK HOME HEALTHCARE LTD,CT230164710,Residential Care Homes,58875900
Sheffield City Council,PEOPLE,14009346039,ADULT SOCIAL CARE PURCHASING,9190002,BLOCK CONTRACT,25/04/2018,J2249457010418,494.48,ARK HOME HEALTHCARE LTD,CT230164710,Residential Care Homes,58875900
Sheffield City Council,PEOPLE,14009346039,ADULT SOCIAL CARE PURCHASING,9190002,BLOCK CONTRACT,25/04/2018,J2249459010418,494.48,ARK HOME HEALTHCARE LTD,CT230164710,Residential Care Homes,58875900
Sheffield City Council,PEOPLE,14009346039,ADULT SOCIAL CARE PURCHASING,9190002,BLOCK CONTRACT,25/04/2018,J2249459010418,494.48,ARK HOME HEALTHCARE LTD,CT230164710,Residential Care Homes,58875900
Sheffield City Council,PEOPLE,14009346039,ADULT SOCIAL CARE PURCHASING,9190002,BLOCK CONTRACT,25/04/2018,J2249458010418,495.68,ARK HOME HEALTHCARE LTD,CT230164710,Residential Care Homes,58875900
Sheffield City Council,PEOPLE,14009346039,ADULT SOCIAL CARE PURCHASING,9190002,BLOCK CONTRACT,25/04/2018,J2249459010418,508.46,ARK HOME HEALTHCARE LTD,CT230164710,Residential Care Homes,58875900
Sheffield City Council,PEOPLE,14009346039,ADULT SOCIAL CARE PURCHASING,9190002,BLOCK CONTRACT,25/04/2018,J2249457010418,519.76,ARK HOME HEALTHCARE LTD,CT230164710,Residential Care Homes,58875900
Sheffield City Council,PEOPLE,14009346039,ADULT SOCIAL CARE PURCHASING,9190002,BLOCK CONTRACT,25/04/2018,J2249457010418,530.04,ARK HOME HEALTHCARE LTD,CT230164710,Residential Care Homes,58875900
Sheffield City Council,PEOPLE,14009346039,ADULT SOCIAL CARE PURCHASING,9190002,BLOCK CONTRACT,25/04/2018,J2249459010418,530.04,ARK HOME HEALTHCARE LTD,CT230164710,Residential Care Homes,58875900
Sheffield City Council,PEOPLE,14009346039,ADULT SOCIAL CARE PURCHASING,9190007,FUNDED HOME SUPPORT,25/04/2018,J2249459010418,530.04,ARK HOME HEALTHCARE LTD,CT230164710,Residential Care Homes,58875900
Sheffield City Council,PEOPLE,14009346039,ADULT SOCIAL CARE PURCHASING,9190002,BLOCK CONTRACT,25/04/2018,J2249457010418,545.04,ARK HOME HEALTHCARE LTD,CT230164710,Residential Care Homes,58875900
Sheffield City Council,PEOPLE,14009346039,ADULT SOCIAL CARE PURCHASING,9190002,BLOCK CONTRACT,25/04/2018,J2249457010418,545.12,ARK HOME HEALTHCARE LTD,CT230164710,Residential Care Homes,58875900
Sheffield City Council,PEOPLE,14009346039,ADULT SOCIAL CARE PURCHASING,9190002,BLOCK CONTRACT,25/04/2018,J2249457010418,547.63,ARK HOME HEALTHCARE LTD,CT230164710,Residential Care Homes,58875900
Sheffield City Council,PEOPLE,14009346039,ADULT SOCIAL CARE PURCHASING,9190002,BLOCK CONTRACT,25/04/2018,J2249457010418,560.28,ARK HOME HEALTHCARE LTD,CT230164710,Residential Care Homes,58875900
Sheffield City Council,PEOPLE,14009346039,ADULT SOCIAL CARE PURCHASING,9190002,BLOCK CONTRACT,25/04/2018,J2249459010418,565.20,ARK HOME HEALTHCARE LTD,CT230164710,Residential Care Homes,58875900
Sheffield City Council,PEOPLE,14009346039,ADULT SOCIAL CARE PURCHASING,9190002,BLOCK CONTRACT,25/04/2018,J2249457010418,565.32,ARK HOME HEALTHCARE LTD,CT230164710,Residential Care Homes,58875900
Sheffield City Council,PEOPLE,14009346039,ADULT SOCIAL CARE PURCHASING,9190002,BLOCK CONTRACT,25/04/2018,J2249457010418,565.32,ARK HOME HEALTHCARE LTD,CT230164710,Residential Care Homes,58875900
Sheffield City Council,PEOPLE,14009346039,ADULT SOCIAL CARE PURCHASING,9190002,BLOCK CONTRACT,25/04/2018,J2249457010418,575.28,ARK HOME HEALTHCARE LTD,CT230164710,Residential Care Homes,58875900
Sheffield City Council,PEOPLE,14009346039,ADULT SOCIAL CARE PURCHASING,9190002,BLOCK CONTRACT,25/04/2018,J2249458010418,578.20,ARK HOME HEALTHCARE LTD,CT230164710,Residential Care Homes,58875900
Sheffield City Council,PEOPLE,14009346039,ADULT SOCIAL CARE PURCHASING,9190002,BLOCK CONTRACT,25/04/2018,J2249459010418,585.51,ARK HOME HEALTHCARE LTD,CT230164710,Residential Care Homes,58875900
Sheffield City Council,PEOPLE,14009346039,ADULT SOCIAL CARE PURCHASING,9190002,BLOCK CONTRACT,25/04/2018,J2249458010418,599.00,ARK HOME HEALTHCARE LTD,CT230164710,Residential Care Homes,58875900
Sheffield City Council,PEOPLE,14009346039,ADULT SOCIAL CARE PURCHASING,9190002,BLOCK CONTRACT,25/04/2018,J2249459010418,600.60,ARK HOME HEALTHCARE LTD,CT230164710,Residential Care Homes,58875900
Sheffield City Council,PEOPLE,14009346039,ADULT SOCIAL CARE PURCHASING,9190002,BLOCK CONTRACT,25/04/2018,J2249458010418,614.32,ARK HOME HEALTHCARE LTD,CT230164710,Residential Care Homes,58875900
Sheffield City Council,PEOPLE,14009346039,ADULT SOCIAL CARE PURCHASING,9190002,BLOCK CONTRACT,25/04/2018,J2249458010418,614.32,ARK HOME HEALTHCARE LTD,CT230164710,Residential Care Homes,58875900
Sheffield City Council,PEOPLE,14009346039,ADULT SOCIAL CARE PURCHASING,9190002,BLOCK CONTRACT,25/04/2018,J2249457010418,615.60,ARK HOME HEALTHCARE LTD,CT230164710,Residential Care Homes,58875900
Sheffield City Council,PEOPLE,14009346039,ADULT SOCIAL CARE PURCHASING,9190002,BLOCK CONTRACT,25/04/2018,J2249457010418,620.76,ARK HOME HEALTHCARE LTD,CT230164710,Residential Care Homes,58875900
Sheffield City Council,PEOPLE,14009346039,ADULT SOCIAL CARE PURCHASING,9190002,BLOCK CONTRACT,25/04/2018,J2249477010418,623.20,ARK HOME HEALTHCARE LTD,CT230164710,Residential Care Homes,58875900
Sheffield City Council,PEOPLE,14009346039,ADULT SOCIAL CARE PURCHASING,9190002,BLOCK CONTRACT,25/04/2018,J2249459010418,625.76,ARK HOME HEALTHCARE LTD,CT230164710,Residential Care Homes,58875900
Sheffield City Council,PEOPLE,14009346039,ADULT SOCIAL CARE PURCHASING,9190007,FUNDED HOME SUPPORT,25/04/2018,J2249458010418,629.92,ARK HOME HEALTHCARE LTD,CT230164710,Residential Care Homes,58875900
Sheffield City Council,PEOPLE,14009346039,ADULT SOCIAL CARE PURCHASING,9190002,BLOCK CONTRACT,25/04/2018,J2249457010418,635.88,ARK HOME HEALTHCARE LTD,CT230164710,Residential Care Homes,58875900
Sheffield City Council,PEOPLE,14009346039,ADULT SOCIAL CARE PURCHASING,9190002,BLOCK CONTRACT,25/04/2018,J2249457010418,635.88,ARK HOME HEALTHCARE LTD,CT230164710,Residential Care Homes,58875900
Sheffield City Council,PEOPLE,14009346039,ADULT SOCIAL CARE PURCHASING,9190002,BLOCK CONTRACT,25/04/2018,J2249457010418,635.88,ARK HOME HEALTHCARE LTD,CT230164710,Residential Care Homes,58875900
Sheffield City Council,PEOPLE,14009346039,ADULT SOCIAL CARE PURCHASING,9190002,BLOCK CONTRACT,25/04/2018,J2249459010418,635.88,ARK HOME HEALTHCARE LTD,CT230164710,Residential Care Homes,58875900
Sheffield City Council,PEOPLE,14009346039,ADULT SOCIAL CARE PURCHASING,9190002,BLOCK CONTRACT,25/04/2018,J2249459010418,635.88,ARK HOME HEALTHCARE LTD,CT230164710,Residential Care Homes,58875900
Sheffield City Council,PEOPLE,14009346039,ADULT SOCIAL CARE PURCHASING,9190002,BLOCK CONTRACT,25/04/2018,J2249459010418,635.88,ARK HOME HEALTHCARE LTD,CT230164710,Residential Care Homes,58875900
Sheffield City Council,PEOPLE,14009346039,ADULT SOCIAL CARE PURCHASING,9190002,BLOCK CONTRACT,25/04/2018,J2249477010418,638.40,ARK HOME HEALTHCARE LTD,CT230164710,Residential Care Homes,58875900
Sheffield City Council,PEOPLE,14009346039,ADULT SOCIAL CARE PURCHASING,9190002,BLOCK CONTRACT,25/04/2018,J2249457010418,640.88,ARK HOME HEALTHCARE LTD,CT230164710,Residential Care Homes,58875900
Sheffield City Council,PEOPLE,14009346039,ADULT SOCIAL CARE PURCHASING,9190002,BLOCK CONTRACT,25/04/2018,J2249459010418,641.04,ARK HOME HEALTHCARE LTD,CT230164710,Residential Care Homes,58875900
Sheffield City Council,PEOPLE,14009346039,ADULT SOCIAL CARE PURCHASING,9190002,BLOCK CONTRACT,25/04/2018,J2249458010418,650.72,ARK HOME HEALTHCARE LTD,CT230164710,Residential Care Homes,58875900
Sheffield City Council,PEOPLE,14009346039,ADULT SOCIAL CARE PURCHASING,9190002,BLOCK CONTRACT,25/04/2018,J2249458010418,650.72,ARK HOME HEALTHCARE LTD,CT230164710,Residential Care Homes,58875900
Sheffield City Council,PEOPLE,14009346039,ADULT SOCIAL CARE PURCHASING,9190002,BLOCK CONTRACT,25/04/2018,J2249458010418,650.72,ARK HOME HEALTHCARE LTD,CT230164710,Residential Care Homes,58875900
Sheffield City Council,PEOPLE,14009346039,ADULT SOCIAL CARE PURCHASING,9190002,BLOCK CONTRACT,25/04/2018,J2249457010418,686.44,ARK HOME HEALTHCARE LTD,CT230164710,Residential Care Homes,58875900
Sheffield City Council,PEOPLE,14009346039,ADULT SOCIAL CARE PURCHASING,9190002,BLOCK CONTRACT,25/04/2018,J2249458010418,692.00,ARK HOME HEALTHCARE LTD,CT230164710,Residential Care Homes,58875900
Sheffield City Council,PEOPLE,14009346039,ADULT SOCIAL CARE PURCHASING,9190002,BLOCK CONTRACT,25/04/2018,J2249457010418,695.23,ARK HOME HEALTHCARE LTD,CT230164710,Residential Care Homes,58875900
Sheffield City Council,PEOPLE,14009346039,ADULT SOCIAL CARE PURCHASING,9190002,BLOCK CONTRACT,25/04/2018,J2249457010418,706.44,ARK HOME HEALTHCARE LTD,CT230164710,Residential Care Homes,58875900
Sheffield City Council,PEOPLE,14009346039,ADULT SOCIAL CARE PURCHASING,9190002,BLOCK CONTRACT,25/04/2018,J2249459010418,706.44,ARK HOME HEALTHCARE LTD,CT230164710,Residential Care Homes,58875900
Sheffield City Council,PEOPLE,14009346039,ADULT SOCIAL CARE PURCHASING,9190002,BLOCK CONTRACT,25/04/2018,J2249458010418,712.68,ARK HOME HEALTHCARE LTD,CT230164710,Residential Care Homes,58875900
Sheffield City Council,PEOPLE,14009346039,ADULT SOCIAL CARE PURCHASING,9190002,BLOCK CONTRACT,25/04/2018,J2249459010418,716.60,ARK HOME HEALTHCARE LTD,CT230164710,Residential Care Homes,58875900
Sheffield City Council,PEOPLE,14009346039,ADULT SOCIAL CARE PURCHASING,9190002,BLOCK CONTRACT,25/04/2018,J2249458010418,722.96,ARK HOME HEALTHCARE LTD,CT230164710,Residential Care Homes,58875900
Sheffield City Council,PEOPLE,14009346039,ADULT SOCIAL CARE PURCHASING,9190002,BLOCK CONTRACT,25/04/2018,J2249457010418,726.72,ARK HOME HEALTHCARE LTD,CT230164710,Residential Care Homes,58875900
Sheffield City Council,PEOPLE,14009346039,ADULT SOCIAL CARE PURCHASING,9190002,BLOCK CONTRACT,25/04/2018,J2249459010418,726.72,ARK HOME HEALTHCARE LTD,CT230164710,Residential Care Homes,58875900
Sheffield City Council,PEOPLE,14009346039,ADULT SOCIAL CARE PURCHASING,9190002,BLOCK CONTRACT,25/04/2018,J2249457010418,736.84,ARK HOME HEALTHCARE LTD,CT230164710,Residential Care Homes,58875900
Sheffield City Council,PEOPLE,14009346039,ADULT SOCIAL CARE PURCHASING,9190002,BLOCK CONTRACT,25/04/2018,J2249458010418,743.64,ARK HOME HEALTHCARE LTD,CT230164710,Residential Care Homes,58875900
Sheffield City Council,PEOPLE,14009346039,ADULT SOCIAL CARE PURCHASING,9190002,BLOCK CONTRACT,25/04/2018,J2249459010418,767.00,ARK HOME HEALTHCARE LTD,CT230164710,Residential Care Homes,58875900
Sheffield City Council,PEOPLE,14009346039,ADULT SOCIAL CARE PURCHASING,9190002,BLOCK CONTRACT,25/04/2018,J2249477010418,770.07,ARK HOME HEALTHCARE LTD,CT230164710,Residential Care Homes,58875900
Sheffield City Council,PEOPLE,14009346039,ADULT SOCIAL CARE PURCHASING,9190002,BLOCK CONTRACT,25/04/2018,J2249457010418,777.14,ARK HOME HEALTHCARE LTD,CT230164710,Residential Care Homes,58875900
Sheffield City Council,PEOPLE,14009346039,ADULT SOCIAL CARE PURCHASING,9190002,BLOCK CONTRACT,25/04/2018,J2249457010418,777.28,ARK HOME HEALTHCARE LTD,CT230164710,Residential Care Homes,58875900
Sheffield City Council,PEOPLE,14009346039,ADULT SOCIAL CARE PURCHASING,9190002,BLOCK CONTRACT,25/04/2018,J2249459010418,777.28,ARK HOME HEALTHCARE LTD,CT230164710,Residential Care Homes,58875900
Sheffield City Council,PEOPLE,14009346039,ADULT SOCIAL CARE PURCHASING,9190002,BLOCK CONTRACT,25/04/2018,J2249459010418,782.17,ARK HOME HEALTHCARE LTD,CT230164710,Residential Care Homes,58875900
Sheffield City Council,PEOPLE,14009346039,ADULT SOCIAL CARE PURCHASING,9190002,BLOCK CONTRACT,25/04/2018,J2249458010418,789.92,ARK HOME HEALTHCARE LTD,CT230164710,Residential Care Homes,58875900
Sheffield City Council,PEOPLE,14009346039,ADULT SOCIAL CARE PURCHASING,9190002,BLOCK CONTRACT,25/04/2018,J2249457010418,792.28,ARK HOME HEALTHCARE LTD,CT230164710,Residential Care Homes,58875900
Sheffield City Council,PEOPLE,14009346039,ADULT SOCIAL CARE PURCHASING,9190002,BLOCK CONTRACT,25/04/2018,J2249457010418,792.28,ARK HOME HEALTHCARE LTD,CT230164710,Residential Care Homes,58875900
Sheffield City Council,PEOPLE,14009346039,ADULT SOCIAL CARE PURCHASING,9190002,BLOCK CONTRACT,25/04/2018,J2249457010418,812.56,ARK HOME HEALTHCARE LTD,CT230164710,Residential Care Homes,58875900
Sheffield City Council,PEOPLE,14009346039,ADULT SOCIAL CARE PURCHASING,9190002,BLOCK CONTRACT,25/04/2018,J2249457010418,847.84,ARK HOME HEALTHCARE LTD,CT230164710,Residential Care Homes,58875900
Sheffield City Council,PEOPLE,14009346039,ADULT SOCIAL CARE PURCHASING,9190002,BLOCK CONTRACT,25/04/2018,J2249457010418,847.84,ARK HOME HEALTHCARE LTD,CT230164710,Residential Care Homes,58875900
Sheffield City Council,PEOPLE,14009346039,ADULT SOCIAL CARE PURCHASING,9190002,BLOCK CONTRACT,25/04/2018,J2249457010418,847.84,ARK HOME HEALTHCARE LTD,CT230164710,Residential Care Homes,58875900
Sheffield City Council,PEOPLE,14009346039,ADULT SOCIAL CARE PURCHASING,9190002,BLOCK CONTRACT,25/04/2018,J2249457010418,847.84,ARK HOME HEALTHCARE LTD,CT230164710,Residential Care Homes,58875900
Sheffield City Council,PEOPLE,14009346039,ADULT SOCIAL CARE PURCHASING,9190002,BLOCK CONTRACT,25/04/2018,J2249459010418,847.84,ARK HOME HEALTHCARE LTD,CT230164710,Residential Care Homes,58875900
Sheffield City Council,PEOPLE,14009346039,ADULT SOCIAL CARE PURCHASING,9190002,BLOCK CONTRACT,25/04/2018,J2249477010418,851.20,ARK HOME HEALTHCARE LTD,CT230164710,Residential Care Homes,58875900
Sheffield City Council,PEOPLE,14009346039,ADULT SOCIAL CARE PURCHASING,9190002,BLOCK CONTRACT,25/04/2018,J2249424010418,881.60,ARK HOME HEALTHCARE LTD,CT230164710,Residential Care Homes,58875900
Sheffield City Council,PEOPLE,14009346039,ADULT SOCIAL CARE PURCHASING,9190002,BLOCK CONTRACT,25/04/2018,J2249457010418,898.40,ARK HOME HEALTHCARE LTD,CT230164710,Residential Care Homes,58875900
Sheffield City Council,PEOPLE,14009346039,ADULT SOCIAL CARE PURCHASING,9190002,BLOCK CONTRACT,25/04/2018,J2249457010418,898.40,ARK HOME HEALTHCARE LTD,CT230164710,Residential Care Homes,58875900
Sheffield City Council,PEOPLE,14009346039,ADULT SOCIAL CARE PURCHASING,9190002,BLOCK CONTRACT,25/04/2018,J2249458010418,898.44,ARK HOME HEALTHCARE LTD,CT230164710,Residential Care Homes,58875900
Sheffield City Council,PEOPLE,14009346039,ADULT SOCIAL CARE PURCHASING,9190002,BLOCK CONTRACT,25/04/2018,J2249459010418,917.33,ARK HOME HEALTHCARE LTD,CT230164710,Residential Care Homes,58875900
Sheffield City Council,PEOPLE,14009346039,ADULT SOCIAL CARE PURCHASING,9190002,BLOCK CONTRACT,25/04/2018,J2249424010418,920.50,ARK HOME HEALTHCARE LTD,CT230164710,Residential Care Homes,58875900
Sheffield City Council,PEOPLE,14009346039,ADULT SOCIAL CARE PURCHASING,9190002,BLOCK CONTRACT,25/04/2018,J2249458010418,960.40,ARK HOME HEALTHCARE LTD,CT230164710,Residential Care Homes,58875900
Sheffield City Council,PEOPLE,14009346039,ADULT SOCIAL CARE PURCHASING,9190002,BLOCK CONTRACT,25/04/2018,J2249457010418,968.96,ARK HOME HEALTHCARE LTD,CT230164710,Residential Care Homes,58875900
Sheffield City Council,PEOPLE,14009346039,ADULT SOCIAL CARE PURCHASING,9190002,BLOCK CONTRACT,25/04/2018,J2249459010418,968.96,ARK HOME HEALTHCARE LTD,CT230164710,Residential Care Homes,58875900
Sheffield City Council,PEOPLE,14009346039,ADULT SOCIAL CARE PURCHASING,9190002,BLOCK CONTRACT,25/04/2018,J2249457010418,"1,059.80",ARK HOME HEALTHCARE LTD,CT230164710,Residential Care Homes,58875900
Sheffield City Council,PEOPLE,14009346039,ADULT SOCIAL CARE PURCHASING,9190002,BLOCK CONTRACT,25/04/2018,J2249459010418,"1,059.80",ARK HOME HEALTHCARE LTD,CT230164710,Residential Care Homes,58875900
Sheffield City Council,PEOPLE,14009346039,ADULT SOCIAL CARE PURCHASING,9190002,BLOCK CONTRACT,25/04/2018,J2249457010418,"1,122.84",ARK HOME HEALTHCARE LTD,CT230164710,Residential Care Homes,58875900
Sheffield City Council,PEOPLE,14009346039,ADULT SOCIAL CARE PURCHASING,9190002,BLOCK CONTRACT,25/04/2018,J2249458010418,"1,161.68",ARK HOME HEALTHCARE LTD,CT230164710,Residential Care Homes,58875900
Sheffield City Council,PEOPLE,14009346039,ADULT SOCIAL CARE PURCHASING,9190002,BLOCK CONTRACT,25/04/2018,J2249459010418,"1,180.92",ARK HOME HEALTHCARE LTD,CT230164710,Residential Care Homes,58875900
Sheffield City Council,PEOPLE,14009346039,ADULT SOCIAL CARE PURCHASING,9190002,BLOCK CONTRACT,25/04/2018,J2249424010418,"1,205.96",ARK HOME HEALTHCARE LTD,CT230164710,Residential Care Homes,58875900
Sheffield City Council,PEOPLE,14009346039,ADULT SOCIAL CARE PURCHASING,9190002,BLOCK CONTRACT,25/04/2018,J2249459010418,"1,251.56",ARK HOME HEALTHCARE LTD,CT230164710,Residential Care Homes,58875900
Sheffield City Council,PEOPLE,14009346039,ADULT SOCIAL CARE PURCHASING,9190002,BLOCK CONTRACT,25/04/2018,J2249457010418,"1,271.76",ARK HOME HEALTHCARE LTD,CT230164710,Residential Care Homes,58875900
Sheffield City Council,PEOPLE,14009346039,ADULT SOCIAL CARE PURCHASING,9190002,BLOCK CONTRACT,25/04/2018,J2249457010418,"1,271.76",ARK HOME HEALTHCARE LTD,CT230164710,Residential Care Homes,58875900
Sheffield City Council,PEOPLE,14009346039,ADULT SOCIAL CARE PURCHASING,9190002,BLOCK CONTRACT,25/04/2018,J2249457010418,"1,271.76",ARK HOME HEALTHCARE LTD,CT230164710,Residential Care Homes,58875900
Sheffield City Council,PEOPLE,14009346039,ADULT SOCIAL CARE PURCHASING,9190002,BLOCK CONTRACT,25/04/2018,J2249459010418,"1,387.76",ARK HOME HEALTHCARE LTD,CT230164710,Residential Care Homes,58875900
Sheffield City Council,PEOPLE,14009346039,ADULT SOCIAL CARE PURCHASING,9190002,BLOCK CONTRACT,25/04/2018,J2249457010418,"1,413.16",ARK HOME HEALTHCARE LTD,CT230164710,Residential Care Homes,58875900
Sheffield City Council,PEOPLE,14009346039,ADULT SOCIAL CARE PURCHASING,9190002,BLOCK CONTRACT,25/04/2018,J2249459010418,"1,413.16",ARK HOME HEALTHCARE LTD,CT230164710,Residential Care Homes,58875900
Sheffield City Council,PEOPLE,14009346039,ADULT SOCIAL CARE PURCHASING,9190002,BLOCK CONTRACT,25/04/2018,J2249457010418,"1,473.72",ARK HOME HEALTHCARE LTD,CT230164710,Residential Care Homes,58875900
Sheffield City Council,PEOPLE,14009346039,ADULT SOCIAL CARE PURCHASING,9190002,BLOCK CONTRACT,25/04/2018,J2249457010418,"1,483.72",ARK HOME HEALTHCARE LTD,CT230164710,Residential Care Homes,58875900
Sheffield City Council,PEOPLE,14009346039,ADULT SOCIAL CARE PURCHASING,9190002,BLOCK CONTRACT,25/04/2018,J2249457010418,"1,534.28",ARK HOME HEALTHCARE LTD,CT230164710,Residential Care Homes,58875900
Sheffield City Council,PEOPLE,14009346039,ADULT SOCIAL CARE PURCHASING,9190002,BLOCK CONTRACT,25/04/2018,J2249457010418,"1,534.28",ARK HOME HEALTHCARE LTD,CT230164710,Residential Care Homes,58875900
Sheffield City Council,PEOPLE,14009346039,ADULT SOCIAL CARE PURCHASING,9190002,BLOCK CONTRACT,25/04/2018,J2249458010418,"1,580.08",ARK HOME HEALTHCARE LTD,CT230164710,Residential Care Homes,58875900
Sheffield City Council,PEOPLE,14009346039,ADULT SOCIAL CARE PURCHASING,9190002,BLOCK CONTRACT,25/04/2018,J2249459010418,"1,625.12",ARK HOME HEALTHCARE LTD,CT230164710,Residential Care Homes,58875900
Sheffield City Council,PEOPLE,14009346039,ADULT SOCIAL CARE PURCHASING,9190002,BLOCK CONTRACT,25/04/2018,J2249458010418,"1,683.24",ARK HOME HEALTHCARE LTD,CT230164710,Residential Care Homes,58875900
Sheffield City Council,PEOPLE,14009346039,ADULT SOCIAL CARE PURCHASING,9190002,BLOCK CONTRACT,25/04/2018,J2249457010418,"1,685.68",ARK HOME HEALTHCARE LTD,CT230164710,Residential Care Homes,58875900
Sheffield City Council,PEOPLE,14009346039,ADULT SOCIAL CARE PURCHASING,9190002,BLOCK CONTRACT,25/04/2018,J2249457010418,"1,695.68",ARK HOME HEALTHCARE LTD,CT230164710,Residential Care Homes,58875900
Sheffield City Council,PEOPLE,14009346039,ADULT SOCIAL CARE PURCHASING,9190002,BLOCK CONTRACT,25/04/2018,J2249458010418,"1,734.88",ARK HOME HEALTHCARE LTD,CT230164710,Residential Care Homes,58875900
Sheffield City Council,PEOPLE,14009346039,ADULT SOCIAL CARE PURCHASING,9190002,BLOCK CONTRACT,25/04/2018,J2249457010418,"1,766.24",ARK HOME HEALTHCARE LTD,CT230164710,Residential Care Homes,58875900
Sheffield City Council,PEOPLE,14009346039,ADULT SOCIAL CARE PURCHASING,9190002,BLOCK CONTRACT,25/04/2018,J2249457010418,"1,766.32",ARK HOME HEALTHCARE LTD,CT230164710,Residential Care Homes,58875900
Sheffield City Council,PEOPLE,14009346039,ADULT SOCIAL CARE PURCHASING,9190002,BLOCK CONTRACT,25/04/2018,J2249457010418,"1,816.80",ARK HOME HEALTHCARE LTD,CT230164710,Residential Care Homes,58875900
Sheffield City Council,PEOPLE,14009346039,ADULT SOCIAL CARE PURCHASING,9190002,BLOCK CONTRACT,25/04/2018,J2249459010418,"1,862.36",ARK HOME HEALTHCARE LTD,CT230164710,Residential Care Homes,58875900
Sheffield City Council,PEOPLE,14009346039,ADULT SOCIAL CARE PURCHASING,9190002,BLOCK CONTRACT,25/04/2018,J2249457010418,"1,897.64",ARK HOME HEALTHCARE LTD,CT230164710,Residential Care Homes,58875900
Sheffield City Council,PEOPLE,14009346039,ADULT SOCIAL CARE PURCHASING,9190002,BLOCK CONTRACT,25/04/2018,J2249457010418,"1,907.64",ARK HOME HEALTHCARE LTD,CT230164710,Residential Care Homes,58875900
Sheffield City Council,PEOPLE,14009346039,ADULT SOCIAL CARE PURCHASING,9190002,BLOCK CONTRACT,25/04/2018,J2249459010418,"1,907.64",ARK HOME HEALTHCARE LTD,CT230164710,Residential Care Homes,58875900
Sheffield City Council,PEOPLE,14009346039,ADULT SOCIAL CARE PURCHASING,9190002,BLOCK CONTRACT,25/04/2018,J2249459010418,"1,907.64",ARK HOME HEALTHCARE LTD,CT230164710,Residential Care Homes,58875900
Sheffield City Council,PEOPLE,14009346039,ADULT SOCIAL CARE PURCHASING,9190002,BLOCK CONTRACT,25/04/2018,J2249459010418,"2,553.44",ARK HOME HEALTHCARE LTD,CT230164710,Residential Care Homes,58875900
Sheffield City Council,PEOPLE,14009346039,ADULT SOCIAL CARE PURCHASING,9190002,BLOCK CONTRACT,25/04/2018,J2249458010418,"2,819.32",ARK HOME HEALTHCARE LTD,CT230164710,Residential Care Homes,58875900
Sheffield City Council,PEOPLE,14009346039,ADULT SOCIAL CARE PURCHASING,9190002,BLOCK CONTRACT,25/04/2018,J2249457010418,"3,633.60",ARK HOME HEALTHCARE LTD,CT230164710,Residential Care Homes,58875900
Sheffield City Council,PEOPLE,14009346039,ADULT SOCIAL CARE PURCHASING,9190002,BLOCK CONTRACT,25/04/2018,J2249457010418,"3,924.51",ARK HOME HEALTHCARE LTD,CT230164710,Residential Care Homes,58875900
Sheffield City Council,PEOPLE,14009346039,ADULT SOCIAL CARE PURCHASING,9190007,FUNDED HOME SUPPORT,25/04/2018,J2249459010418,"5,722.92",ARK HOME HEALTHCARE LTD,CT230164710,Residential Care Homes,58875900
Sheffield City Council,PEOPLE,14031944028,DRUG & ALCOHOL MH -PURCHASING,4260018,RESIDENTIAL COSTS RECOVERED,26/04/2018,J2248589220418,-323.00,ARK HOUSE REHAB LTD,CT230164710,Residential Care Homes,38352000
Sheffield City Council,PEOPLE,14031944028,DRUG & ALCOHOL MH -PURCHASING,4260018,RESIDENTIAL COSTS RECOVERED,04/04/2018,J2219553250318,-184.57,ARK HOUSE REHAB LTD,CT230164710,Residential Care Homes,38352000
Sheffield City Council,PEOPLE,14031944028,DRUG & ALCOHOL MH -PURCHASING,4260018,RESIDENTIAL COSTS RECOVERED,17/04/2018,J2232571250318,-138.43,ARK HOUSE REHAB LTD,CT230164710,Residential Care Homes,38352000
Sheffield City Council,PEOPLE,14031944028,DRUG & ALCOHOL MH -PURCHASING,9200002,SHORT TERM RESIDENTIAL CARE,17/04/2018,J2232571250318,848.57,ARK HOUSE REHAB LTD,CT230164710,Residential Care Homes,38352000
Sheffield City Council,PEOPLE,14031944028,DRUG & ALCOHOL MH -PURCHASING,9200002,SHORT TERM RESIDENTIAL CARE,04/04/2018,J2219553250318,"1,131.43",ARK HOUSE REHAB LTD,CT230164710,Residential Care Homes,38352000
Sheffield City Council,PEOPLE,14031944028,DRUG & ALCOHOL MH -PURCHASING,9200002,SHORT TERM RESIDENTIAL CARE,26/04/2018,J2248589220418,"1,980.00",ARK HOUSE REHAB LTD,CT230164710,Residential Care Homes,38352000
Sheffield City Council,PLACE,12017622069,TRADED OPERATIONS,5750000,TRAINING EXPENDITURE,20/04/2018,SHEF/25/554,795.00,ARMADA TRAINING SOLUTIONS LTD,CT160820708,Computer Training,64474100
Sheffield City Council,PLACE,11850500000,STOCK CONTROL,8070000,STOCKS AND STORES,23/04/2018,P05009809,379.00,ARNOLD LAVER & CO LTD,CT075078210,"Timber Merchants, Importers & Agents",20304500
Sheffield City Council,PLACE,11850500000,STOCK CONTROL,8070000,STOCKS AND STORES,20/04/2018,P05003671,411.38,ARNOLD LAVER & CO LTD,CT075078210,"Timber Merchants, Importers & Agents",20304500
Sheffield City Council,PLACE,11850500000,STOCK CONTROL,8070000,STOCKS AND STORES,23/04/2018,P05009801,440.00,ARNOLD LAVER & CO LTD,CT075078210,"Timber Merchants, Importers & Agents",20304500
Sheffield City Council,PLACE,11850500000,STOCK CONTROL,8070000,STOCKS AND STORES,23/04/2018,P05009804,440.00,ARNOLD LAVER & CO LTD,CT075078210,"Timber Merchants, Importers & Agents",20304500
Sheffield City Council,PLACE,11850500000,STOCK CONTROL,8070000,STOCKS AND STORES,20/04/2018,P05003692,448.00,ARNOLD LAVER & CO LTD,CT075078210,"Timber Merchants, Importers & Agents",20304500
Sheffield City Council,PLACE,11850500000,STOCK CONTROL,8070000,STOCKS AND STORES,26/04/2018,P04972161,489.25,ARNOLD LAVER & CO LTD,CT075078210,"Timber Merchants, Importers & Agents",20304502
Sheffield City Council,PLACE,11850500000,STOCK CONTROL,8070000,STOCKS AND STORES,23/04/2018,P04994743,615.60,ARNOLD LAVER & CO LTD,CT075078210,"Timber Merchants, Importers & Agents",20304500
Sheffield City Council,PLACE,11850500000,STOCK CONTROL,8070000,STOCKS AND STORES,23/04/2018,P05009799,641.40,ARNOLD LAVER & CO LTD,CT075078210,"Timber Merchants, Importers & Agents",20304500
Sheffield City Council,PLACE,11850500000,STOCK CONTROL,8070000,STOCKS AND STORES,16/04/2018,P04994763,675.57,ARNOLD LAVER & CO LTD,CT075078210,"Timber Merchants, Importers & Agents",20304502
Sheffield City Council,PLACE,11850500000,STOCK CONTROL,8070000,STOCKS AND STORES,06/04/2018,P04987824,700.00,ARNOLD LAVER & CO LTD,CT075078210,"Timber Merchants, Importers & Agents",20304500
Sheffield City Council,PLACE,11850500000,STOCK CONTROL,8070000,STOCKS AND STORES,23/04/2018,P05009808,724.50,ARNOLD LAVER & CO LTD,CT075078210,"Timber Merchants, Importers & Agents",20304500
Sheffield City Council,PLACE,11850500000,STOCK CONTROL,8070000,STOCKS AND STORES,06/04/2018,P04994773,758.00,ARNOLD LAVER & CO LTD,CT075078210,"Timber Merchants, Importers & Agents",20304500
Sheffield City Council,PLACE,11850500000,STOCK CONTROL,8070000,STOCKS AND STORES,06/04/2018,P04949128,820.16,ARNOLD LAVER & CO LTD,CT075078210,"Timber Merchants, Importers & Agents",20304502
Sheffield City Council,PLACE,11850500000,STOCK CONTROL,8070000,STOCKS AND STORES,20/04/2018,P05003691,839.40,ARNOLD LAVER & CO LTD,CT075078210,"Timber Merchants, Importers & Agents",20304500
Sheffield City Council,PLACE,11850500000,STOCK CONTROL,8070000,STOCKS AND STORES,18/04/2018,P04998063,880.00,ARNOLD LAVER & CO LTD,CT075078210,"Timber Merchants, Importers & Agents",20304500
Sheffield City Council,PLACE,11850500000,STOCK CONTROL,8070000,STOCKS AND STORES,06/04/2018,P04987827,975.00,ARNOLD LAVER & CO LTD,CT075078210,"Timber Merchants, Importers & Agents",20304500
Sheffield City Council,PLACE,11850500000,STOCK CONTROL,8070000,STOCKS AND STORES,23/04/2018,P05009795,980.20,ARNOLD LAVER & CO LTD,CT075078210,"Timber Merchants, Importers & Agents",20304500
Sheffield City Council,PLACE,11850500000,STOCK CONTROL,8070000,STOCKS AND STORES,06/04/2018,P04994775,"1,081.40",ARNOLD LAVER & CO LTD,CT075078210,"Timber Merchants, Importers & Agents",20304500
Sheffield City Council,PLACE,11850500000,STOCK CONTROL,8070000,STOCKS AND STORES,06/04/2018,P04987808,"1,087.79",ARNOLD LAVER & CO LTD,CT075078210,"Timber Merchants, Importers & Agents",20304500
Sheffield City Council,PLACE,11850500000,STOCK CONTROL,8070000,STOCKS AND STORES,06/04/2018,P04994774,"1,101.00",ARNOLD LAVER & CO LTD,CT075078210,"Timber Merchants, Importers & Agents",20304500
Sheffield City Council,PLACE,11850500000,STOCK CONTROL,8070000,STOCKS AND STORES,23/04/2018,P05009797,"1,101.00",ARNOLD LAVER & CO LTD,CT075078210,"Timber Merchants, Importers & Agents",20304500
Sheffield City Council,PLACE,11850500000,STOCK CONTROL,8070000,STOCKS AND STORES,23/04/2018,P05009796,"1,294.00",ARNOLD LAVER & CO LTD,CT075078210,"Timber Merchants, Importers & Agents",20304500
Sheffield City Council,PLACE,11850500000,STOCK CONTROL,8070000,STOCKS AND STORES,06/04/2018,P04996484,"1,400.00",ARNOLD LAVER & CO LTD,CT075078210,"Timber Merchants, Importers & Agents",20304500
Sheffield City Council,PLACE,11850500000,STOCK CONTROL,8070000,STOCKS AND STORES,06/04/2018,P04987825,"1,521.40",ARNOLD LAVER & CO LTD,CT075078210,"Timber Merchants, Importers & Agents",20304500
Sheffield City Council,PLACE,11850500000,STOCK CONTROL,8070000,STOCKS AND STORES,20/04/2018,P05003690,"2,501.00",ARNOLD LAVER & CO LTD,CT075078210,"Timber Merchants, Importers & Agents",20304500
Sheffield City Council,RESOURCES,11810118029,CYCLE SCHEME,8440000,FEE EXPENSES,26/04/2018,84042220,"1,932.00",ARRIVA RAIL NORTH LTD,CT261763418,Railways,64134600
Sheffield City Council,PLACE,12046025052,PARKS SERVICE MANAGER,6080000,CONTRACT CLEANING,06/04/2018,4742244,382.54,ARROW COUNTY SUPPLIES,CT021045695,Janitorial Equipment & Supplies,64435900
Sheffield City Council,PLACE,12046025052,PARKS SERVICE MANAGER,8110000,CLOTHING  UNIFORM AND LAUNDRY,25/04/2018,4745018,461.61,ARROW COUNTY SUPPLIES,CT021045695,Janitorial Equipment & Supplies,64435900
Sheffield City Council,PLACE,12046025052,PARKS SERVICE MANAGER,8110000,CLOTHING  UNIFORM AND LAUNDRY,25/04/2018,4745017,"1,075.56",ARROW COUNTY SUPPLIES,CT021045695,Janitorial Equipment & Supplies,64435900
Sheffield City Council,PLACE,11513300000,WORKSHOPS,7040000,OTHER VEHICLE RUNNING COSTS,08/04/2018,8542266,745.00,ARROW SELF DRIVE,CT260821750,Container Hire & Transport,59789300
Sheffield City Council,PEOPLE,14009346039,ADULT SOCIAL CARE PURCHASING,4260018,RESIDENTIAL COSTS RECOVERED,25/04/2018,J2248802200518,"-1,327.50",ASCOT LODGE CARE HOME,CT230753350,Nursing Homes,36211800
Sheffield City Council,PEOPLE,14009346039,ADULT SOCIAL CARE PURCHASING,4260011,NURSING COSTS RECOVERED,25/04/2018,J2248802200518,"-1,212.52",ASCOT LODGE CARE HOME,CT230753350,Nursing Homes,36211800
Sheffield City Council,PEOPLE,14009346039,ADULT SOCIAL CARE PURCHASING,4260011,NURSING COSTS RECOVERED,25/04/2018,J2248802200518,"-1,027.24",ASCOT LODGE CARE HOME,CT230753350,Nursing Homes,36211800
Sheffield City Council,PEOPLE,14009346039,ADULT SOCIAL CARE PURCHASING,4260011,NURSING COSTS RECOVERED,25/04/2018,J2248802200518,-998.88,ASCOT LODGE CARE HOME,CT230753350,Nursing Homes,36211800
Sheffield City Council,PEOPLE,14009346039,ADULT SOCIAL CARE PURCHASING,4260011,NURSING COSTS RECOVERED,25/04/2018,J2248802200518,-857.12,ASCOT LODGE CARE HOME,CT230753350,Nursing Homes,36211800
Sheffield City Council,PEOPLE,14009346039,ADULT SOCIAL CARE PURCHASING,4260011,NURSING COSTS RECOVERED,25/04/2018,J2248802200518,-838.04,ASCOT LODGE CARE HOME,CT230753350,Nursing Homes,36211800
Sheffield City Council,PEOPLE,14009346039,ADULT SOCIAL CARE PURCHASING,4260011,NURSING COSTS RECOVERED,25/04/2018,J2248802200518,-833.12,ASCOT LODGE CARE HOME,CT230753350,Nursing Homes,36211800
Sheffield City Council,PEOPLE,14009346039,ADULT SOCIAL CARE PURCHASING,4260011,NURSING COSTS RECOVERED,25/04/2018,J2248802200518,-812.32,ASCOT LODGE CARE HOME,CT230753350,Nursing Homes,36211800
Sheffield City Council,PEOPLE,14009346039,ADULT SOCIAL CARE PURCHASING,9200001,CONTINUING RESIDENTIAL CARE,25/04/2018,J2240058220418,-727.57,ASCOT LODGE CARE HOME,CT230753350,Nursing Homes,36211800
Sheffield City Council,PEOPLE,14009346039,ADULT SOCIAL CARE PURCHASING,4260011,NURSING COSTS RECOVERED,25/04/2018,J2248802200518,-687.52,ASCOT LODGE CARE HOME,CT230753350,Nursing Homes,36211800
Sheffield City Council,PEOPLE,14009346039,ADULT SOCIAL CARE PURCHASING,4260011,NURSING COSTS RECOVERED,25/04/2018,J2248802200518,-608.00,ASCOT LODGE CARE HOME,CT230753350,Nursing Homes,36211800
Sheffield City Council,PEOPLE,14009346039,ADULT SOCIAL CARE PURCHASING,4260018,RESIDENTIAL COSTS RECOVERED,25/04/2018,J2248802200518,-597.60,ASCOT LODGE CARE HOME,CT230753350,Nursing Homes,36211800
Sheffield City Council,PEOPLE,14009346039,ADULT SOCIAL CARE PURCHASING,4260011,NURSING COSTS RECOVERED,25/04/2018,J2248802200518,-567.32,ASCOT LODGE CARE HOME,CT230753350,Nursing Homes,36211800
Sheffield City Council,PEOPLE,14009346039,ADULT SOCIAL CARE PURCHASING,4260011,NURSING COSTS RECOVERED,25/04/2018,J2248802200518,-563.48,ASCOT LODGE CARE HOME,CT230753350,Nursing Homes,36211800
Sheffield City Council,PEOPLE,14009346039,ADULT SOCIAL CARE PURCHASING,4260011,NURSING COSTS RECOVERED,25/04/2018,J2248802200518,-563.48,ASCOT LODGE CARE HOME,CT230753350,Nursing Homes,36211800
Sheffield City Council,PEOPLE,14009346039,ADULT SOCIAL CARE PURCHASING,4260011,NURSING COSTS RECOVERED,25/04/2018,J2248802200518,-554.40,ASCOT LODGE CARE HOME,CT230753350,Nursing Homes,36211800
Sheffield City Council,PEOPLE,14009346039,ADULT SOCIAL CARE PURCHASING,4260011,NURSING COSTS RECOVERED,25/04/2018,J2248802200518,-553.18,ASCOT LODGE CARE HOME,CT230753350,Nursing Homes,36211800
Sheffield City Council,PEOPLE,14009346039,ADULT SOCIAL CARE PURCHASING,4260011,NURSING COSTS RECOVERED,25/04/2018,J2248802200518,-552.40,ASCOT LODGE CARE HOME,CT230753350,Nursing Homes,36211800
Sheffield City Council,PEOPLE,14009346039,ADULT SOCIAL CARE PURCHASING,4260011,NURSING COSTS RECOVERED,25/04/2018,J2248802200518,-552.40,ASCOT LODGE CARE HOME,CT230753350,Nursing Homes,36211800
Sheffield City Council,PEOPLE,14009346039,ADULT SOCIAL CARE PURCHASING,4260011,NURSING COSTS RECOVERED,25/04/2018,J2248802200518,-552.40,ASCOT LODGE CARE HOME,CT230753350,Nursing Homes,36211800
Sheffield City Council,PEOPLE,14009346039,ADULT SOCIAL CARE PURCHASING,4260011,NURSING COSTS RECOVERED,25/04/2018,J2248802200518,-552.40,ASCOT LODGE CARE HOME,CT230753350,Nursing Homes,36211800
Sheffield City Council,PEOPLE,14009346039,ADULT SOCIAL CARE PURCHASING,4260011,NURSING COSTS RECOVERED,25/04/2018,J2248802200518,-552.40,ASCOT LODGE CARE HOME,CT230753350,Nursing Homes,36211800
Sheffield City Council,PEOPLE,14009346039,ADULT SOCIAL CARE PURCHASING,4260011,NURSING COSTS RECOVERED,25/04/2018,J2248802200518,-552.40,ASCOT LODGE CARE HOME,CT230753350,Nursing Homes,36211800
Sheffield City Council,PEOPLE,14009346039,ADULT SOCIAL CARE PURCHASING,4260011,NURSING COSTS RECOVERED,25/04/2018,J2248802200518,-552.40,ASCOT LODGE CARE HOME,CT230753350,Nursing Homes,36211800
Sheffield City Council,PEOPLE,14009346039,ADULT SOCIAL CARE PURCHASING,4260011,NURSING COSTS RECOVERED,25/04/2018,J2248802200518,-552.40,ASCOT LODGE CARE HOME,CT230753350,Nursing Homes,36211800
Sheffield City Council,PEOPLE,14009346039,ADULT SOCIAL CARE PURCHASING,4260011,NURSING COSTS RECOVERED,25/04/2018,J2248802200518,-552.02,ASCOT LODGE CARE HOME,CT230753350,Nursing Homes,36211800
Sheffield City Council,PEOPLE,14009346039,ADULT SOCIAL CARE PURCHASING,4260011,NURSING COSTS RECOVERED,25/04/2018,J2248802200518,-550.40,ASCOT LODGE CARE HOME,CT230753350,Nursing Homes,36211800
Sheffield City Council,PEOPLE,14009346039,ADULT SOCIAL CARE PURCHASING,4260011,NURSING COSTS RECOVERED,25/04/2018,J2248802200518,-550.28,ASCOT LODGE CARE HOME,CT230753350,Nursing Homes,36211800
Sheffield City Council,PEOPLE,14009346039,ADULT SOCIAL CARE PURCHASING,4260011,NURSING COSTS RECOVERED,25/04/2018,J2248802200518,-549.26,ASCOT LODGE CARE HOME,CT230753350,Nursing Homes,36211800
Sheffield City Council,PEOPLE,14009346039,ADULT SOCIAL CARE PURCHASING,4260011,NURSING COSTS RECOVERED,25/04/2018,J2248802200518,-532.60,ASCOT LODGE CARE HOME,CT230753350,Nursing Homes,36211800
Sheffield City Council,PEOPLE,14009346039,ADULT SOCIAL CARE PURCHASING,4260018,RESIDENTIAL COSTS RECOVERED,25/04/2018,J2248578220418,-72.90,ASCOT LODGE CARE HOME,CT230753350,Nursing Homes,36211800
Sheffield City Council,PEOPLE,14009346039,ADULT SOCIAL CARE PURCHASING,4260018,RESIDENTIAL COSTS RECOVERED,25/04/2018,J2248578220418,-24.30,ASCOT LODGE CARE HOME,CT230753350,Nursing Homes,36211800
Sheffield City Council,PEOPLE,14009346039,ADULT SOCIAL CARE PURCHASING,4260011,NURSING COSTS RECOVERED,25/04/2018,J2240058220418,-13.64,ASCOT LODGE CARE HOME,CT230753350,Nursing Homes,36211800
Sheffield City Council,PEOPLE,14009346039,ADULT SOCIAL CARE PURCHASING,4260011,NURSING COSTS RECOVERED,25/04/2018,J2240058220418,-11.54,ASCOT LODGE CARE HOME,CT230753350,Nursing Homes,36211800
Sheffield City Council,PLACE,12000000000,CORONIAL SERVICES,8100000,RECHARGEABLE PURCHASES,10/04/2018,9000238422,"4,505.30",BARNSLEY MBC INC SIGOMA,CT219948583,Local Government,41483900
Sheffield City Council,PEOPLE,14009346039,ADULT SOCIAL CARE PURCHASING,4260011,NURSING COSTS RECOVERED,25/04/2018,J2240058220418,-11.22,ASCOT LODGE CARE HOME,CT230753350,Nursing Homes,36211800
Sheffield City Council,PEOPLE,14009346039,ADULT SOCIAL CARE PURCHASING,4260011,NURSING COSTS RECOVERED,25/04/2018,J2240058220418,-9.64,ASCOT LODGE CARE HOME,CT230753350,Nursing Homes,36211800
Sheffield City Council,PEOPLE,14009346039,ADULT SOCIAL CARE PURCHASING,4260011,NURSING COSTS RECOVERED,25/04/2018,J2240058220418,-9.36,ASCOT LODGE CARE HOME,CT230753350,Nursing Homes,36211800
Sheffield City Council,PEOPLE,14009346039,ADULT SOCIAL CARE PURCHASING,4260011,NURSING COSTS RECOVERED,25/04/2018,J2240058220418,-9.14,ASCOT LODGE CARE HOME,CT230753350,Nursing Homes,36211800
Sheffield City Council,PEOPLE,14009346039,ADULT SOCIAL CARE PURCHASING,4260011,NURSING COSTS RECOVERED,25/04/2018,J2240058220418,-7.72,ASCOT LODGE CARE HOME,CT230753350,Nursing Homes,36211800
Sheffield City Council,PEOPLE,14009346039,ADULT SOCIAL CARE PURCHASING,4260011,NURSING COSTS RECOVERED,25/04/2018,J2240058220418,-7.30,ASCOT LODGE CARE HOME,CT230753350,Nursing Homes,36211800
Sheffield City Council,PEOPLE,14009346039,ADULT SOCIAL CARE PURCHASING,4260011,NURSING COSTS RECOVERED,25/04/2018,J2240058220418,-7.30,ASCOT LODGE CARE HOME,CT230753350,Nursing Homes,36211800
Sheffield City Council,PEOPLE,14009346039,ADULT SOCIAL CARE PURCHASING,4260011,NURSING COSTS RECOVERED,25/04/2018,J2240058220418,-7.30,ASCOT LODGE CARE HOME,CT230753350,Nursing Homes,36211800
Sheffield City Council,PEOPLE,14009346039,ADULT SOCIAL CARE PURCHASING,4260011,NURSING COSTS RECOVERED,25/04/2018,J2240058220418,-7.30,ASCOT LODGE CARE HOME,CT230753350,Nursing Homes,36211800
Sheffield City Council,PEOPLE,14009346039,ADULT SOCIAL CARE PURCHASING,4260011,NURSING COSTS RECOVERED,25/04/2018,J2240058220418,-7.30,ASCOT LODGE CARE HOME,CT230753350,Nursing Homes,36211800
Sheffield City Council,PEOPLE,14009346039,ADULT SOCIAL CARE PURCHASING,4260011,NURSING COSTS RECOVERED,25/04/2018,J2240058220418,-7.30,ASCOT LODGE CARE HOME,CT230753350,Nursing Homes,36211800
Sheffield City Council,PEOPLE,14009346039,ADULT SOCIAL CARE PURCHASING,4260011,NURSING COSTS RECOVERED,25/04/2018,J2240058220418,-7.30,ASCOT LODGE CARE HOME,CT230753350,Nursing Homes,36211800
Sheffield City Council,PEOPLE,14009346039,ADULT SOCIAL CARE PURCHASING,4260011,NURSING COSTS RECOVERED,25/04/2018,J2240058220418,-7.30,ASCOT LODGE CARE HOME,CT230753350,Nursing Homes,36211800
Sheffield City Council,PEOPLE,14009346039,ADULT SOCIAL CARE PURCHASING,4260011,NURSING COSTS RECOVERED,25/04/2018,J2240058220418,-6.84,ASCOT LODGE CARE HOME,CT230753350,Nursing Homes,36211800
Sheffield City Council,PEOPLE,14009346039,ADULT SOCIAL CARE PURCHASING,4260011,NURSING COSTS RECOVERED,25/04/2018,J2240058220418,-6.72,ASCOT LODGE CARE HOME,CT230753350,Nursing Homes,36211800
Sheffield City Council,PEOPLE,14009346039,ADULT SOCIAL CARE PURCHASING,4260011,NURSING COSTS RECOVERED,25/04/2018,J2240058220418,-6.38,ASCOT LODGE CARE HOME,CT230753350,Nursing Homes,36211800
Sheffield City Council,PEOPLE,14009346039,ADULT SOCIAL CARE PURCHASING,4260011,NURSING COSTS RECOVERED,25/04/2018,J2240058220418,-6.34,ASCOT LODGE CARE HOME,CT230753350,Nursing Homes,36211800
Sheffield City Council,PEOPLE,14009346039,ADULT SOCIAL CARE PURCHASING,4260011,NURSING COSTS RECOVERED,25/04/2018,J2240058220418,-6.34,ASCOT LODGE CARE HOME,CT230753350,Nursing Homes,36211800
Sheffield City Council,PEOPLE,14009346039,ADULT SOCIAL CARE PURCHASING,4260011,NURSING COSTS RECOVERED,25/04/2018,J2240058220418,-6.18,ASCOT LODGE CARE HOME,CT230753350,Nursing Homes,36211800
Sheffield City Council,PEOPLE,14009346039,ADULT SOCIAL CARE PURCHASING,4260011,NURSING COSTS RECOVERED,25/04/2018,J2240058220418,-5.98,ASCOT LODGE CARE HOME,CT230753350,Nursing Homes,36211800
Sheffield City Council,PEOPLE,14009346039,ADULT SOCIAL CARE PURCHASING,4260018,RESIDENTIAL COSTS RECOVERED,25/04/2018,J2240058220418,436.58,ASCOT LODGE CARE HOME,CT230753350,Nursing Homes,36211800
Sheffield City Council,PEOPLE,14009346039,ADULT SOCIAL CARE PURCHASING,9200001,CONTINUING RESIDENTIAL CARE,25/04/2018,J2248802200518,"1,752.00",ASCOT LODGE CARE HOME,CT230753350,Nursing Homes,36211800
Sheffield City Council,PEOPLE,14009346039,ADULT SOCIAL CARE PURCHASING,9210001,CONTINUING NURSING CARE,25/04/2018,J2248802200518,"1,812.00",ASCOT LODGE CARE HOME,CT230753350,Nursing Homes,36211800
Sheffield City Council,PEOPLE,14009346039,ADULT SOCIAL CARE PURCHASING,9210001,CONTINUING NURSING CARE,25/04/2018,J2248802200518,"1,812.00",ASCOT LODGE CARE HOME,CT230753350,Nursing Homes,36211800
Sheffield City Council,PEOPLE,14009346039,ADULT SOCIAL CARE PURCHASING,9210001,CONTINUING NURSING CARE,25/04/2018,J2248802200518,"1,812.00",ASCOT LODGE CARE HOME,CT230753350,Nursing Homes,36211800
Sheffield City Council,PEOPLE,14009346039,ADULT SOCIAL CARE PURCHASING,9210001,CONTINUING NURSING CARE,25/04/2018,J2248802200518,"1,812.00",ASCOT LODGE CARE HOME,CT230753350,Nursing Homes,36211800
Sheffield City Council,PEOPLE,14009346039,ADULT SOCIAL CARE PURCHASING,9210001,CONTINUING NURSING CARE,25/04/2018,J2248802200518,"1,812.00",ASCOT LODGE CARE HOME,CT230753350,Nursing Homes,36211800
Sheffield City Council,PEOPLE,14009346039,ADULT SOCIAL CARE PURCHASING,9210001,CONTINUING NURSING CARE,25/04/2018,J2248802200518,"1,812.00",ASCOT LODGE CARE HOME,CT230753350,Nursing Homes,36211800
Sheffield City Council,PEOPLE,14009346039,ADULT SOCIAL CARE PURCHASING,9210001,CONTINUING NURSING CARE,25/04/2018,J2248802200518,"1,812.00",ASCOT LODGE CARE HOME,CT230753350,Nursing Homes,36211800
Sheffield City Council,PEOPLE,14009346039,ADULT SOCIAL CARE PURCHASING,9210001,CONTINUING NURSING CARE,25/04/2018,J2248802200518,"1,812.00",ASCOT LODGE CARE HOME,CT230753350,Nursing Homes,36211800
Sheffield City Council,PEOPLE,14009346039,ADULT SOCIAL CARE PURCHASING,9210001,CONTINUING NURSING CARE,25/04/2018,J2248802200518,"1,812.00",ASCOT LODGE CARE HOME,CT230753350,Nursing Homes,36211800
Sheffield City Council,PEOPLE,14009346039,ADULT SOCIAL CARE PURCHASING,9210001,CONTINUING NURSING CARE,25/04/2018,J2248802200518,"1,812.00",ASCOT LODGE CARE HOME,CT230753350,Nursing Homes,36211800
Sheffield City Council,PEOPLE,14009346039,ADULT SOCIAL CARE PURCHASING,9210001,CONTINUING NURSING CARE,25/04/2018,J2248802200518,"1,812.00",ASCOT LODGE CARE HOME,CT230753350,Nursing Homes,36211800
Sheffield City Council,PEOPLE,14009346039,ADULT SOCIAL CARE PURCHASING,9210001,CONTINUING NURSING CARE,25/04/2018,J2248802200518,"1,812.00",ASCOT LODGE CARE HOME,CT230753350,Nursing Homes,36211800
Sheffield City Council,PEOPLE,14009346039,ADULT SOCIAL CARE PURCHASING,9210001,CONTINUING NURSING CARE,25/04/2018,J2248802200518,"1,812.00",ASCOT LODGE CARE HOME,CT230753350,Nursing Homes,36211800
Sheffield City Council,PEOPLE,14009346039,ADULT SOCIAL CARE PURCHASING,9210001,CONTINUING NURSING CARE,25/04/2018,J2248802200518,"1,812.00",ASCOT LODGE CARE HOME,CT230753350,Nursing Homes,36211800
Sheffield City Council,PEOPLE,14009346039,ADULT SOCIAL CARE PURCHASING,9210001,CONTINUING NURSING CARE,25/04/2018,J2248802200518,"1,812.00",ASCOT LODGE CARE HOME,CT230753350,Nursing Homes,36211800
Sheffield City Council,PEOPLE,14009346039,ADULT SOCIAL CARE PURCHASING,9210001,CONTINUING NURSING CARE,25/04/2018,J2248802200518,"1,812.00",ASCOT LODGE CARE HOME,CT230753350,Nursing Homes,36211800
Sheffield City Council,PEOPLE,14009346039,ADULT SOCIAL CARE PURCHASING,9210001,CONTINUING NURSING CARE,25/04/2018,J2248802200518,"1,812.00",ASCOT LODGE CARE HOME,CT230753350,Nursing Homes,36211800
Sheffield City Council,PEOPLE,14009346039,ADULT SOCIAL CARE PURCHASING,9210001,CONTINUING NURSING CARE,25/04/2018,J2248802200518,"1,812.00",ASCOT LODGE CARE HOME,CT230753350,Nursing Homes,36211800
Sheffield City Council,PEOPLE,14009346039,ADULT SOCIAL CARE PURCHASING,9210001,CONTINUING NURSING CARE,25/04/2018,J2248802200518,"1,812.00",ASCOT LODGE CARE HOME,CT230753350,Nursing Homes,36211800
Sheffield City Council,PEOPLE,14009346039,ADULT SOCIAL CARE PURCHASING,9210001,CONTINUING NURSING CARE,25/04/2018,J2248802200518,"1,812.00",ASCOT LODGE CARE HOME,CT230753350,Nursing Homes,36211800
Sheffield City Council,PEOPLE,14009346039,ADULT SOCIAL CARE PURCHASING,9210001,CONTINUING NURSING CARE,25/04/2018,J2248802200518,"1,812.00",ASCOT LODGE CARE HOME,CT230753350,Nursing Homes,36211800
Sheffield City Council,PEOPLE,14009346039,ADULT SOCIAL CARE PURCHASING,9210001,CONTINUING NURSING CARE,25/04/2018,J2248802200518,"1,812.00",ASCOT LODGE CARE HOME,CT230753350,Nursing Homes,36211800
Sheffield City Council,PEOPLE,14009346039,ADULT SOCIAL CARE PURCHASING,9210001,CONTINUING NURSING CARE,25/04/2018,J2248802200518,"1,812.00",ASCOT LODGE CARE HOME,CT230753350,Nursing Homes,36211800
Sheffield City Council,PEOPLE,14009346039,ADULT SOCIAL CARE PURCHASING,9210001,CONTINUING NURSING CARE,25/04/2018,J2248802200518,"1,812.00",ASCOT LODGE CARE HOME,CT230753350,Nursing Homes,36211800
Sheffield City Council,PEOPLE,14009346039,ADULT SOCIAL CARE PURCHASING,9210001,CONTINUING NURSING CARE,25/04/2018,J2248802200518,"2,052.00",ASCOT LODGE CARE HOME,CT230753350,Nursing Homes,36211800
Sheffield City Council,PEOPLE,14009346039,ADULT SOCIAL CARE PURCHASING,9210001,CONTINUING NURSING CARE,25/04/2018,J2248802200518,"2,052.00",ASCOT LODGE CARE HOME,CT230753350,Nursing Homes,36211800
Sheffield City Council,PEOPLE,14009346039,ADULT SOCIAL CARE PURCHASING,9210001,CONTINUING NURSING CARE,25/04/2018,J2248802200518,"2,052.00",ASCOT LODGE CARE HOME,CT230753350,Nursing Homes,36211800
Sheffield City Council,PEOPLE,14009346039,ADULT SOCIAL CARE PURCHASING,9210001,CONTINUING NURSING CARE,25/04/2018,J2248802200518,"2,052.00",ASCOT LODGE CARE HOME,CT230753350,Nursing Homes,36211800
Sheffield City Council,PEOPLE,14009346039,ADULT SOCIAL CARE PURCHASING,9210001,CONTINUING NURSING CARE,25/04/2018,J2248802200518,"2,052.00",ASCOT LODGE CARE HOME,CT230753350,Nursing Homes,36211800
Sheffield City Council,PEOPLE,14009346039,ADULT SOCIAL CARE PURCHASING,9200001,CONTINUING RESIDENTIAL CARE,25/04/2018,J2248802200518,"3,493.71",ASCOT LODGE CARE HOME,CT230753350,Nursing Homes,36211800
Sheffield City Council,PEOPLE,14032149672,CONTRACT PAYMENTS - DRUGS,9030000,HEALTH,06/04/2018,MPA20180406297-0006,936.80,ASDA PHARMACY - ADSA STORES LTD,CT140317440,Chemists - Dispensing,58340800
Sheffield City Council,PEOPLE,14009346039,ADULT SOCIAL CARE PURCHASING,4260018,RESIDENTIAL COSTS RECOVERED,24/04/2018,J2248710200518,"-1,142.84",ASH HOUSE RESIDENTIAL HOME,CT230164710,Residential Care Homes,36190100
Sheffield City Council,PEOPLE,14009346039,ADULT SOCIAL CARE PURCHASING,4260018,RESIDENTIAL COSTS RECOVERED,24/04/2018,J2248710200518,"-1,034.68",ASH HOUSE RESIDENTIAL HOME,CT230164710,Residential Care Homes,36190100
